Workbook

Sheet Data (hidden)
A1: Tick | B1: Semester | C1: Year | D1: Skills
A2: √ | B2: 1 | C2: 1 | D2: Knowledge and understanding | E2: Cognitive skills
B3: 2 | C3: 2 | D3: Cognitive skills | E3: Interpersonal skills
B4: 3 | C4: 3 | D4: Practical skills | E4: Communication skills
C5: 4 | D5: Interpersonal skills | E5: Digital skills
C6: 5 | D6: Communication skills | E6: Numeracy skills
C7: 6 | D7: Digital skills | E7: Leadership, autonomy and responsibility
D8: Numeracy skills | E8: Personal skills
D9: Leadership, autonomy and responsibility | E9: Entrepreneurial skills
D10: Personal skills | E10: Ethics and professionalism.
D11: Entrepreneurial skills
D12: Ethics and professionalism.
C19: 1 | D19: Knowledge and understanding
C20: 2 | D20: Cognitive skills
C21: 3 | D21: Practical skills
C22: 4 | D22: Interpersonal skills
C23: 5 | D23: Communication skills
C24: 6 | D24: Digital skills
C25: 7 | D25: Numeracy skills
C26: 8 | D26: Leadership, autonomy and responsibility
C27: 9 | D27: Personal skills
C28: 10 | D28: Entrepreneurial skills
C29: 11 | D29: Ethics and professionalism.

Sheet GUIDE
F3: Summary of Course Information Template
F4: (Table4 v2.0 June 2020)
C8: Please follow the instructions below in sequential order to provide the information on the courses in the programme. Following are the sequential instructions to fill in course information of the programme:-
C11: 1- | D11: To create a new course information, click 'FORM' worksheet.
C13: 2- | D13: Fill in the required information for the course. Course code is a mandatory field and it is unique.
D14: Data for cells in dark green color will be generated automatically.
C16: 3- | D16: Once completed, click 'Copy Sheet' button that available on the top right corner of the form.
D17: (A new worksheet will be replicated with a default name which is the course code)
C19: 4- | D19: To provide information for the following course, return to the 'FORM' worksheet.
D20: You can create a new couse by filling all new information by repeating steps 1 to 3 OR just edit the relevant fields and repeat step 3.
D21: Click ‘Clear Form’ to fill in new information.
C23: 5- | D23: Once all courses have been created, click 'Update Index' button on the top right corner of the FORM worksheet.
C25: 6- | D25: Go to 'INDEX' worksheet to see the summary index for all the courses of the programme.
D26: (All courses/ worksheet names will be populated together with % SLT for ODL courses)
C28: Note: This Table 4 and its SLT calculation are designed for home grown programme only.

Sheet FORM
B2: Table 4: Summary of Course Information
AI3: √
B5: 1 | C5: Course Name: | AI5: Semester
C6: Course Code: | AI6: 1
C7: Course Classification: | F7: Elective (open/free) | AI7: 2
B8: 2 | C8: Synopsis: | AI8: 3
B9: =B8+1 -> 3 | C9: Name(s) of Academic Staff: | F9: 1
F10: 2 | AI10: Year Offered
F11: 3 | AI11: 1
B12: =B9+1 -> 4 | C12: Semester and Year offered: | F12: Year Offered | I12: 1 | J12: Semester | L12: 1 | M12: Remarks: | AI12: 2
B13: =B12+1 -> 5 | C13: Credit Value: | F13: =IF(X107 ="√",INT(X99/80),INT(X99/40)) -> 0 | AI13: 3
B14: 6 | C14: Pre-requisite/ co-requisite (if any): | AI14: 4
AI15: 5
B16: 7 | C16: Course Learning Outcomes (CLO) | F16: CLO1 | AI16: 6
F17: CLO2 | AI17: 7
F18: CLO3 | AI18: 8
AI20: Compulsory
AI21: Major (core)
AI22: Minor
AI23: Elective (core)
AI24: Elective (open/free)
B25: 8 | C25: Mapping of the Course Learning Outcomes to the Programme Learning Outcomes, Teaching Methods and Assessment Methods
D27: Course Learning Outcomes | F27: Programme Learning Outcomes (PLO) | R27: Teaching Methods | W27: Assessment Methods
F28: PLO 1 | G28: PLO 2 | H28: PLO 3 | I28: PLO 4 | J28: PLO 5 | K28: PLO 6 | L28: PLO 7 | M28: PLO 8 | N28: PLO 9 | O28: PLO 10 | P28: PLO 11
D29: =IF(ISBLANK(F16),"",F16) -> CLO1
D30: =IF(ISBLANK(F17),"",F17) -> CLO2
D31: CLO3
D32: =IF(ISBLANK(F19),"",F19) -> 
D33: =IF(ISBLANK(F20),"",F20) -> 
AI36: Cognitive skills
D37: Mapping with MQF Cluster of Learning Outcomes | F37: C1 | G37: C2 | H37: C3A | I37: C3B | J37: C3C | K37: C3D | L37: C3E | M37: C3F | N37: C4A | O37: C4B | P37: C5 | AI37: Interpersonal skills
AI38: Communication Skills
AI39: Digital Skills
AI40: Numeracy Skills
D41: Indicate the primary causal link between the CLO and PLO by ticking '√' in the appropriate box. | AI41: Leadership, Autonomy and Responsibility
D42: C1 = Knowledge & Understanding, C2 = Cognitive Skills, C3A = Practical Skills, C3B = Interpersonal Skills, C3C = Communication Skills, C3D = Digital Skills, | AI42: Personal Skills
D43: C3E = Numeracy Skills, C3F = Leadership, Autonomy & Responsibility, C4A = Personal Skills, C4B = Entrepreneurial Skills, C5 = Ethics & Professionalism | AI43: Entrepreneurial Skills
AI44: Ethics and Professionalism
B45: 9 | C45: Transferable Skills (if applicable)
C46: (Skills learned in the course of study which can be useful and utilized in other settings) | I46: 1 | AI46: C1
I47: 2 | AI47: C2
I48: 3 | AI48: C3A
I49: Open-ended response (if any) | AI49: C3B
I50: 4 | AI50: C3C
AI51: C3D
AB52: ` | AI52: C3E
B53: 10 | C53: Distribution of Student Learning Time (SLT) | AI53: C3F
C54: Note: This SLT calculation is designed for home grown programme only. | AI54: C4A
AI55: C4B
D56: Course Content Outline and Subtopics | K56: CLO* | M56: Learning and Teaching Activities** | X56: Total SLT | AI56: C5
M57: Face-to-Face (F2F) | U57: NF2F Independent Learning (Asynchronous)
M58: Physical | Q58: Online/ Technology-mediated (Synchronous)
M59: L | N59: T | O59: P | P59: O | Q59: L | R59: T | S59: P | T59: O
D60: 1
D61: 2
D62: 3
D63: 4
D64: 5
D65: 6
D66: 7
D67: 8
D68: 9
D69: 10
D70: =D69+1 -> 11
D71: =D70+1 -> 12
D72: 13
D73: 14
D74: 15
D75: 16
D76: 17
D77: 18
D78: 19
D79: 20
D80: SUB-TOTAL SLT: | X80: =SUM(M60:P79)+SUM(Q60:T79)+SUM(U60:W79) -> 0
D81: Continous Assessement | K81: % | M81: Face-to-Face (F2F) | U81: NF2F Independent Learning for Assessment (Asynchronous)
M82: Physical | Q82: Online/ Technology-mediated (Synchronous)
D83: 1
D84: 2
D85: 3
D86: 4
D87: 5
D88: SUB-TOTAL SLT: | X88: =SUM(M83:W87) -> 0
D89: Final Assessement | K89: % | M89: Face-to-Face (F2F) | U89: NF2F Independent Learning for Assessment (Asynchronous)
M90: Physical | Q90: Online/ Technology-mediated (Synchronous)
D91: 1
D92: 2
D93: 3
D94: 4
D95: 5
D96: SUB-TOTAL SLT: | X96: =SUM(M91:W95) -> 0
D98: SLT for Assessment: | X98: =X88+X96 -> 0
D99: GRAND TOTAL SLT: | X99: =X98+X80 -> 0
D100: A | E100: % SLT for F2F Physical Component: [Total F2F Physical /(Total F2F Physical + Total F2F Online + Total Independent Learning) x 100)] | X100: =IFERROR(((SUM(M60:P79)+SUM(M83:P87)+SUM(M91:P95))/X99)* 100,"") -> 
D102: B | E102: % SLT for Online & Independent Learning Component: [(Total F2F Online + Total Independent Learning) /( Total F2F Physical + Total F2F Online + Total Independent Learning) x 100] | X102: =IFERROR((SUM(Q60:W79)+SUM(Q83:W87) + SUM(Q91:W95))/X99 * 100,"") -> 
D103: C | E103: % SLT for All Practical Component: [% F2F Physical Practical + % F2F Online Practical] | X103: =IFERROR(X104+X105,"") -> 
D104: C1 | E104: % SLT for F2F Physical Practical Component [Total F2F Physical Practical /( Total F2F Physical + Total F2F Online + Total Independent Learning) x 100)] | X104: =IFERROR(SUM(O60:O79)/X99*100,"") -> 
D105: C2 | E105: % SLT for F2F Online Practical Component [Total F2F Online Practical / (Total F2F Physical + Total F2F Online + Total Independent Learning) x 100] | X105: =IFERROR(SUM(S60:S79)/X99 *100,"") -> 
Z106: =IFERROR(X102+X104,"") -> 
D107: Please tick (√) if this course is Industrial Training/ Clinical Placement/ Practicum using 50% of Effective Learning Time (ELT)
D108: Note:
D109: * Indicate the CLO based on the CLO's numbering in Item 8
D110: ** For ODL programme: Courses with mandatory practical requiremnets imposed by the programme standards or any related standards can be exempted from complying to the minimum 80% ODL delivery rule in the SLT.
B112: 11 | C112: Identify special requirement or resources to deliver the course (e.g., software, nursery, computer lab, simulation room etc)
B114: 12 | C114: References (include required and further readings, and should be the most current)
B116: 13 | C116: Other additional information (if applicable)
C119: Note: Number of PLO indicated is purely for illustration purposes only and the number is subjected to the curriculum design.

Sheet INDEX
B2: GUIDE | Q2: √
B3: FORM | C3: Elective (open/free) | Q3: X
B4: INDEX | C4: Classification of Courses | D4: FOR ODL PROGRAMME ONLY Summary of SLT Percentage for Open and Distance Learning (ODL) per course (Min 80% / course) | F4: Comments by Panel of Assessors | G4: Comments by Panel of Assessors during visit (if applicable)
B5: MPU2162 | C5: Compulsory | D5: 62.5 | E5: =IF(D5="","",IF(D5>=80,"√","x")) -> x
B6: MPU2132 | C6: Compulsory | D6: 62.5 | E6: x
B7: PST 1011 | C7: Compulsory | D7: 75 | E7: x
B8: ARB 1112 | C8: Major (core) | D8: 62.5 | E8: x
B9: API1113 | C9: Major (core) | D9: 51.25 | E9: x
B10: AQS1123 | C10: Major (core) | D10: 52.08333333 | E10: x
B11: ASY3113 | C11: Major (core) | D11: 55.41666667 | E11: x
B12: CSC1113 | C12: Major (core) | D12: 51.66666667 | E12: x
B13: MPU2312 | C13: Compulsory | D13: 62.5 | E13: x
B14: PST 1021 | C14: Compulsory | D14: 75 | E14: x
B15: ARB 1122 | C15: Major (core) | D15: 48.75 | E15: x
B16: AQS1233 | C16: Major (core) | D16: 51.25 | E16: x
B17: AQS1111 | C17: Major (core) | D17: 57.5 | E17: x
B18: ASY3123 | C18: Major (core) | D18: 51.25 | E18: x
B19: ASY3133 | C19: Major (core) | D19: 51.25 | E19: x
B20: ASY3143 | C20: Major (core) | D20: 51.25 | E20: x
B21: PST 2031 | C21: Compulsory | D21: 70 | E21: x
B22: AQS2163 | C22: Major (core) | D22: 51.25 | E22: x
B23: AQS1263 | C23: Major (core) | D23: 51.25 | E23: x
B24: PST 2041 | C24: Compulsory | D24: 75.6097561 | E24: x
B25: MPU2422 | C25: Compulsory | D25: 77.5 | E25: x
B26: MPU2222 | C26: Compulsory | D26: 55 | E26: x
B27: ARB 2132 | C27: Major (core) | D27: 62.5 | E27: x
B28: ASY2213 | C28: Major (core) | D28: 51.25 | E28: x
B29: ASY3153 | C29: Major (core) | D29: 51.25 | E29: x
B30: ASY3163 | C30: Major (core) | D30: 51.25 | E30: x
B31: ASY3173 | C31: Major (core) | D31: 51.25 | E31: x
B32: MGT2222 | C32: Major (core) | D32: 53.75 | E32: x
B33: MPU2412 | C33: Compulsory | D33: 65 | E33: x
B34: PST 2051 | C34: Compulsory | D34: 75.6097561 | E34: x
B35: AQS2173 | C35: Major (core) | D35: 51.25 | E35: x
B36: API 1123 | C36: Major (core) | D36: 51.25 | E36: x
B37: API2143 | C37: Major (core) | D37: 51.25 | E37: x
B38: ASY3213 | C38: Major (core) | D38: 51.25 | E38: x
B39: ASY3223 | C39: Major (core) | D39: 51.25 | E39: x
B40: ASY3363 | C40: Major (core) | D40: 51.25 | E40: x
B41: ASY3233 | C41: Major (core) | D41: 51.25 | E41: x
B42: ASY3243 | C42: Major (core) | D42: 51.25 | E42: x | M42: =IF(ISBLANK(D5),"",IF(D5>=80,"√","X")) -> X
B43: API2123 | C43: Elective (open/free) | D43: 51.25 | E43: x
B44: MGT2123 | C44: Elective (open/free) | D44: 51.25 | E44: x
B45: API2153 | C45: Elective (open/free) | D45: 51.25 | E45: x
B46: LAW3223 | C46: Elective (open/free) | D46: 51.25 | E46: x
B47: MGT 2343 | C47: Elective (open/free) | D47: 50.41666667 | E47: x
E66: =COUNTIF(E5:E65,"√") -> 0 | F66: Number of ODL Courses
E67: =COUNTA(B5:B65) -> 43 | F67: Total Courses
E68: =(E66/E67)*100 -> 0 | F68: =IFERROR(IF(E68>60,"ODL PROGRAMME", "NOT MEETING MINIMUM REQUIREMENT OF ODL PROGRAMME"),"") -> NOT MEETING MINIMUM REQUIREMENT OF ODL PROGRAMME | G68: % ODL Courses/ programme (Min 61%/ programme)
Y131: =SUM(T92:T106) -> 0

Sheet MPU2162
B2: Back To FORM @ TEMPLATE
AI3: √
B5: 1 | C5: Course Name: | F5: Pengajian Malaysia 2 | AI5: Semester
C6: Course Code: | F6: MPU2162 | AI6: 1
C7: Course Classification: | F7: Compulsory | AI7: 2
B8: 2 | C8: Synopsis: | F8: Kursus ini membincangkan Sejarah dan Politik, Perlembangaan Malaysia, Sistem dan Struktur Pentadbiran Negara, Kemasyarakatan dan Perpaduan dan Pembangunan Negara dan Agama Kepercayaan. Kursus ini adalahbertujuan untuk melahirkan graduan yang mempunyai identiti kebangsaan dan semangat patriotismeyang unggu. Pengajaran dan pembelajaran akan dilaksanakan dalam bentuk kuliah, tugasan, peperiksaan dan pengalaman pembelajaran. | AI8: 3
B9: =B8+1 -> 3 | C9: Name(s) of Academic Staff: | F9: 1 | G9: NOOR ENAIDA BT TUTAN KHAMIN
F10: 2 | AI10: Year Offered
F11: 3 | AI11: 1
B12: =B9+1 -> 4 | C12: Semester and Year offered: | F12: Year Offered | I12: 1 | J12: Semester | L12: 1 | M12: Remarks: | AI12: 2
B13: =B12+1 -> 5 | C13: Credit Value: | F13: =IF(X107 ="√",INT(X99/80),INT(X99/40)) -> 2 | AI13: 3
B14: 6 | C14: Pre-requisite/ co-requisite (if any): | AI14: 4
AI15: 5
B16: 7 | C16: Course Learning Outcomes (CLO) | F16: CLO1 | H16: Menghuraikan kepelbagaian dalam masyarakat. (A3, EM3, PLO11) | AI16: 6
F17: CLO2 | H17: Menilai kepentingan identiti kebangsaan ke arah mengukuhkan semangat patriotisme. (A3, LL3, PLO9) | AI17: 7
F18: CLO3 | H18: Membina hubungan dan interaksi sosial dalam kalangan pelajar. (A3, TS3, PLO4) | AI18: 8
AI20: Compulsory
AI21: Major (core)
AI22: Minor
AI23: Elective (core)
AI24: Elective (open/free)
B25: 8 | C25: Mapping of the Course Learning Outcomes to the Programme Learning Outcomes, Teaching Methods and Assessment Methods
D27: Course Learning Outcomes | F27: Programme Learning Outcomes (PLO) | R27: Teaching Methods | W27: Assessment Methods
F28: PLO 1 | G28: PLO 2 | H28: PLO 3 | I28: PLO 4 | J28: PLO 5 | K28: PLO 6 | L28: PLO 7 | M28: PLO 8 | N28: PLO 9 | O28: PLO 10 | P28: PLO 11
D29: =IF(ISBLANK(F16),"",F16) -> CLO1 | P29: √ | R29: Kuliah Interaktif| E-pembelajaran |aktiviti berkumpulan | W29: Peperiksaan Akhir | Laporan Bertulis
D30: =IF(ISBLANK(F17),"",F17) -> CLO2 | N30: √ | R30: Kuliah Interaktif| E-pembelajaran |aktiviti berkumpulan | W30: Pembentangan
D31: CLO3 | I31: √ | R31: Kuliah Interaktif| E-pembelajaran |aktiviti berkumpulan |Kerja Lapangan | W31: Pembentangan | Refleksi
AI36: Cognitive skills
D37: Mapping with MQF Cluster of Learning Outcomes | F37: C1 | G37: C2 | H37: C3A | I37: C3B | J37: C3C | K37: C3D | L37: C3E | M37: C3F | N37: C4A | O37: C4B | P37: C5 | AI37: Interpersonal skills
AI38: Communication Skills
AI39: Digital Skills
AI40: Numeracy Skills
D41: Indicate the primary causal link between the CLO and PLO by ticking '√' in the appropriate box. | AI41: Leadership, Autonomy and Responsibility
D42: C1 = Knowledge & Understanding, C2 = Cognitive Skills, C3A = Practical Skills, C3B = Interpersonal Skills, C3C = Communication Skills, C3D = Digital Skills, | AI42: Personal Skills
D43: C3E = Numeracy Skills, C3F = Leadership, Autonomy & Responsibility, C4A = Personal Skills, C4B = Entrepreneurial Skills, C5 = Ethics & Professionalism | AI43: Entrepreneurial Skills
AI44: Ethics and Professionalism
B45: 9 | C45: Transferable Skills (if applicable)
C46: (Skills learned in the course of study which can be useful and utilized in other settings) | I46: 1 | J46: Ethics and Professionalism | AI46: C1
I47: 2 | J47: Personal Skills | AI47: C2
I48: 3 | J48: Interpersonal skills | AI48: C3A
I49: Open-ended response (if any) | AI49: C3B
I50: 4 | AI50: C3C
AI51: C3D
AB52: ` | AI52: C3E
B53: 10 | C53: Distribution of Student Learning Time (SLT) | AI53: C3F
C54: Note: This SLT calculation is designed for home grown programme only. | AI54: C4A
AI55: C4B
D56: Course Content Outline and Subtopics | K56: CLO* | M56: Learning and Teaching Activities** | X56: Total SLT | AI56: C5
M57: Face-to-Face (F2F) | U57: NF2F Independent Learning (Asynchronous)
M58: Physical | Q58: Online/ Technology-mediated (Synchronous)
M59: L | N59: T | O59: P | P59: O | Q59: L | R59: T | S59: P | T59: O
D60: 1 | E60: 1.0 Sejarah dan Politik 1.1 Latar belakang Sejarah Negara 1.2 Kemerdekaan 1.3 Pembentukan Malaysia | K60: CLO1, CLO2 | M60: 2 | U60: 2
D61: 2 | E61: 2.0 Perlembagaan Malaysia 2.1 Keluhuran Perlembagaan 2.2 Peruntukan utama Perlembagaan Malaysia | K61: CLO1 | M61: 2 | N61: 1 | U61: 3
D62: 3 | E62: 3.0 Sistem dan Struktur Pentadbiran Negara 3.1 Federalisme 3.2 Demokrasi Berparlimen di Malaysia 3.3 Komponen Utama Kerajaan | K62: CLO1, CLO2 | M62: 4 | N62: 2 | U62: 4
D63: 4 | E63: 4.0 Kemasyarakatan dan Perpaduan 4.1 Komposisi Etnik Penduduk Malaysia 4.2 Perpaduan Negara dan Integrasi Nasional 4.3 Rukun Negara sebagai Ideologi | K63: CLO1, CLO2, CLO3 | M63: 4 | N63: 2 | U63: 6
D64: 5 | E64: 5.0 Pembangunan Negara 5.1 Rancangan Pembangunan 5.2 Dasar Ekonomi 5.3 Dasar Sosial 5.4 Dasar Luar | K64: CLO1, CLO2 | M64: 2 | N64: 1 | U64: 2
D65: 6 | E65: 6.0 Agama dan Kepercayaan 6.1 Agama dan Kepercayaan di Malaysia 6.2 Islam dalam Perlembagaan Malaysia 6.3 Islam dan Masyarakat | K65: CLO1, CLO2 | M65: 2 | N65: 1 | U65: 4
D66: 7
D67: 8
D68: 9
D69: 10
D70: =D69+1 -> 11
D71: =D70+1 -> 12
D72: 13
D73: 14
D74: 15
D75: 16
D76: 17
D77: 18
D78: 19
D79: 20
D80: SUB-TOTAL SLT: | X80: =SUM(M60:P79)+SUM(Q60:T79)+SUM(U60:W79) -> 44
D81: Continous Assessement | K81: % | M81: Face-to-Face (F2F) | U81: NF2F Independent Learning for Assessment (Asynchronous)
M82: Physical | Q82: Online/ Technology-mediated (Synchronous)
D83: 1 | E83: Pembentangan | K83: 30 | M83: 4 | U83: 8
D84: 2 | E84: Laporan Bertulis / Refleksi | K84: 40 | M84: 1 | U84: 15
D85: 3
D86: 4
D87: 5
D88: SUB-TOTAL SLT: | X88: =SUM(M83:W87) -> 28
D89: Final Assessement | K89: % | M89: Face-to-Face (F2F) | U89: NF2F Independent Learning for Assessment (Asynchronous)
M90: Physical | Q90: Online/ Technology-mediated (Synchronous)
D91: 1 | E91: Peperiksaan Akhir | K91: 30 | M91: 2 | U91: 6
D92: 2
D93: 3
D94: 4
D95: 5
D96: SUB-TOTAL SLT: | X96: =SUM(M91:W95) -> 8
D98: SLT for Assessment: | X98: =X88+X96 -> 36
D99: GRAND TOTAL SLT: | X99: =X98+X80 -> 80
D100: A | E100: % SLT for F2F Physical Component: [Total F2F Physical /(Total F2F Physical + Total F2F Online + Total Independent Learning) x 100)] | X100: =IFERROR(((SUM(M60:P79)+SUM(M83:P87)+SUM(M91:P95))/X99)* 100,"") -> 37.5
D102: B | E102: % SLT for Online & Independent Learning Component: [(Total F2F Online + Total Independent Learning) /( Total F2F Physical + Total F2F Online + Total Independent Learning) x 100] | X102: =IFERROR((SUM(Q60:W79)+SUM(Q83:W87) + SUM(Q91:W95))/X99 * 100,"") -> 62.5
D103: C | E103: % SLT for All Practical Component: [% F2F Physical Practical + % F2F Online Practical] | X103: =IFERROR(X104+X105,"") -> 0
D104: C1 | E104: % SLT for F2F Physical Practical Component [Total F2F Physical Practical /( Total F2F Physical + Total F2F Online + Total Independent Learning) x 100)] | X104: =IFERROR(SUM(O60:O79)/X99*100,"") -> 0
D105: C2 | E105: % SLT for F2F Online Practical Component [Total F2F Online Practical / (Total F2F Physical + Total F2F Online + Total Independent Learning) x 100] | X105: =IFERROR(SUM(S60:S79)/X99 *100,"") -> 0
Z106: =IFERROR(X102+X104,"") -> 62.5
D107: Please tick (√) if this course is Industrial Training/ Clinical Placement/ Practicum using 50% of Effective Learning Time (ELT)
D108: Note:
D109: * Indicate the CLO based on the CLO's numbering in Item 8
D110: ** For ODL programme: Courses with mandatory practical requiremnets imposed by the programme standards or any related standards can be exempted from complying to the minimum 80% ODL delivery rule in the SLT.
B112: 11 | C112: Identify special requirement or resources to deliver the course (e.g., software, nursery, computer lab, simulation room etc)
B114: 12 | C114: References (include required and further readings, and should be the most current) | K114: Mardiana Nordin dan Hasnah Hussin. (2014). Pengajian Malaysia. Shah Alam :Oxford Fajar Nazaruddin Haji Mohd Jail, Ma'rof Redzuan, Asnarulkhadi Abu Samah dan Ismail Hj Mohd Rashid. 2004. Pengajian Malaysia : Kenegaraan dan Kewarganegaraan. Edisi Kedua. Petaling Jaya. Prentice Hall. Nazri Muslim. (2015). Islam dan Melayu : Tiang Seri Hubungan Etnik di Malaysia. Bangi : Penerbit UKM. Ruslan Zainuddin, Mohd Mahadee Ismail & Zaini Othman. (2010). Kenegaraan Malaysia. Edisi Kedua. Shah Alam : Oxford Fajar.
B116: 13 | C116: Other additional information (if applicable)
C119: Note: Number of PLO indicated is purely for illustration purposes only and the number is subjected to the curriculum design.

Sheet MPU2132
B2: Back To FORM @ TEMPLATE
AI3: √
B5: 1 | C5: Course Name: | F5: Bahasa Melayu Komunikasi 1 | AI5: Semester
C6: Course Code: | F6: MPU2132 | AI6: 1
C7: Course Classification: | F7: Compulsory | AI7: 2
B8: 2 | C8: Synopsis: | F8: Kursus ini melatih pelajar antarabangsa untuk berkomunikasi dalam bahasa Melayu asas yang meliputi situasi kehidupan harian. Pelajar akan diperkenalkan dengan pertuturan dan penulisan bahasa Melayu mudah. Pengajaran dan pembelajaran akan dilaksanakan dalam bentuk kuliah, tutorial, tugasan dan pengalaman pembelajaran pelajar di dalam dan di luar kelas. pada akhir kursus ini, pelajar diharapkan dapat berkomunikasi dan menulis karangan menggunakan ayat mudah dengan berkesan. | AI8: 3
B9: =B8+1 -> 3 | C9: Name(s) of Academic Staff: | F9: 1 | G9: NOOR ENAIDA BT TUTAN KHAMIN
F10: 2 | AI10: Year Offered
F11: 3 | AI11: 1
B12: =B9+1 -> 4 | C12: Semester and Year offered: | F12: Year Offered | I12: 1 | J12: Semester | L12: 1 | M12: Remarks: | AI12: 2
B13: =B12+1 -> 5 | C13: Credit Value: | F13: =IF(X107 ="√",INT(X99/80),INT(X99/40)) -> 2 | AI13: 3
B14: 6 | C14: Pre-requisite/ co-requisite (if any): | AI14: 4
AI15: 5
B16: 7 | C16: Course Learning Outcomes (CLO) | F16: CLO1 | H16: Membaca dan menjelaskan maksud ayat serta petikan mudah. (A3, CS3, PLO5) | AI16: 6
F17: CLO2 | H17: Bertutur dalam situasi tertentu dengan menggunakan ayat mudah (A3, CS3, PLO5) | AI17: 7
F18: CLO3 | H18: Menyusun idea dalam penulisan karangan pendek (A3, LL3, PLO9) | AI18: 8
AI20: Compulsory
AI21: Major (core)
AI22: Minor
AI23: Elective (core)
AI24: Elective (open/free)
B25: 8 | C25: Mapping of the Course Learning Outcomes to the Programme Learning Outcomes, Teaching Methods and Assessment Methods
D27: Course Learning Outcomes | F27: Programme Learning Outcomes (PLO) | R27: Teaching Methods | W27: Assessment Methods
F28: PLO 1 | G28: PLO 2 | H28: PLO 3 | I28: PLO 4 | J28: PLO 5 | K28: PLO 6 | L28: PLO 7 | M28: PLO 8 | N28: PLO 9 | O28: PLO 10 | P28: PLO 11
D29: =IF(ISBLANK(F16),"",F16) -> CLO1 | J29: √ | R29: Kuliah Interaktif| E-pembelajaran |aktiviti berkumpulan | W29: Ujian |Peperiksaan Akhir
D30: =IF(ISBLANK(F17),"",F17) -> CLO2 | J30: √ | R30: Kuliah Interaktif| E-pembelajaran |aktiviti berkumpulan | W30: Pembentangan
D31: CLO3 | N31: √ | R31: Kuliah Interaktif| E-pembelajaran |aktiviti berkumpulan | W31: Peperiksaan Akhir
AI36: Cognitive skills
D37: Mapping with MQF Cluster of Learning Outcomes | F37: C1 | G37: C2 | H37: C3A | I37: C3B | J37: C3C | K37: C3D | L37: C3E | M37: C3F | N37: C4A | O37: C4B | P37: C5 | AI37: Interpersonal skills
AI38: Communication Skills
AI39: Digital Skills
AI40: Numeracy Skills
D41: Indicate the primary causal link between the CLO and PLO by ticking '√' in the appropriate box. | AI41: Leadership, Autonomy and Responsibility
D42: C1 = Knowledge & Understanding, C2 = Cognitive Skills, C3A = Practical Skills, C3B = Interpersonal Skills, C3C = Communication Skills, C3D = Digital Skills, | AI42: Personal Skills
D43: C3E = Numeracy Skills, C3F = Leadership, Autonomy & Responsibility, C4A = Personal Skills, C4B = Entrepreneurial Skills, C5 = Ethics & Professionalism | AI43: Entrepreneurial Skills
AI44: Ethics and Professionalism
B45: 9 | C45: Transferable Skills (if applicable)
C46: (Skills learned in the course of study which can be useful and utilized in other settings) | I46: 1 | J46: Communication Skills | AI46: C1
I47: 2 | J47: Personal Skills | AI47: C2
I48: 3 | AI48: C3A
I49: Open-ended response (if any) | AI49: C3B
I50: 4 | AI50: C3C
AI51: C3D
AB52: ` | AI52: C3E
B53: 10 | C53: Distribution of Student Learning Time (SLT) | AI53: C3F
C54: Note: This SLT calculation is designed for home grown programme only. | AI54: C4A
AI55: C4B
D56: Course Content Outline and Subtopics | K56: CLO* | M56: Learning and Teaching Activities** | X56: Total SLT | AI56: C5
M57: Face-to-Face (F2F) | U57: NF2F Independent Learning (Asynchronous)
M58: Physical | Q58: Online/ Technology-mediated (Synchronous)
M59: L | N59: T | O59: P | P59: O | Q59: L | R59: T | S59: P | T59: O
D60: 1 | E60: 1.0 Bunyi dan sebutan 1.1 Vokal dan Diftong -Bunyi Vokal -Bunyi Diftong 1.2 Konsonan dan Gugusan Konsonan - Bunyi Konsonan - Bunyi Gugusan Konsonan - Bunyi Diftong 1.3 Nombor - Sistem Nombor - Mata Wang Malaysia - Waktu - Hari - Bulan - Tatabahasa | K60: CLO 1, CLO2 | M60: 4 | N60: 4 | U60: 6
D61: 2 | E61: 2.0 Saya, Kawan dan Keluarga 2.1 Diri Saya - Ucapan Tegur Sapa - Memperkenalkan Diri - Tatabahasa *Kata Nama *Kata Ganti Nama Diri - Pola Ayat Dasar - Pola Ayat Dasar 1 - Frasa Nama + Frasa Nama 2.2 Saya dan Kawan Saya - Anggota Badan -Tatabahasa * Kata Adjektif (Rupa Paras) - Pola Ayat Dasar 2 - Frasa Nama + Frasa Adjektif (Bentuk Fizikal) - Perwatakan 2.3 Kawan dan Keluarga 2.3.1 Kawan - Tatabahasa - Kata Tanya - Kata Tunjuk 2.3.2 Keluarga - Tatabahasa - Kata Kerja (Situasi Berkujung) | K61: CLO 1, CLO2, CLO3 | M61: 4 | N61: 2 | U61: 6
D62: 3 | E62: 3.0 Persekitaran 3.1 Aktiviti Harian -Tatabahasa * Kata Kerja *Pola Ayat Dasar 3 - Frasa Nama + Frasa Kerja * Kata Sendi Nama * Pola Ayat Dasar 4 - Frasa Nama + Frasa Sendi Nama - Tempat-tempat penting di sekitar kampus 3.2 Tempat Tinggal Saya - Tatabahasa * Kata Sendi Nama * Kata Bantu - Jenis-jenis Rumah - Mencari Rumah Sewa - Ruang dan Perabot Rumah 3.3 Di Kafeteria - Tatabahasa * Kata Adjektif (Pancaindera) - Makanan dan Minuman * Aktiviti memesan dan membayar 3.4 Berbelanja - Tatabahasa * Kata Adjektif (Ukuran, bentuk, dan warna ) - Barang keperluan Harian - Membeli Barang keperluan harian - Buah-buahan - Membeli buah-buahan -Sayur-sayuran - Membeli sayur-sayuran | K62: CLO 1, CLO2, CLO3 | M62: 4 | N62: 3 | U62: 6
D63: 4
D64: 5
D65: 6
D66: 7
D67: 8
D68: 9
D69: 10
D70: =D69+1 -> 11
D71: =D70+1 -> 12
D72: 13
D73: 14
D74: 15
D75: 16
D76: 17
D77: 18
D78: 19
D79: 20
D80: SUB-TOTAL SLT: | X80: =SUM(M60:P79)+SUM(Q60:T79)+SUM(U60:W79) -> 39
D81: Continous Assessement | K81: % | M81: Face-to-Face (F2F) | U81: NF2F Independent Learning for Assessment (Asynchronous)
M82: Physical | Q82: Online/ Technology-mediated (Synchronous)
D83: 1 | E83: Ujian | K83: 20 | M83: 3 | U83: 4
D84: 2 | E84: Pembentangan Individu | K84: 25 | M84: 2 | U84: 10
D85: 3 | E85: Pembentangan Kumpulan | K85: 15 | M85: 2 | U85: 12
D86: 4
D87: 5
D88: SUB-TOTAL SLT: | X88: =SUM(M83:W87) -> 33
D89: Final Assessement | K89: % | M89: Face-to-Face (F2F) | U89: NF2F Independent Learning for Assessment (Asynchronous)
M90: Physical | Q90: Online/ Technology-mediated (Synchronous)
D91: 1 | E91: Peperiksaan Akhir | K91: 40 | M91: 2 | U91: 6
D92: 2
D93: 3
D94: 4
D95: 5
D96: SUB-TOTAL SLT: | X96: =SUM(M91:W95) -> 8
D98: SLT for Assessment: | X98: =X88+X96 -> 41
D99: GRAND TOTAL SLT: | X99: =X98+X80 -> 80
D100: A | E100: % SLT for F2F Physical Component: [Total F2F Physical /(Total F2F Physical + Total F2F Online + Total Independent Learning) x 100)] | X100: =IFERROR(((SUM(M60:P79)+SUM(M83:P87)+SUM(M91:P95))/X99)* 100,"") -> 37.5
D102: B | E102: % SLT for Online & Independent Learning Component: [(Total F2F Online + Total Independent Learning) /( Total F2F Physical + Total F2F Online + Total Independent Learning) x 100] | X102: =IFERROR((SUM(Q60:W79)+SUM(Q83:W87) + SUM(Q91:W95))/X99 * 100,"") -> 62.5
D103: C | E103: % SLT for All Practical Component: [% F2F Physical Practical + % F2F Online Practical] | X103: =IFERROR(X104+X105,"") -> 0
D104: C1 | E104: % SLT for F2F Physical Practical Component [Total F2F Physical Practical /( Total F2F Physical + Total F2F Online + Total Independent Learning) x 100)] | X104: =IFERROR(SUM(O60:O79)/X99*100,"") -> 0
D105: C2 | E105: % SLT for F2F Online Practical Component [Total F2F Online Practical / (Total F2F Physical + Total F2F Online + Total Independent Learning) x 100] | X105: =IFERROR(SUM(S60:S79)/X99 *100,"") -> 0
Z106: =IFERROR(X102+X104,"") -> 62.5
D107: Please tick (√) if this course is Industrial Training/ Clinical Placement/ Practicum using 50% of Effective Learning Time (ELT)
D108: Note:
D109: * Indicate the CLO based on the CLO's numbering in Item 8
D110: ** For ODL programme: Courses with mandatory practical requiremnets imposed by the programme standards or any related standards can be exempted from complying to the minimum 80% ODL delivery rule in the SLT.
B112: 11 | C112: Identify special requirement or resources to deliver the course (e.g., software, nursery, computer lab, simulation room etc)
B114: 12 | C114: References (include required and further readings, and should be the most current) | K114: Yong, C. C., Rohaidah Mashudi, Maarof Abd Rahman. (2012). Bahasa Kebangsaan untuk Pelajar Luar Negara. Malay Language for International Studensts. Petaling Jaya : Pearson Malaysia. Zarina Othman, Roosfa Hashim & Rusdi Abdullah. (2012). Modul Komunikasi Bahasa Melayu Antarabangsa, KPT. Penerbit UKM Press. Mardian Shah Omar. (2016). Perbualan Mudah Bahasa Melayu untuk Pelancong Asing. Kuala Lumpur : Dewan Bahasa dan Pustaka
B116: 13 | C116: Other additional information (if applicable)
C119: Note: Number of PLO indicated is purely for illustration purposes only and the number is subjected to the curriculum design.

Sheet PST 1011
B2: Back To FORM @ TEMPLATE
AI3: √
B5: 1 | C5: Course Name: | F5: Program Pembangunan Syakhsiah Terpuji 1 (Pesat 1) | AI5: Semester
C6: Course Code: | F6: PST 1011 | AI6: 1
C7: Course Classification: | F7: Compulsory | AI7: 2
B8: 2 | C8: Synopsis: | F8: Kursus ini menekankan kepada 3 aspek utama iaitu latihan membaca Al-quran dengan hukum asas tajwid yang betul serta menghafaz surah Al-Fatihah, An-Nas, Al-Falaq, Al-Ikhlas; pelaksanaan solat dengan tertib yang sah serta mengerjakan solat fardu secukupnya; dan kefahaman akan hakikat asas–asas Islam yang meliputi Aqidah, Ibadah dan Akhlak. | AI8: 3
B9: =B8+1 -> 3 | C9: Name(s) of Academic Staff: | F9: 1 | G9: Ustaz Mahamad Bin Senik
F10: 2 | G10: Ustaz Mohd Khairol Bin Mokhtar | AI10: Year Offered
F11: 3 | G11: Ustazah Radin Seri Nabahah Binti Ahmad Zabidi | AI11: 1
B12: =B9+1 -> 4 | C12: Semester and Year offered: | F12: Year Offered | I12: 1 | J12: Semester | L12: 1 | M12: Remarks: | AI12: 2
B13: =B12+1 -> 5 | C13: Credit Value: | F13: =IF(X107 ="√",INT(X99/80),INT(X99/40)) -> 1 | AI13: 3
B14: 6 | C14: Pre-requisite/ co-requisite (if any): | AI14: 4
AI15: 5
B16: 7 | C16: Course Learning Outcomes (CLO) | F16: CLO1 | H16: Mengaplikasikan ilmu Al-Quran, solat dan asas–asas Islam. (C3, PLO1) | AI16: 6
F17: CLO2 | H17: Melaksanakan amali ibadah dengan sempurna. (P3, PLO3) | AI17: 7
F18: CLO3 | H18: Menghafal surah pilihan dengan tajwid yang betul. (A3, LL3, PLO9) | AI18: 8
AI20: Compulsory
AI21: Major (core)
AI22: Minor
AI23: Elective (core)
AI24: Elective (open/free)
B25: 8 | C25: Mapping of the Course Learning Outcomes to the Programme Learning Outcomes, Teaching Methods and Assessment Methods
D27: Course Learning Outcomes | F27: Programme Learning Outcomes (PLO) | R27: Teaching Methods | W27: Assessment Methods
F28: PLO 1 | G28: PLO 2 | H28: PLO 3 | I28: PLO 4 | J28: PLO 5 | K28: PLO 6 | L28: PLO 7 | M28: PLO 8 | N28: PLO 9 | O28: PLO 10 | P28: PLO 11
D29: =IF(ISBLANK(F16),"",F16) -> CLO1 | F29: √ | R29: Kuliah | W29: Kuiz | Ujian |Tugasan
D30: =IF(ISBLANK(F17),"",F17) -> CLO2 | H30: √ | R30: Praktikal Solat | W30: Ujian Amali
D31: CLO3 | N31: √ | R31: Bacaan | Hafazan | W31: Ujian Lisan
AI36: Cognitive skills
D37: Mapping with MQF Cluster of Learning Outcomes | F37: C1 | G37: C2 | H37: C3A | I37: C3B | J37: C3C | K37: C3D | L37: C3E | M37: C3F | N37: C4A | O37: C4B | P37: C5 | AI37: Interpersonal skills
AI38: Communication Skills
AI39: Digital Skills
AI40: Numeracy Skills
D41: Indicate the primary causal link between the CLO and PLO by ticking '√' in the appropriate box. | AI41: Leadership, Autonomy and Responsibility
D42: C1 = Knowledge & Understanding, C2 = Cognitive Skills, C3A = Practical Skills, C3B = Interpersonal Skills, C3C = Communication Skills, C3D = Digital Skills, | AI42: Personal Skills
D43: C3E = Numeracy Skills, C3F = Leadership, Autonomy & Responsibility, C4A = Personal Skills, C4B = Entrepreneurial Skills, C5 = Ethics & Professionalism | AI43: Entrepreneurial Skills
AI44: Ethics and Professionalism
B45: 9 | C45: Transferable Skills (if applicable)
C46: (Skills learned in the course of study which can be useful and utilized in other settings) | I46: 1 | J46: Cognitive skills | AI46: C1
I47: 2 | J47: Personal Skills | AI47: C2
I48: 3 | AI48: C3A
I49: Open-ended response (if any) | AI49: C3B
I50: 4 | J50: Practical skills | AI50: C3C
AI51: C3D
AB52: ` | AI52: C3E
B53: 10 | C53: Distribution of Student Learning Time (SLT) | AI53: C3F
C54: Note: This SLT calculation is designed for home grown programme only. | AI54: C4A
AI55: C4B
D56: Course Content Outline and Subtopics | K56: CLO* | M56: Learning and Teaching Activities** | X56: Total SLT | AI56: C5
M57: Face-to-Face (F2F) | U57: NF2F Independent Learning (Asynchronous)
M58: Physical | Q58: Online/ Technology-mediated (Synchronous)
M59: L | N59: T | O59: P | P59: O | Q59: L | R59: T | S59: P | T59: O
D60: 1 | E60: 1.0 AL-QURAN – ASAS TAJWID DAN HAFAZAN 1.1 Keutamaan Membaca, Menghafal Dan Memahami Al-Quran Serta Adab-Adabnya. 1.2 5 Hukum Asas Tajwid ( Iqlab, Izhar, Idgham Maal Ghunnah Dan Billa Ghunnah, Ikhfa’). 1.3 Menghafaz Surah Al-Fatihah, An-Nas, Al-Falaq, AlIkhlas. | K60: CLO1, CLO3 | M60: 2 | O60: 2 | U60: 4
D61: 2 | E61: 2.0 SOLAT WAJIB YANG SEMPURNA 2.1 Taharah: Wuduk Dan Mandi Wajib. 2.2 Syarat Sah, Rukun, Perkara Yang Membatalkan Solat Serta Perkara Sunat Dalam Solat. 2.3 Praktikal Solat Dan Wuduk. 2.4 Akibat Orang Yang Meninggalkan Solat Fardhu. | K61: CLO1, CLO2 | M61: 2 | O61: 2 | U61: 3
D62: 3 | E62: 3.0 ASAS-ASAS ISLAM : AQIDAH, IBADAH DAN AKHLAK 3.1 Saya Mesti Muslim Di Sudut Aqidah. 3.2 Saya Mesti Muslim Di Sudut Ibadah. 3.3 Saya Mesti Muslim Di Sudut Akhlak. 3.4 Penampilan Dan Rupa Diri Seorang Muslim. 3.5 Islam, Iman Dan Ihsan. 3.6 Taqwa. | K62: CLO1 | M62: 2 | U62: 3
D63: 4
D64: 5
D65: 6
D66: 7
D67: 8
D68: 9
D69: 10
D70: =D69+1 -> 11
D71: =D70+1 -> 12
D72: 13
D73: 14
D74: 15
D75: 16
D76: 17
D77: 18
D78: 19
D79: 20
D80: SUB-TOTAL SLT: | X80: =SUM(M60:P79)+SUM(Q60:T79)+SUM(U60:W79) -> 20
D81: Continous Assessement | K81: % | M81: Face-to-Face (F2F) | U81: NF2F Independent Learning for Assessment (Asynchronous)
M82: Physical | Q82: Online/ Technology-mediated (Synchronous)
D83: 1 | E83: Ujian Amali | K83: 10 | M83: 1 | U83: 2
D84: 2 | E84: Ujian Lisan | K84: 20 | M84: 1 | U84: 2
D85: 3 | E85: Pemerhatian Syakhsiah | K85: 10 | M85: 0
D86: 4 | E86: Tugasan | K86: 30 | M86: 1 | U86: 6
D87: 5 | E87: Ujian & Kuiz | K87: 30 | M87: 1 | U87: 6
D88: SUB-TOTAL SLT: | X88: =SUM(M83:W87) -> 20
D89: Final Assessement | K89: % | M89: Face-to-Face (F2F) | U89: NF2F Independent Learning for Assessment (Asynchronous)
M90: Physical | Q90: Online/ Technology-mediated (Synchronous)
D91: 1
D92: 2
D93: 3
D94: 4
D95: 5
D96: SUB-TOTAL SLT: | X96: =SUM(M91:W95) -> 0
D98: SLT for Assessment: | X98: =X88+X96 -> 20
D99: GRAND TOTAL SLT: | X99: =X98+X80 -> 40
D100: A | E100: % SLT for F2F Physical Component: [Total F2F Physical /(Total F2F Physical + Total F2F Online + Total Independent Learning) x 100)] | X100: =IFERROR(((SUM(M60:P79)+SUM(M83:P87)+SUM(M91:P95))/X99)* 100,"") -> 35
D102: B | E102: % SLT for Online & Independent Learning Component: [(Total F2F Online + Total Independent Learning) /( Total F2F Physical + Total F2F Online + Total Independent Learning) x 100] | X102: =IFERROR((SUM(Q60:W79)+SUM(Q83:W87) + SUM(Q91:W95))/X99 * 100,"") -> 65
D103: C | E103: % SLT for All Practical Component: [% F2F Physical Practical + % F2F Online Practical] | X103: =IFERROR(X104+X105,"") -> 10
D104: C1 | E104: % SLT for F2F Physical Practical Component [Total F2F Physical Practical /( Total F2F Physical + Total F2F Online + Total Independent Learning) x 100)] | X104: =IFERROR(SUM(O60:O79)/X99*100,"") -> 10
D105: C2 | E105: % SLT for F2F Online Practical Component [Total F2F Online Practical / (Total F2F Physical + Total F2F Online + Total Independent Learning) x 100] | X105: =IFERROR(SUM(S60:S79)/X99 *100,"") -> 0
Z106: =IFERROR(X102+X104,"") -> 75
D107: Please tick (√) if this course is Industrial Training/ Clinical Placement/ Practicum using 50% of Effective Learning Time (ELT)
D108: Note:
D109: * Indicate the CLO based on the CLO's numbering in Item 8
D110: ** For ODL programme: Courses with mandatory practical requiremnets imposed by the programme standards or any related standards can be exempted from complying to the minimum 80% ODL delivery rule in the SLT.
B112: 11 | C112: Identify special requirement or resources to deliver the course (e.g., software, nursery, computer lab, simulation room etc)
B114: 12 | C114: References (include required and further readings, and should be the most current) | K114: 1. Fathi Yakan,Alih Bahasa Alias Othman(1983) Apa Erti Saya Menganut Islam. Kuala Lumpur.Pustaka Salam. 2. Irwan Prayitno (2003), Keperibadian Muslim. Bekasi: Pustaka Tarbiatuna. 3. Dr Umar Sulaiman Al-Asyqar, Alih Bahasa Shalahuddin Abdul Rahman. (2008). Iman Kepada Allah. Riyadh. Internasional Islamic Publishing House. 4. Mohd Ali Hashimi, Keperibadian Muslim, Sarjana Media. 5. Dr Yusuf Qaradhawi (2001), Ibadah Dalam Islam, Surabaya, PT. Bina Ilmu. 6. Abul A’laa Maududi,(1980), Asas-asas Islam. The Holy Koran Publishing House. 7. Hasnan Kasan(2011), Mari Memahami dan Menghayati Bacaan Solat, Selangor, Bina Ummah Publication
B116: 13 | C116: Other additional information (if applicable)
C119: Note: Number of PLO indicated is purely for illustration purposes only and the number is subjected to the curriculum design.

Sheet ARB 1112
B2: Back To FORM @ TEMPLATE
AI3: √
B5: 1 | C5: Course Name: | F5: AL-LUGHAH AL-ARABIAH I | AI5: Semester
C6: Course Code: | F6: ARB 1112 | AI6: 1
C7: Course Classification: | F7: Major (core) | AI7: 2
B8: 2 | C8: Synopsis: | F8: This subject introduces the basic concept of introducing the method of using the Arabic language in terms of reading writing up to sentence construction and knowing the use of grammar and nerves. | AI8: 3
B9: =B8+1 -> 3 | C9: Name(s) of Academic Staff: | F9: 1 | G9: NURUL 'IZZAH BINTI M A ZAABA
F10: 2 | AI10: Year Offered
F11: 3 | AI11: 1
B12: =B9+1 -> 4 | C12: Semester and Year offered: | F12: Year Offered | I12: 1 | J12: Semester | L12: 1 | M12: Remarks: | AI12: 2
B13: =B12+1 -> 5 | C13: Credit Value: | F13: =IF(X107 ="√",INT(X99/80),INT(X99/40)) -> 2 | AI13: 3
B14: 6 | C14: Pre-requisite/ co-requisite (if any): | AI14: 4
AI15: 5
B16: 7 | C16: Course Learning Outcomes (CLO) | F16: CLO1 | H16: Use the basic rules of Arabic grammar correctly especially word types, gender, adverbs, pronouns and conjunctions. (C3, PLO1) | AI16: 6
F17: CLO2 | H17: Present the Arabic language concept orally in Islamic values. (A3, CS3, PLO5) | AI17: 7
F18: CLO3 | H18: Demonstrate basic Arabic language skills well in groups. (A3, C3, PLO9) | AI18: 8
AI20: Compulsory
AI21: Major (core)
AI22: Minor
AI23: Elective (core)
AI24: Elective (open/free)
B25: 8 | C25: Mapping of the Course Learning Outcomes to the Programme Learning Outcomes, Teaching Methods and Assessment Methods
D27: Course Learning Outcomes | F27: Programme Learning Outcomes (PLO) | R27: Teaching Methods | W27: Assessment Methods
F28: PLO 1 | G28: PLO 2 | H28: PLO 3 | I28: PLO 4 | J28: PLO 5 | K28: PLO 6 | L28: PLO 7 | M28: PLO 8 | N28: PLO 9 | O28: PLO 10 | P28: PLO 11
D29: =IF(ISBLANK(F16),"",F16) -> CLO1 | F29: √ | R29: Lecture | Discussion | W29: Test | Final Examination
D30: =IF(ISBLANK(F17),"",F17) -> CLO2 | J30: √ | R30: Lecture | Activities | Presentation | W30: Assignment
D31: CLO3 | N31: √ | R31: Discussion| Presentation | W31: Assignment
AI36: Cognitive skills
D37: Mapping with MQF Cluster of Learning Outcomes | F37: C1 | G37: C2 | H37: C3A | I37: C3B | J37: C3C | K37: C3D | L37: C3E | M37: C3F | N37: C4A | O37: C4B | P37: C5 | AI37: Interpersonal skills
AI38: Communication Skills
AI39: Digital Skills
AI40: Numeracy Skills
D41: Indicate the primary causal link between the CLO and PLO by ticking '√' in the appropriate box. | AI41: Leadership, Autonomy and Responsibility
D42: C1 = Knowledge & Understanding, C2 = Cognitive Skills, C3A = Practical Skills, C3B = Interpersonal Skills, C3C = Communication Skills, C3D = Digital Skills, | AI42: Personal Skills
D43: C3E = Numeracy Skills, C3F = Leadership, Autonomy & Responsibility, C4A = Personal Skills, C4B = Entrepreneurial Skills, C5 = Ethics & Professionalism | AI43: Entrepreneurial Skills
AI44: Ethics and Professionalism
B45: 9 | C45: Transferable Skills (if applicable)
C46: (Skills learned in the course of study which can be useful and utilized in other settings) | I46: 1 | J46: Cognitive skills | AI46: C1
I47: 2 | J47: Communication Skills | AI47: C2
I48: 3 | J48: Personal Skills | AI48: C3A
I49: Open-ended response (if any) | AI49: C3B
I50: 4 | AI50: C3C
AI51: C3D
AB52: ` | AI52: C3E
B53: 10 | C53: Distribution of Student Learning Time (SLT) | AI53: C3F
C54: Note: This SLT calculation is designed for home grown programme only. | AI54: C4A
AI55: C4B
D56: Course Content Outline and Subtopics | K56: CLO* | M56: Learning and Teaching Activities** | X56: Total SLT | AI56: C5
M57: Face-to-Face (F2F) | U57: NF2F Independent Learning (Asynchronous)
M58: Physical | Q58: Online/ Technology-mediated (Synchronous)
M59: L | N59: T | O59: P | P59: O | Q59: L | R59: T | S59: P | T59: O
D60: 1 | E60: Text 1 - Qawaid : Aqsam Al-Kalimah | K60: CLO1 | M60: 1 | N60: 1 | U60: 4
D61: 2 | E61: Text 2 - Qawaid : Muzakkar wa Muannath | K61: CLO1, CLO2 | M61: 2 | N61: 2 | U61: 6
D62: 3 | E62: Text 3 - Qawaid : AL-Mufrad, wa Al-Muthanna, wa Al-Jama’ | K62: CLO1 | M62: 2 | N62: 2 | U62: 7
D63: 4 | E63: Text 4 - Qawaid : Al-Domair | K63: CLO3 | M63: 2 | N63: 2 | U63: 7
D64: 5 | E64: Text 5 - Qawaid : Ism Al-Isyarah | K64: CLO3 | M64: 2 | N64: 2 | U64: 7
D65: 6 | E65: Text 6 - Qawaid : Asma al-Mausul | K65: CLO1 | M65: 2 | N65: 2 | U65: 7
D66: 7
D67: 8
D68: 9
D69: 10
D70: =D69+1 -> 11
D71: =D70+1 -> 12
D72: 13
D73: 14
D74: 15
D75: 16
D76: 17
D77: 18
D78: 19
D79: 20
D80: SUB-TOTAL SLT: | X80: =SUM(M60:P79)+SUM(Q60:T79)+SUM(U60:W79) -> 60
D81: Continous Assessement | K81: % | M81: Face-to-Face (F2F) | U81: NF2F Independent Learning for Assessment (Asynchronous)
M82: Physical | Q82: Online/ Technology-mediated (Synchronous)
D83: 1 | E83: Test 1 | K83: 10 | M83: 1 | U83: 1
D84: 2 | E84: Test 2 | K84: 10 | M84: 1 | U84: 1
D85: 3 | E85: Assignment | K85: 15 | M85: 2 | U85: 2
D86: 4 | E86: Presentation | K86: 5 | M86: 1 | U86: 1
D87: 5 | E87: Quiz | K87: 10 | M87: 1 | U87: 1
D88: SUB-TOTAL SLT: | X88: =SUM(M83:W87) -> 12
D89: Final Assessement | K89: % | M89: Face-to-Face (F2F) | U89: NF2F Independent Learning for Assessment (Asynchronous)
M90: Physical | Q90: Online/ Technology-mediated (Synchronous)
D91: 1 | E91: Final Examination | K91: 50 | M91: 2 | U91: 6
D92: 2
D93: 3
D94: 4
D95: 5
D96: SUB-TOTAL SLT: | X96: =SUM(M91:W95) -> 8
D98: SLT for Assessment: | X98: =X88+X96 -> 20
D99: GRAND TOTAL SLT: | X99: =X98+X80 -> 80
D100: A | E100: % SLT for F2F Physical Component: [Total F2F Physical /(Total F2F Physical + Total F2F Online + Total Independent Learning) x 100)] | X100: =IFERROR(((SUM(M60:P79)+SUM(M83:P87)+SUM(M91:P95))/X99)* 100,"") -> 37.5
D102: B | E102: % SLT for Online & Independent Learning Component: [(Total F2F Online + Total Independent Learning) /( Total F2F Physical + Total F2F Online + Total Independent Learning) x 100] | X102: =IFERROR((SUM(Q60:W79)+SUM(Q83:W87) + SUM(Q91:W95))/X99 * 100,"") -> 62.5
D103: C | E103: % SLT for All Practical Component: [% F2F Physical Practical + % F2F Online Practical] | X103: =IFERROR(X104+X105,"") -> 0
D104: C1 | E104: % SLT for F2F Physical Practical Component [Total F2F Physical Practical /( Total F2F Physical + Total F2F Online + Total Independent Learning) x 100)] | X104: =IFERROR(SUM(O60:O79)/X99*100,"") -> 0
D105: C2 | E105: % SLT for F2F Online Practical Component [Total F2F Online Practical / (Total F2F Physical + Total F2F Online + Total Independent Learning) x 100] | X105: =IFERROR(SUM(S60:S79)/X99 *100,"") -> 0
Z106: =IFERROR(X102+X104,"") -> 62.5
D107: Please tick (√) if this course is Industrial Training/ Clinical Placement/ Practicum using 50% of Effective Learning Time (ELT)
D108: Note:
D109: * Indicate the CLO based on the CLO's numbering in Item 8
D110: ** For ODL programme: Courses with mandatory practical requiremnets imposed by the programme standards or any related standards can be exempted from complying to the minimum 80% ODL delivery rule in the SLT.
B112: 11 | C112: Identify special requirement or resources to deliver the course (e.g., software, nursery, computer lab, simulation room etc)
B114: 12 | C114: References (include required and further readings, and should be the most current) | K114: Main references: 1. Al-Lughah Al-Arabiah (2011). Kuala Lumpur : Jabatan Bahasa Arab KUIS. 2. Dr. Mahmud Ismail Sini, Nasif Mustsfa b. Ab. Aziz , Mokhtar al- Tahir , al-Arabiah li al-Nasyin (1983), Saudi Arabia, Wzara al- Ma’arif . 3. Dr. Imad Hatim, al-Lughah al-Arabiah Qawaid wa Nusus, (1980) Tripoli, Libya. Additional References: 1. Abbas Hassan (1971), Al-Nahw al-Wafi, Bairyut, dar al-Ma’arif. 2. Mahmud Husaini al-Mughalasah (1991), al-Nahw al-Syai, Kaherah. Dar al-Basyir. 3. Mustafa Al-Ghayalini (2005), Jami’ Al-Durus Al-Arabiah, Kaherah :Dar Al-Hadith.
B116: 13 | C116: Other additional information (if applicable)
C119: Note: Number of PLO indicated is purely for illustration purposes only and the number is subjected to the curriculum design.

Sheet API1113
B2: Back To FORM @ TEMPLATE
AI3: √
B5: 1 | C5: Course Name: | F5: AL-AQIDAH WA AL AKHLAK AL-ISLAMIYAH | AI5: Semester
C6: Course Code: | F6: API1113 | AI6: 1
C7: Course Classification: | F7: Major (core) | AI7: 2
B8: 2 | C8: Synopsis: | F8: Kursus ini di tawarkan bagi menyediakan ilmu asas berkaitan akidah dan akhlak kepada para pelajar sebagai persediaan untuk mendalami ilmu-ilmu lain. | AI8: 3
B9: =B8+1 -> 3 | C9: Name(s) of Academic Staff: | F9: 1 | G9: WAN MUHAMMAD SILMI BIN HAMZAH
F10: 2 | AI10: Year Offered
F11: 3 | AI11: 1
B12: =B9+1 -> 4 | C12: Semester and Year offered: | F12: Year Offered | I12: 1 | J12: Semester | L12: 1 | M12: Remarks: | AI12: 2
B13: =B12+1 -> 5 | C13: Credit Value: | F13: =IF(X107 ="√",INT(X99/80),INT(X99/40)) -> 3 | AI13: 3
B14: 6 | C14: Pre-requisite/ co-requisite (if any): | AI14: 4
AI15: 5
B16: 7 | C16: Course Learning Outcomes (CLO) | F16: CLO1 | H16: Menggunakan asas Akidah dan akhlak Islam yang sahih berdasarkan Al-Quran dan Al-Hadith. (C3, PLO1) | AI16: 6
F17: CLO2 | H17: Bekerjasama dalam kumpulan untuk melengkapkan pengetahuan Aqidah Islamiyah yang sebenar. (A3, PLO4) | AI17: 7
F18: CLO3 | H18: Membentuk akhlak mahmudah dan menjauhi akhlak mazmumah. (A3, PLO11) | AI18: 8
AI20: Compulsory
AI21: Major (core)
AI22: Minor
AI23: Elective (core)
AI24: Elective (open/free)
B25: 8 | C25: Mapping of the Course Learning Outcomes to the Programme Learning Outcomes, Teaching Methods and Assessment Methods
D27: Course Learning Outcomes | F27: Programme Learning Outcomes (PLO) | R27: Teaching Methods | W27: Assessment Methods
F28: PLO 1 | G28: PLO 2 | H28: PLO 3 | I28: PLO 4 | J28: PLO 5 | K28: PLO 6 | L28: PLO 7 | M28: PLO 8 | N28: PLO 9 | O28: PLO 10 | P28: PLO 11
D29: =IF(ISBLANK(F16),"",F16) -> CLO1 | F29: √ | R29: Lecture | Discussion | W29: Test | Final Examination
D30: =IF(ISBLANK(F17),"",F17) -> CLO2 | I30: √ | R30: Lecture | Activities | W30: Assignment | Test | Final Examination
D31: CLO3 | P31: √ | R31: Lecture | Discussion | W31: Assignment
AI36: Cognitive skills
D37: Mapping with MQF Cluster of Learning Outcomes | F37: C1 | G37: C2 | H37: C3A | I37: C3B | J37: C3C | K37: C3D | L37: C3E | M37: C3F | N37: C4A | O37: C4B | P37: C5 | AI37: Interpersonal skills
AI38: Communication Skills
AI39: Digital Skills
AI40: Numeracy Skills
D41: Indicate the primary causal link between the CLO and PLO by ticking '√' in the appropriate box. | AI41: Leadership, Autonomy and Responsibility
D42: C1 = Knowledge & Understanding, C2 = Cognitive Skills, C3A = Practical Skills, C3B = Interpersonal Skills, C3C = Communication Skills, C3D = Digital Skills, | AI42: Personal Skills
D43: C3E = Numeracy Skills, C3F = Leadership, Autonomy & Responsibility, C4A = Personal Skills, C4B = Entrepreneurial Skills, C5 = Ethics & Professionalism | AI43: Entrepreneurial Skills
AI44: Ethics and Professionalism
B45: 9 | C45: Transferable Skills (if applicable)
C46: (Skills learned in the course of study which can be useful and utilized in other settings) | I46: 1 | J46: Cognitive skills | AI46: C1
I47: 2 | J47: Interpersonal skills | AI47: C2
I48: 3 | J48: Ethics and Professionalism | AI48: C3A
I49: Open-ended response (if any) | AI49: C3B
I50: 4 | AI50: C3C
AI51: C3D
AB52: ` | AI52: C3E
B53: 10 | C53: Distribution of Student Learning Time (SLT) | AI53: C3F
C54: Note: This SLT calculation is designed for home grown programme only. | AI54: C4A
AI55: C4B
D56: Course Content Outline and Subtopics | K56: CLO* | M56: Learning and Teaching Activities** | X56: Total SLT | AI56: C5
M57: Face-to-Face (F2F) | U57: NF2F Independent Learning (Asynchronous)
M58: Physical | Q58: Online/ Technology-mediated (Synchronous)
M59: L | N59: T | O59: P | P59: O | Q59: L | R59: T | S59: P | T59: O
D60: 1 | E60: 1.0 Pengenalan kepada ilmu akidah. 1.1 Definisi al-Aqidah al-Islamiyyah. 1.2 Rukun-rukun iman dan dalil-dalilnya. | K60: CLO1 | M60: 2 | N60: 1 | U60: 3
D61: 2 | E61: 2.0 Tauhid 2.1 Tauhid Rububiyyah. 2.2 Tauhid Uluhiyyah. 2.3 Tauhid Asma dan Sifat. 2.4 Nama dan Sifat Allah. | K61: CLO1, CLO2 | M61: 2 | N61: 2 | U61: 4
D62: 3 | E62: 3.0 Beriman kepada malaikat. 3.1 Sifat dan peranan malaikat. 3.2 Perbezaan malaikat dan manusia. 3.3 Alam Jin dan syaitan. 3.4 Roh dan manusia | K62: CLO2 | M62: 4 | N62: 2 | U62: 5
D63: 4 | E63: 4.0 Beriman kepada kitab. 4.1 Kitab-kitab terdahulu (Taurat, Injil, Zabur dan Suhuf). 4.2 Beriman kepada al-Quran. 4.3 Perbezaan al-Quran dan kitab dahulu. 4.4 Penyelewengan ahli kitab. | K63: CLO2 | M63: 4 | N63: 2 | U63: 5
D64: 5 | E64: 5.0 Beriman kepada nabi dan rasul. 5.1 Keperluan kepada nabi dan rasul. 5.2 Perbezaan nabi dan rasul. 5.3 Sifat nabi dan rasul. 5.4 Ulu al-Azm. 5.5 Khatam al-Anbiya’: Muhammad s.a.w. | K64: CLO2 | M64: 4 | N64: 2 | U64: 5
D65: 6 | E65: 6.0 Beriman kepada hari akhirat. 6.1 Hakikat kematian. 6.2 Tanda-tanda besar kiamat. 6.3 Tanda-tanda kecil kiamat. 6.4 Nama-nama kiamat. 6.5 Peristiwa hari akhirat | K65: CLO2 | M65: 4 | N65: 2 | U65: 4
D66: 7 | E66: 7.0 Beriman kepada qada’ dan qadar. 7.1 Dalil adanya qadar. 7.2 Asas keimanan kepada qadar: percaya sifat-sifat Allah (ilm, qudrah, iradah). 7.3 Usaha dan ikhtiar. 7.4 Perbandingan pandangan Qadariyyah dan Jabariyyah. 7.5 Hidayah dan Kesesatan. 7.6 Hikmah beriman kepada qadar. | K66: CLO2 | M66: 4 | N66: 2 | U66: 4
D67: 8 | E67: 8.0 Perkara-perkara yang membatalkan iman. | K67: CLO1 | M67: 2 | N67: 1 | U67: 3
D68: 9 | E68: 9.0 Definisi akhlak Islamiyah 9.1 Kepentingan akhlak dalam Islam 9.2 Dalil keutamaan akhlak | K68: CLO1 | M68: 4 | N68: 2 | U68: 4
D69: 10 | E69: 10.0 Contoh-contoh akhlak Mahmudah 10.1 Contoh-contoh akhlak Mazmumah | K69: CLO3 | M69: 2 | N69: 2 | U69: 3
D70: =D69+1 -> 11
D71: =D70+1 -> 12
D72: 13
D73: 14
D74: 15
D75: 16
D76: 17
D77: 18
D78: 19
D79: 20
D80: SUB-TOTAL SLT: | X80: =SUM(M60:P79)+SUM(Q60:T79)+SUM(U60:W79) -> 90
D81: Continous Assessement | K81: % | M81: Face-to-Face (F2F) | U81: NF2F Independent Learning for Assessment (Asynchronous)
M82: Physical | Q82: Online/ Technology-mediated (Synchronous)
D83: 1 | E83: Ujian 1 | K83: 10 | M83: 1.5 | U83: 3
D84: 2 | E84: Ujian 2 | K84: 10 | M84: 1.5 | U84: 3
D85: 3 | E85: Tugasan & Pembentangan | K85: 20 | M85: 2 | U85: 6
D86: 4 | E86: Kuiz | K86: 10 | M86: 1 | U86: 1
D87: 5
D88: SUB-TOTAL SLT: | X88: =SUM(M83:W87) -> 19
D89: Final Assessement | K89: % | M89: Face-to-Face (F2F) | U89: NF2F Independent Learning for Assessment (Asynchronous)
M90: Physical | Q90: Online/ Technology-mediated (Synchronous)
D91: 1 | E91: Peperiksaan Akhir | K91: 50 | M91: 2.5 | U91: 8.5
D92: 2
D93: 3
D94: 4
D95: 5
D96: SUB-TOTAL SLT: | X96: =SUM(M91:W95) -> 11
D98: SLT for Assessment: | X98: =X88+X96 -> 30
D99: GRAND TOTAL SLT: | X99: =X98+X80 -> 120
D100: A | E100: % SLT for F2F Physical Component: [Total F2F Physical /(Total F2F Physical + Total F2F Online + Total Independent Learning) x 100)] | X100: =IFERROR(((SUM(M60:P79)+SUM(M83:P87)+SUM(M91:P95))/X99)* 100,"") -> 48.75
D102: B | E102: % SLT for Online & Independent Learning Component: [(Total F2F Online + Total Independent Learning) /( Total F2F Physical + Total F2F Online + Total Independent Learning) x 100] | X102: =IFERROR((SUM(Q60:W79)+SUM(Q83:W87) + SUM(Q91:W95))/X99 * 100,"") -> 51.25
D103: C | E103: % SLT for All Practical Component: [% F2F Physical Practical + % F2F Online Practical] | X103: =IFERROR(X104+X105,"") -> 0
D104: C1 | E104: % SLT for F2F Physical Practical Component [Total F2F Physical Practical /( Total F2F Physical + Total F2F Online + Total Independent Learning) x 100)] | X104: =IFERROR(SUM(O60:O79)/X99*100,"") -> 0
D105: C2 | E105: % SLT for F2F Online Practical Component [Total F2F Online Practical / (Total F2F Physical + Total F2F Online + Total Independent Learning) x 100] | X105: =IFERROR(SUM(S60:S79)/X99 *100,"") -> 0
Z106: =IFERROR(X102+X104,"") -> 51.25
D107: Please tick (√) if this course is Industrial Training/ Clinical Placement/ Practicum using 50% of Effective Learning Time (ELT)
D108: Note:
D109: * Indicate the CLO based on the CLO's numbering in Item 8
D110: ** For ODL programme: Courses with mandatory practical requiremnets imposed by the programme standards or any related standards can be exempted from complying to the minimum 80% ODL delivery rule in the SLT.
B112: 11 | C112: Identify special requirement or resources to deliver the course (e.g., software, nursery, computer lab, simulation room etc)
B114: 12 | C114: References (include required and further readings, and should be the most current) | K114: Rujukan Utama : 1. Abdul al-Rahman Hasan al-Maidani (2012), al-Aqidah al-Islamiyyah wa Ususuha, Damsyiq: Dar al-Qalam. 2. Qahtan Abdul Rahman al-Duri (2012), al-Akidah al-Islamiyyah wa Mazahibuha, Lebanon, Books Publisher. 3. Umar Sulaiman al-Asyqar (2005), Jordan, Dar al-Nafais. 4. Sulaiman Abdullah Al-Asyqar (2004),Aqidah fi Allah,Darul Al-Nafais. 5. Syeikh Al Islam Ibnu Taimiyyah,(2009),Al Aqidah Al Wasatiyyah,Darul Ibn Hazam,Kaherah Rujukan Tambahan : 1. Abu Bakar Jabir al-Jazairi (t.t.), Aqidah al-Mukmin, Kaherah: Dar al-Kitab al-Salafiyyah. 2. Atiyyah Muhammad Atiyyah dkk (1990), al-Aqidah al-Islamiyyah, Jordan: Dar al-Fikr. 3. Sayyid Sabiq (1992), al-Aqa’id al-Islamiyyah, Beirut: Dar al-Kitab al-‘Arabi. 4. Zakaria Abdul Aziz Masri,(2003),Usul Al Aqidah Al Islamiyah,Resalah publications.
B116: 13 | C116: Other additional information (if applicable)
C119: Note: Number of PLO indicated is purely for illustration purposes only and the number is subjected to the curriculum design.

Sheet AQS1123
B2: Back To FORM @ TEMPLATE
AI3: √
B5: 1 | C5: Course Name: | F5: ULUM AL-QURAN I | AI5: Semester
C6: Course Code: | F6: AQS1123 | AI6: 1
C7: Course Classification: | F7: Major (core) | AI7: 2
B8: 2 | C8: Synopsis: | F8: This subject discusses things about Ulum al-Quran namely the definition of Ulum al-Quran, the history of growth and development as well as the earliest works, revelation to the angels and the apostles, the stages of the revelation of the Qur'an, the first and last verses revealed, history collection and writing of the Qur'an, the compilation of verses and surahs, asbab al-nuzul, munasabat, makki and madani, as well as the history of the development of tafsir al-Quran from the first year to the fourth year of the migration. | AI8: 3
B9: =B8+1 -> 3 | C9: Name(s) of Academic Staff: | F9: 1 | G9: WAN MUHAMMAD SILMI BIN HAMZAH
F10: 2 | AI10: Year Offered
F11: 3 | AI11: 1
B12: =B9+1 -> 4 | C12: Semester and Year offered: | F12: Year Offered | I12: 1 | J12: Semester | L12: 1 | M12: Remarks: | AI12: 2
B13: =B12+1 -> 5 | C13: Credit Value: | F13: =IF(X107 ="√",INT(X99/80),INT(X99/40)) -> 3 | AI13: 3
B14: 6 | C14: Pre-requisite/ co-requisite (if any): | AI14: 4
AI15: 5
B16: 7 | C16: Course Learning Outcomes (CLO) | F16: CLO1 | H16: Explain how the concept of Ulum al-Quran and its relationship with the science of tafsir al-Quran. (C3, PLO1) | AI16: 6
F17: CLO2 | H17: Prepare the chronology of the development of Ulum al-Quran. (C3, CTPS3, PLO2) | AI17: 7
F18: CLO3 | H18: Communicate clearly to understand the Quran based on Quranic Scholars. (A3, PLO5) | AI18: 8
AI20: Compulsory
AI21: Major (core)
AI22: Minor
AI23: Elective (core)
AI24: Elective (open/free)
B25: 8 | C25: Mapping of the Course Learning Outcomes to the Programme Learning Outcomes, Teaching Methods and Assessment Methods
D27: Course Learning Outcomes | F27: Programme Learning Outcomes (PLO) | R27: Teaching Methods | W27: Assessment Methods
F28: PLO 1 | G28: PLO 2 | H28: PLO 3 | I28: PLO 4 | J28: PLO 5 | K28: PLO 6 | L28: PLO 7 | M28: PLO 8 | N28: PLO 9 | O28: PLO 10 | P28: PLO 11
D29: =IF(ISBLANK(F16),"",F16) -> CLO1 | F29: √ | R29: Lecture | Discussion | W29: Test | Final Examination
D30: =IF(ISBLANK(F17),"",F17) -> CLO2 | G30: √ | R30: Lecture | Activities | W30: Assignment | Test | Final Examination
D31: CLO3 | J31: √ | R31: Lecture | Discussion | W31: Assignment
AI36: Cognitive skills
D37: Mapping with MQF Cluster of Learning Outcomes | F37: C1 | G37: C2 | H37: C3A | I37: C3B | J37: C3C | K37: C3D | L37: C3E | M37: C3F | N37: C4A | O37: C4B | P37: C5 | AI37: Interpersonal skills
AI38: Communication Skills
AI39: Digital Skills
AI40: Numeracy Skills
D41: Indicate the primary causal link between the CLO and PLO by ticking '√' in the appropriate box. | AI41: Leadership, Autonomy and Responsibility
D42: C1 = Knowledge & Understanding, C2 = Cognitive Skills, C3A = Practical Skills, C3B = Interpersonal Skills, C3C = Communication Skills, C3D = Digital Skills, | AI42: Personal Skills
D43: C3E = Numeracy Skills, C3F = Leadership, Autonomy & Responsibility, C4A = Personal Skills, C4B = Entrepreneurial Skills, C5 = Ethics & Professionalism | AI43: Entrepreneurial Skills
AI44: Ethics and Professionalism
B45: 9 | C45: Transferable Skills (if applicable)
C46: (Skills learned in the course of study which can be useful and utilized in other settings) | I46: 1 | J46: Cognitive skills | AI46: C1
I47: 2 | J47: Communication Skills | AI47: C2
I48: 3 | AI48: C3A
I49: Open-ended response (if any) | AI49: C3B
I50: 4 | AI50: C3C
AI51: C3D
AB52: ` | AI52: C3E
B53: 10 | C53: Distribution of Student Learning Time (SLT) | AI53: C3F
C54: Note: This SLT calculation is designed for home grown programme only. | AI54: C4A
AI55: C4B
D56: Course Content Outline and Subtopics | K56: CLO* | M56: Learning and Teaching Activities** | X56: Total SLT | AI56: C5
M57: Face-to-Face (F2F) | U57: NF2F Independent Learning (Asynchronous)
M58: Physical | Q58: Online/ Technology-mediated (Synchronous)
M59: L | N59: T | O59: P | P59: O | Q59: L | R59: T | S59: P | T59: O
D60: 1 | E60: 1.0 The meaning of Ulum al-Quran 1.1 Meaning the Quran 1.2 Names of the Quran 1.3 Purpose of the Descent of the Quran | M60: 2 | U60: 3
D61: 2 | E61: 2.0 Revelation Revelation 2.1 The meaning of Revelation 2.2 Revelation Revealed to the Angels 2.3 Decreased Revelation to the Apostles | M61: 2 | N61: 1 | U61: 4
D62: 3 | E62: 3.0The decline of the Quran 3.1 History of the Descent of the Quran 3.2 Gradual decline of the Qur'an 3.3 Initial Sentence and Last Sentence Revealed | M62: 2 | N62: 1 | U62: 4
D63: 4 | E63: 4.0 Al-Quran Makki and Madani 4.1 Understanding 4.2 Features and Methods of Recognition 4.3 Differences | M63: 4 | N63: 2 | U63: 4
D64: 5 | E64: 5.0 Asbab al-Nuzul 5.1 Understanding 5.2 Importance 5.3 Sighah and Diversity of History | M64: 4 | N64: 2 | U64: 4
D65: 6 | E65: 6.0 Munasabat Ayat 6.1 Meaning 6.2 Importance 6.3 Study Example | M65: 4 | N65: 2 | U65: 4
D66: 7 | E66: 7.0 History of Quran Collection and Compilation 7.1The time of Rasulullah s.a.w. | M66: 4 | N66: 2 | U66: 4
D67: 8 | E67: 8.0History of Quran Collection and Compilation 8.1 The time of Abu Bakar r.a. | M67: 4 | N67: 2 | U67: 4
D68: 9 | E68: 9.0History of Quran Collection and Compilation 9.1 The time of Uthman r.a. | M68: 4 | N68: 2 | U68: 4
D69: 10 | E69: 10.0 History of Writing of Ulum Al-Quran 10.1 Based on topic | M69: 2 | U69: 2
D70: =D69+1 -> 11 | E70: 11.0 History of Writing of Ulum Al-Quran 11.1 Penulisan lengkap | M70: 2 | U70: 2
D71: =D70+1 -> 12 | E71: 12.0 History of Growth and Writing of Tafsir | M71: 2 | U71: 2
D72: 13
D73: 14
D74: 15
D75: 16
D76: 17
D77: 18
D78: 19
D79: 20
D80: SUB-TOTAL SLT: | X80: =SUM(M60:P79)+SUM(Q60:T79)+SUM(U60:W79) -> 91
D81: Continous Assessement | K81: % | M81: Face-to-Face (F2F) | U81: NF2F Independent Learning for Assessment (Asynchronous)
M82: Physical | Q82: Online/ Technology-mediated (Synchronous)
D83: 1 | E83: Ujian 1 | K83: 10 | M83: 1 | U83: 3
D84: 2 | E84: Ujian 2 | K84: 10 | M84: 1 | U84: 3
D85: 3 | E85: Tugasan & Pembentangan | K85: 20 | M85: 2 | U85: 6
D86: 4 | E86: Kuiz | K86: 10 | M86: 1 | U86: 1
D87: 5
D88: SUB-TOTAL SLT: | X88: =SUM(M83:W87) -> 18
D89: Final Assessement | K89: % | M89: Face-to-Face (F2F) | U89: NF2F Independent Learning for Assessment (Asynchronous)
M90: Physical | Q90: Online/ Technology-mediated (Synchronous)
D91: 1 | E91: Peperiksaan Akhir | K91: 50 | M91: 2.5 | U91: 8.5
D92: 2
D93: 3
D94: 4
D95: 5
D96: SUB-TOTAL SLT: | X96: =SUM(M91:W95) -> 11
D98: SLT for Assessment: | X98: =X88+X96 -> 29
D99: GRAND TOTAL SLT: | X99: =X98+X80 -> 120
D100: A | E100: % SLT for F2F Physical Component: [Total F2F Physical /(Total F2F Physical + Total F2F Online + Total Independent Learning) x 100)] | X100: =IFERROR(((SUM(M60:P79)+SUM(M83:P87)+SUM(M91:P95))/X99)* 100,"") -> 47.91666667
D102: B | E102: % SLT for Online & Independent Learning Component: [(Total F2F Online + Total Independent Learning) /( Total F2F Physical + Total F2F Online + Total Independent Learning) x 100] | X102: =IFERROR((SUM(Q60:W79)+SUM(Q83:W87) + SUM(Q91:W95))/X99 * 100,"") -> 52.08333333
D103: C | E103: % SLT for All Practical Component: [% F2F Physical Practical + % F2F Online Practical] | X103: =IFERROR(X104+X105,"") -> 0
D104: C1 | E104: % SLT for F2F Physical Practical Component [Total F2F Physical Practical /( Total F2F Physical + Total F2F Online + Total Independent Learning) x 100)] | X104: =IFERROR(SUM(O60:O79)/X99*100,"") -> 0
D105: C2 | E105: % SLT for F2F Online Practical Component [Total F2F Online Practical / (Total F2F Physical + Total F2F Online + Total Independent Learning) x 100] | X105: =IFERROR(SUM(S60:S79)/X99 *100,"") -> 0
Z106: =IFERROR(X102+X104,"") -> 52.08333333
D107: Please tick (√) if this course is Industrial Training/ Clinical Placement/ Practicum using 50% of Effective Learning Time (ELT)
D108: Note:
D109: * Indicate the CLO based on the CLO's numbering in Item 8
D110: ** For ODL programme: Courses with mandatory practical requiremnets imposed by the programme standards or any related standards can be exempted from complying to the minimum 80% ODL delivery rule in the SLT.
B112: 11 | C112: Identify special requirement or resources to deliver the course (e.g., software, nursery, computer lab, simulation room etc)
B114: 12 | C114: References (include required and further readings, and should be the most current) | K114: Main references: 1. Mardiana Nordin & Hasnah Hussin. (2011). Pengajian Malaysia. Petaling Jaya. Fajar Bakti Sdn. Bhd. 2. Hairol Anuar Mak Din. (2006). Pengajian Malaysia: Kenegaraan & Patriotisme. Bangi: Kolej Universiti Islam Antarabangsa Selangor. 3. ILBS. (2002). Malaysia Kita. Petaling Jaya: Internasional Law Book Services. 4. Ruslan Zainuddin, Mohd Mahadee Ismail, Zaini Othman. (2005). Kenegaraan Malaysia. Shah Alam: Fajar Bakti Sdn. Bhd. 5. Siti Zurina Abd Majid, (2001). Sejarah Malaysia. Kuala Lumpur: Dewan Bahasa dan Pustaka. Additional References: 1. Ahmad Ibrahim & Aminah Joned. (1987). Sistem Undang-Undang Malaysia. Kuala Lumpur: Dewan Bahasa Dan Pustaka. 2. Asnarulhadi Abu Samah & Jayum A. Jawan. (1997). Kenegaraan Malaysia. Serdang: Penerbit Universiti Putra Malaysia. 3. Mohamad Sofian Hashim. Tan. (1984). Mengenal Perlembagaan Malaysia. Edisi Kedua. Kuala Lumpur; Dewan Bahasa Dan Pustaka.
B116: 13 | C116: Other additional information (if applicable)
C119: Note: Number of PLO indicated is purely for illustration purposes only and the number is subjected to the curriculum design.

Sheet ASY3113
B2: Back To FORM @ TEMPLATE
AI3: √
B5: 1 | C5: Course Name: | F5: FQH AL-IBADAT 1 | AI5: Semester
C6: Course Code: | F6: ASY3113 | AI6: 1
C7: Course Classification: | F7: Major (core) | AI7: 2
B8: 2 | C8: Synopsis: | F8: Perbincangan mengenai hukum-hukum ibadat yang wajib dan sunat, cara-cara bersuci, solat, puasa dan zakat. | AI8: 3
B9: =B8+1 -> 3 | C9: Name(s) of Academic Staff: | F9: 1 | G9: FATIN AWANIS BINTI HAYU
F10: 2 | AI10: Year Offered
F11: 3 | AI11: 1
B12: =B9+1 -> 4 | C12: Semester and Year offered: | F12: Year Offered | I12: 1 | J12: Semester | L12: 1 | M12: Remarks: | AI12: 2
B13: =B12+1 -> 5 | C13: Credit Value: | F13: =IF(X107 ="√",INT(X99/80),INT(X99/40)) -> 3 | AI13: 3
B14: 6 | C14: Pre-requisite/ co-requisite (if any): | AI14: 4
AI15: 5
B16: 7 | C16: Course Learning Outcomes (CLO) | F16: CLO1 | H16: Menerangkan hukum-hukum ibadah khusus dengan jelas. (C2,PLO1) | AI16: 6
F17: CLO2 | H17: Menghuraikan hukum-hukum dengan betul berpandukan rujukan dan maklumat yang tepat.(CTPS, P2, PLO3) | AI17: 7
F18: CLO3 | H18: Mengenalpasti hukum ibadah berdasarkan sumber-sumber asal iaitu al-Quran dan al-Hadith (A3, PLO5) | AI18: 8
AI20: Compulsory
AI21: Major (core)
AI22: Minor
AI23: Elective (core)
AI24: Elective (open/free)
B25: 8 | C25: Mapping of the Course Learning Outcomes to the Programme Learning Outcomes, Teaching Methods and Assessment Methods
D27: Course Learning Outcomes | F27: Programme Learning Outcomes (PLO) | R27: Teaching Methods | W27: Assessment Methods
F28: PLO 1 | G28: PLO 2 | H28: PLO 3 | I28: PLO 4 | J28: PLO 5 | K28: PLO 6 | L28: PLO 7 | M28: PLO 8 | N28: PLO 9 | O28: PLO 10 | P28: PLO 11
D29: =IF(ISBLANK(F16),"",F16) -> CLO1 | F29: √ | R29: Kuliah | Pembelajaran Aktif | Koperatif | W29: Ujian|Kuiz |Peperiksaan akhir
D30: =IF(ISBLANK(F17),"",F17) -> CLO2 | H30: √ | R30: Kuliah| Pembelajaran Aktif |Koperatif | Perbincangan | W30: Ujian|Kuiz |Peperiksaan akhir |Tugasan
D31: CLO3 | J31: √ | R31: Kuliah| Pembelajaran Aktif |Koperatif | Perbincangan | W31: Tugasan |perbentangan
AI36: Cognitive skills
D37: Mapping with MQF Cluster of Learning Outcomes | F37: C1 | G37: C2 | H37: C3A | I37: C3B | J37: C3C | K37: C3D | L37: C3E | M37: C3F | N37: C4A | O37: C4B | P37: C5 | AI37: Interpersonal skills
AI38: Communication Skills
AI39: Digital Skills
AI40: Numeracy Skills
D41: Indicate the primary causal link between the CLO and PLO by ticking '√' in the appropriate box. | AI41: Leadership, Autonomy and Responsibility
D42: C1 = Knowledge & Understanding, C2 = Cognitive Skills, C3A = Practical Skills, C3B = Interpersonal Skills, C3C = Communication Skills, C3D = Digital Skills, | AI42: Personal Skills
D43: C3E = Numeracy Skills, C3F = Leadership, Autonomy & Responsibility, C4A = Personal Skills, C4B = Entrepreneurial Skills, C5 = Ethics & Professionalism | AI43: Entrepreneurial Skills
AI44: Ethics and Professionalism
B45: 9 | C45: Transferable Skills (if applicable)
C46: (Skills learned in the course of study which can be useful and utilized in other settings) | I46: 1 | J46: Cognitive skills | AI46: C1
I47: 2 | J47: Communication Skills | AI47: C2
I48: 3 | AI48: C3A
I49: Open-ended response (if any) | AI49: C3B
I50: 4 | J50: Practical Skills | AI50: C3C
AI51: C3D
AB52: ` | AI52: C3E
B53: 10 | C53: Distribution of Student Learning Time (SLT) | AI53: C3F
C54: Note: This SLT calculation is designed for home grown programme only. | AI54: C4A
AI55: C4B
D56: Course Content Outline and Subtopics | K56: CLO* | M56: Learning and Teaching Activities** | X56: Total SLT | AI56: C5
M57: Face-to-Face (F2F) | U57: NF2F Independent Learning (Asynchronous)
M58: Physical | Q58: Online/ Technology-mediated (Synchronous)
M59: L | N59: T | O59: P | P59: O | Q59: L | R59: T | S59: P | T59: O
D60: 1 | E60: 1.0 Pengenalan Fiqh Al-Ibadat | K60: CLO1 | M60: 6 | N60: 4 | O60: 2 | U60: 10
D61: 2 | E61: 2.0 Taharah 2.1 Pengenalan 2.2 Jenis-jenis Air 2.3 Suci daripada Najis 2.4 Suci daripada Hadas | K61: CLO2 | M61: 8 | N61: 4 | U61: 10
D62: 3 | E62: 3.0 Solat 3.1 Pengenalan 3.2 Solat-Solat Wajib 3.3 Solat-Solat Sunat 3.4 Solat Nawafil | K62: CLO2 | M62: 8 | N62: 4 | O62: 2 | U62: 11
D63: 4 | E63: 4.0 Zakat 4.1 Pengenalan 4.2 Jenis Zakat 4.3 Zakat Fitri 4.4 Nisab Zakat | K63: CLO3 | M63: 8 | N63: 4 | U63: 10
D64: 5
D65: 6
D66: 7
D67: 8
D68: 9
D69: 10
D70: =D69+1 -> 11
D71: =D70+1 -> 12
D72: 13
D73: 14
D74: 15
D75: 16
D76: 17
D77: 18
D78: 19
D79: 20
D80: SUB-TOTAL SLT: | X80: =SUM(M60:P79)+SUM(Q60:T79)+SUM(U60:W79) -> 91
D81: Continous Assessement | K81: % | M81: Face-to-Face (F2F) | U81: NF2F Independent Learning for Assessment (Asynchronous)
M82: Physical | Q82: Online/ Technology-mediated (Synchronous)
D83: 1 | E83: Ujian 1 & 2 | K83: 20 | M83: 2 | U83: 4
D84: 2 | E84: Kuiz | K84: 10 | M84: 1 | U84: 3
D85: 3 | E85: Tugasan & Pembentangan | K85: 20 | M85: 2 | U85: 6
D86: 4
D87: 5
D88: SUB-TOTAL SLT: | X88: =SUM(M83:W87) -> 18
D89: Final Assessement | K89: % | M89: Face-to-Face (F2F) | U89: NF2F Independent Learning for Assessment (Asynchronous)
M90: Physical | Q90: Online/ Technology-mediated (Synchronous)
D91: 1 | E91: Peperiksaan Akhir | K91: 50 | M91: 2.5 | U91: 8.5
D92: 2
D93: 3
D94: 4
D95: 5
D96: SUB-TOTAL SLT: | X96: =SUM(M91:W95) -> 11
D98: SLT for Assessment: | X98: =X88+X96 -> 29
D99: GRAND TOTAL SLT: | X99: =X98+X80 -> 120
D100: A | E100: % SLT for F2F Physical Component: [Total F2F Physical /(Total F2F Physical + Total F2F Online + Total Independent Learning) x 100)] | X100: =IFERROR(((SUM(M60:P79)+SUM(M83:P87)+SUM(M91:P95))/X99)* 100,"") -> 47.91666667
D102: B | E102: % SLT for Online & Independent Learning Component: [(Total F2F Online + Total Independent Learning) /( Total F2F Physical + Total F2F Online + Total Independent Learning) x 100] | X102: =IFERROR((SUM(Q60:W79)+SUM(Q83:W87) + SUM(Q91:W95))/X99 * 100,"") -> 52.08333333
D103: C | E103: % SLT for All Practical Component: [% F2F Physical Practical + % F2F Online Practical] | X103: =IFERROR(X104+X105,"") -> 3.333333333
D104: C1 | E104: % SLT for F2F Physical Practical Component [Total F2F Physical Practical /( Total F2F Physical + Total F2F Online + Total Independent Learning) x 100)] | X104: =IFERROR(SUM(O60:O79)/X99*100,"") -> 3.333333333
D105: C2 | E105: % SLT for F2F Online Practical Component [Total F2F Online Practical / (Total F2F Physical + Total F2F Online + Total Independent Learning) x 100] | X105: =IFERROR(SUM(S60:S79)/X99 *100,"") -> 0
Z106: =IFERROR(X102+X104,"") -> 55.41666667
D107: Please tick (√) if this course is Industrial Training/ Clinical Placement/ Practicum using 50% of Effective Learning Time (ELT)
D108: Note:
D109: * Indicate the CLO based on the CLO's numbering in Item 8
D110: ** For ODL programme: Courses with mandatory practical requiremnets imposed by the programme standards or any related standards can be exempted from complying to the minimum 80% ODL delivery rule in the SLT.
B112: 11 | C112: Identify special requirement or resources to deliver the course (e.g., software, nursery, computer lab, simulation room etc)
B114: 12 | C114: References (include required and further readings, and should be the most current) | K114: Rujukan Utama: Dr. Wahbah al-Zuhaili, (1991) Al-Tafsir al-Munir Fi al-Aqidah Wa al-Syariah Wa al-Manhaj. Beirut : Dar al – Fikr al-Ma’asir Maklumat Tambahan : 1. Ibn Kathir, Abu al-Fida’, Ismail. (1991). Tafsir al-Quran al-Azim. Beirut : Dar al-Fikr 2. Al-Tabari, Muhammad Ibn Jarir. (1986). Jami` al-Bayan wa Ta`wil li Ayi al-Quran. Beirut : Dar al-Ma`rifah 3. Al-Qurtubi, Abu Abdullah Muhammad bin Ahmad (1963), Al-Jami’ li Ahkam al-Quran. Kaherah : Dar al-Kutub al-Misriyyah. 4. Al-Razi, Muhammad Ibn Umar Fakhr al-Din. (1994). Mafatih al-Ghayb. Beirut : Dar al-Fikr
B116: 13 | C116: Other additional information (if applicable)
C119: Note: Number of PLO indicated is purely for illustration purposes only and the number is subjected to the curriculum design.

Sheet CSC1113
B2: Back To FORM @ TEMPLATE
AI3: √
B5: 1 | C5: Course Name: | F5: INTRODUCTION TO COMPUTER HARDWARE AND APPLICATION | AI5: Semester
C6: Course Code: | F6: CSC1113 | AI6: 1
C7: Course Classification: | F7: Major (core) | AI7: 2
B8: 2 | C8: Synopsis: | F8: his course is required to expose students to computer systems, operating systems and the Internet at the initial stage. Syllabus plus learning Microsoft Office computer applications in theoretical and practical and very important for the student to complete the computer literacy that will be used throughout the study. | AI8: 3
B9: =B8+1 -> 3 | C9: Name(s) of Academic Staff: | F9: 1 | G9: Husna binti Ibrahim
F10: 2 | AI10: Year Offered
F11: 3 | AI11: 1
B12: =B9+1 -> 4 | C12: Semester and Year offered: | F12: Year Offered | I12: 1 | J12: Semester | L12: 1 | M12: Remarks: | AI12: 2
B13: =B12+1 -> 5 | C13: Credit Value: | F13: =IF(X107 ="√",INT(X99/80),INT(X99/40)) -> 3 | AI13: 3
B14: 6 | C14: Pre-requisite/ co-requisite (if any): | AI14: 4
AI15: 5
B16: 7 | C16: Course Learning Outcomes (CLO) | F16: CLO1 | H16: Apply the components of computer system and its function, data communication, computer network and office application software. (C3, PLO1) | AI16: 6
F17: CLO2 | H17: Demonstrate skills of Microsoft Word, Microsoft Excel, Microsoft Power Point and Microsoft Access. (C3, CTPS3, PLO7) | AI17: 7
F18: CLO3 | H18: Work collaboratively in a team to accomplish an assigned project within a given time. (A3, PLO4) | AI18: 8
AI20: Compulsory
AI21: Major (core)
AI22: Minor
AI23: Elective (core)
AI24: Elective (open/free)
B25: 8 | C25: Mapping of the Course Learning Outcomes to the Programme Learning Outcomes, Teaching Methods and Assessment Methods
D27: Course Learning Outcomes | F27: Programme Learning Outcomes (PLO) | R27: Teaching Methods | W27: Assessment Methods
F28: PLO 1 | G28: PLO 2 | H28: PLO 3 | I28: PLO 4 | J28: PLO 5 | K28: PLO 6 | L28: PLO 7 | M28: PLO 8 | N28: PLO 9 | O28: PLO 10 | P28: PLO 11
D29: =IF(ISBLANK(F16),"",F16) -> CLO1 | F29: √ | R29: Lecture | Discussion | W29: Test | Final Examination
D30: =IF(ISBLANK(F17),"",F17) -> CLO2 | L30: √ | R30: Lecture | Activities | Presentation | W30: Lab Skill
D31: CLO3 | I31: √ | R31: Discussion| Presentation | W31: Assignment
AI36: Cognitive skills
D37: Mapping with MQF Cluster of Learning Outcomes | F37: C1 | G37: C2 | H37: C3A | I37: C3B | J37: C3C | K37: C3D | L37: C3E | M37: C3F | N37: C4A | O37: C4B | P37: C5 | AI37: Interpersonal skills
AI38: Communication Skills
AI39: Digital Skills
AI40: Numeracy Skills
D41: Indicate the primary causal link between the CLO and PLO by ticking '√' in the appropriate box. | AI41: Leadership, Autonomy and Responsibility
D42: C1 = Knowledge & Understanding, C2 = Cognitive Skills, C3A = Practical Skills, C3B = Interpersonal Skills, C3C = Communication Skills, C3D = Digital Skills, | AI42: Personal Skills
D43: C3E = Numeracy Skills, C3F = Leadership, Autonomy & Responsibility, C4A = Personal Skills, C4B = Entrepreneurial Skills, C5 = Ethics & Professionalism | AI43: Entrepreneurial Skills
AI44: Ethics and Professionalism
B45: 9 | C45: Transferable Skills (if applicable)
C46: (Skills learned in the course of study which can be useful and utilized in other settings) | I46: 1 | J46: Cognitive skills | AI46: C1
I47: 2 | J47: Numeracy Skills | AI47: C2
I48: 3 | J48: Interpersonal skills | AI48: C3A
I49: Open-ended response (if any) | AI49: C3B
I50: 4 | AI50: C3C
AI51: C3D
AB52: ` | AI52: C3E
B53: 10 | C53: Distribution of Student Learning Time (SLT) | AI53: C3F
C54: Note: This SLT calculation is designed for home grown programme only. | AI54: C4A
AI55: C4B
D56: Course Content Outline and Subtopics | K56: CLO* | M56: Learning and Teaching Activities** | X56: Total SLT | AI56: C5
M57: Face-to-Face (F2F) | U57: NF2F Independent Learning (Asynchronous)
M58: Physical | Q58: Online/ Technology-mediated (Synchronous)
M59: L | N59: T | O59: P | P59: O | Q59: L | R59: T | S59: P | T59: O
D60: 1 | E60: 1.0 Computer Systems 1.1 Computer Literacy 1.2 Computer Components 1.3 Advantages and Disadvantages of Computer 1.4 Category Computer 1.5 Data and Information 1.6 Components of System Unit 1.7 Computer Software | K60: CLO1 | M60: 2 | N60: 2 | U60: 2
D61: 2 | E61: 2.0 Operating System 2.1 Operating System 2.2 Initialize and Manage Windows 2.3 Control Panel 2.4 Installation of Windows 10 | K61: CLO1, CLO2 | M61: 4 | N61: 2 | U61: 4
D62: 3 | E62: 3.0 Internet 3.1 Network and Internet 3.2 Web Browser 3.3 Internet Service 3.4 History of the Internet 3.5 Connecting to the World Wide Web (WWW) 3.6 Search Engine 3.7 Use the Internet and search | K62: CLO1 | M62: 4 | N62: 2 | U62: 4
D63: 4 | E63: 4.0 Word Processing 4.1 Window Word 4.2 Block Text 4.3 Spelling and Grammar 4.4 Save (Save and Save As) 4.5 Text and paragraph 4.6 Undo and Redo 4.7 Clip Art 4.8 Print and Print Preview 4.9 Setting margins 4.10 Header / Footer 4.11 Shortcut keys 4.12 Footnotes 4.13 Count 4.14 Hyperlink 4.15 Word Wizard 4.16 Templates 4.17 Clipboard 4.18 Table | K63: CLO2, CLO3 | M63: 4 | N63: 2 | U63: 4
D64: 5 | E64: 5.0 Graphic Presentation MS Powerpoint 5.1 PowerPoint Window 5.2 Template design 5.3 slide layout 5.4 Single and Multilevel Bulleted List 5.5 Slide View 5.6 Print Slide (slides, handouts, outline) 5.7 Clip art, table, graph 5.8 Animation 5.9 The movement of the slide 5.10 Sound, the movie 5.11 Wizard | K64: CLO2, CLO3 | M64: 4 | N64: 2 | U64: 4
D65: 6 | E65: 6.0 Electronic Sheet MS Excel 6.1 Excel Window 6.2 AutoSum 6.3 Copy Tues 6.4 Format cells and worksheet 6.5 Charts / graphs 6.6 Save and Print 6.7 AutoCalculate 6.8 Formula 6.9 Bandwidth, line 6.10 References 6.11 IF analysis | K65: CLO2, CLO3 | M65: 4 | N65: 2 | U65: 5
D66: 7 | E66: 7.0 MS Access Data Base 7.1 Database Concepts 7.2 Data Types 7.3 Ms Access Database 7.4 Wizard and Design 7.5 Objects in MS Access | K66: CLO2, CLO3 | M66: 4 | N66: 2 | U66: 4
D67: 8
D68: 9
D69: 10
D70: =D69+1 -> 11
D71: =D70+1 -> 12
D72: 13
D73: 14
D74: 15
D75: 16
D76: 17
D77: 18
D78: 19
D79: 20
D80: SUB-TOTAL SLT: | X80: =SUM(M60:P79)+SUM(Q60:T79)+SUM(U60:W79) -> 67
D81: Continous Assessement | K81: % | M81: Face-to-Face (F2F) | U81: NF2F Independent Learning for Assessment (Asynchronous)
M82: Physical | Q82: Online/ Technology-mediated (Synchronous)
D83: 1 | E83: Lab Skill (5) | K83: 10 | M83: 10 | U83: 5
D84: 2 | E84: Test (2) | K84: 20 | M84: 4 | U84: 4
D85: 3 | E85: Assignment (4) | K85: 10 | U85: 10
D86: 4 | E86: Project | K86: 10 | M86: 2 | U86: 10
D87: 5
D88: SUB-TOTAL SLT: | X88: =SUM(M83:W87) -> 45
D89: Final Assessement | K89: % | M89: Face-to-Face (F2F) | U89: NF2F Independent Learning for Assessment (Asynchronous)
M90: Physical | Q90: Online/ Technology-mediated (Synchronous)
D91: 1 | E91: Final Examination | K91: 50 | M91: 2 | U91: 6
D92: 2
D93: 3
D94: 4
D95: 5
D96: SUB-TOTAL SLT: | X96: =SUM(M91:W95) -> 8
D98: SLT for Assessment: | X98: =X88+X96 -> 53
D99: GRAND TOTAL SLT: | X99: =X98+X80 -> 120
D100: A | E100: % SLT for F2F Physical Component: [Total F2F Physical /(Total F2F Physical + Total F2F Online + Total Independent Learning) x 100)] | X100: =IFERROR(((SUM(M60:P79)+SUM(M83:P87)+SUM(M91:P95))/X99)* 100,"") -> 48.33333333
D102: B | E102: % SLT for Online & Independent Learning Component: [(Total F2F Online + Total Independent Learning) /( Total F2F Physical + Total F2F Online + Total Independent Learning) x 100] | X102: =IFERROR((SUM(Q60:W79)+SUM(Q83:W87) + SUM(Q91:W95))/X99 * 100,"") -> 51.66666667
D103: C | E103: % SLT for All Practical Component: [% F2F Physical Practical + % F2F Online Practical] | X103: =IFERROR(X104+X105,"") -> 0
D104: C1 | E104: % SLT for F2F Physical Practical Component [Total F2F Physical Practical /( Total F2F Physical + Total F2F Online + Total Independent Learning) x 100)] | X104: =IFERROR(SUM(O60:O79)/X99*100,"") -> 0
D105: C2 | E105: % SLT for F2F Online Practical Component [Total F2F Online Practical / (Total F2F Physical + Total F2F Online + Total Independent Learning) x 100] | X105: =IFERROR(SUM(S60:S79)/X99 *100,"") -> 0
Z106: =IFERROR(X102+X104,"") -> 51.66666667
D107: Please tick (√) if this course is Industrial Training/ Clinical Placement/ Practicum using 50% of Effective Learning Time (ELT)
D108: Note:
D109: * Indicate the CLO based on the CLO's numbering in Item 8
D110: ** For ODL programme: Courses with mandatory practical requiremnets imposed by the programme standards or any related standards can be exempted from complying to the minimum 80% ODL delivery rule in the SLT.
B112: 11 | C112: Identify special requirement or resources to deliver the course (e.g., software, nursery, computer lab, simulation room etc) | K112: Microsoft Office Package
B114: 12 | C114: References (include required and further readings, and should be the most current) | K114: 1. Vermaat, S Freund, C Frydenberg. (2017) Discovering Computer 2018, Digital Technology, Data and Devices. Course Technology, Cengage Learning. 2. Shelly Cashmean Vermaat. Microsoft Office, Introductoy Concept and Technique, 2013. International Student Edition. Thomson Course Technology. 3. Modul Pengenalan Teknologi Komputer (2001). Terbitan UTM. 4. Stacy C.Sawyer. (2005) Brian K. Williams McGraw Hill. Using Information Technology. 5. Peter Norton. (2003). Introduction to Computers. Glencoe/McGraw Hill. 6. Larry Long & Nancy Long. (2004). Computers Information Technology in Perspective. Pearson, Prentice Hall.
B116: 13 | C116: Other additional information (if applicable) | K116: Lab Activities: LAB 1 : Component of Computer System LAB 2 : Installing of OS - Windows LAB 3 : Internet - Browser and Search Engine LAB 4 : Microsoft Word LAB 5 : Microsoft Excel LAB 6 : Microsoft Power Point LAB 7 : Microsoft Access
C119: Note: Number of PLO indicated is purely for illustration purposes only and the number is subjected to the curriculum design.

Sheet MPU2312
B2: Back To FORM @ TEMPLATE
AI3: √
B5: 1 | C5: Course Name: | F5: Pengajian Islam | AI5: Semester
C6: Course Code: | F6: MPU2312 | AI6: 1
C7: Course Classification: | F7: Compulsory | AI7: 2
B8: 2 | C8: Synopsis: | F8: Kursus ini disediakan untuk melahirkan warganegara yang faham tasawwur (konsep)Islam sebagai satu cara hidup yang bersepadu dan seimbang serta berupaya menghadapi pelbagai masalah dan cabaran.Perbincangan berasaskan kepada konsep-konsep asas Islam, Islam sebagai cara hidup, institusi Islam dan cabaran semasa. Pengajaran dan pembelajaran akan dilaksanakan dalam bentuk kuliah, tugasan, peperiksaan, pengalaman pembelajaran atau pembelajaran berasaskan masalah | AI8: 3
B9: =B8+1 -> 3 | C9: Name(s) of Academic Staff: | F9: 1 | G9: NOOR ENAIDA BT TUTAN KHAMIN
F10: 2 | AI10: Year Offered
F11: 3 | AI11: 1
B12: =B9+1 -> 4 | C12: Semester and Year offered: | F12: Year Offered | I12: 2 | J12: Semester | L12: 1 | M12: Remarks: | AI12: 2
B13: =B12+1 -> 5 | C13: Credit Value: | F13: =IF(X107 ="√",INT(X99/80),INT(X99/40)) -> 2 | AI13: 3
B14: 6 | C14: Pre-requisite/ co-requisite (if any): | AI14: 4
AI15: 5
B16: 7 | C16: Course Learning Outcomes (CLO) | F16: CLO1 | H16: Membincangkan tasawwur Islam dalam pembentukan sistem nilai masyarakat Malaysia. (A3, EM3,PLO11) | AI16: 6
F17: CLO2 | H17: Mempamerkan kebolehan komunikasi sosial dalam kepelbagaian agama. (A3, CS3, PLO5) | AI17: 7
F18: CLO3 | H18: Menghubung kait institusi Islam dengan isu kemasyarakatan semasa. (A3, LL3, PLO9) | AI18: 8
AI20: Compulsory
AI21: Major (core)
AI22: Minor
AI23: Elective (core)
AI24: Elective (open/free)
B25: 8 | C25: Mapping of the Course Learning Outcomes to the Programme Learning Outcomes, Teaching Methods and Assessment Methods
D27: Course Learning Outcomes | F27: Programme Learning Outcomes (PLO) | R27: Teaching Methods | W27: Assessment Methods
F28: PLO 1 | G28: PLO 2 | H28: PLO 3 | I28: PLO 4 | J28: PLO 5 | K28: PLO 6 | L28: PLO 7 | M28: PLO 8 | N28: PLO 9 | O28: PLO 10 | P28: PLO 11
D29: =IF(ISBLANK(F16),"",F16) -> CLO1 | P29: √ | R29: Kuliah Interaktif| E-pembelajaran |aktiviti berkumpulan | W29: Laporan Bertulis| Peperiksaan Akhir
D30: =IF(ISBLANK(F17),"",F17) -> CLO2 | J30: √ | R30: Aktiviti berkumpulan | W30: Pembentangan
D31: CLO3 | N31: √ | R31: Aktiviti berkumpulan | W31: Pembentangan | Refleksi
AI36: Cognitive skills
D37: Mapping with MQF Cluster of Learning Outcomes | F37: C1 | G37: C2 | H37: C3A | I37: C3B | J37: C3C | K37: C3D | L37: C3E | M37: C3F | N37: C4A | O37: C4B | P37: C5 | AI37: Interpersonal skills
AI38: Communication Skills
AI39: Digital Skills
AI40: Numeracy Skills
D41: Indicate the primary causal link between the CLO and PLO by ticking '√' in the appropriate box. | AI41: Leadership, Autonomy and Responsibility
D42: C1 = Knowledge & Understanding, C2 = Cognitive Skills, C3A = Practical Skills, C3B = Interpersonal Skills, C3C = Communication Skills, C3D = Digital Skills, | AI42: Personal Skills
D43: C3E = Numeracy Skills, C3F = Leadership, Autonomy & Responsibility, C4A = Personal Skills, C4B = Entrepreneurial Skills, C5 = Ethics & Professionalism | AI43: Entrepreneurial Skills
AI44: Ethics and Professionalism
B45: 9 | C45: Transferable Skills (if applicable)
C46: (Skills learned in the course of study which can be useful and utilized in other settings) | I46: 1 | J46: Communication Skills | AI46: C1
I47: 2 | J47: Interpersonal skills | AI47: C2
I48: 3 | J48: Personal Skills | AI48: C3A
I49: Open-ended response (if any) | AI49: C3B
I50: 4 | AI50: C3C
AI51: C3D
AB52: ` | AI52: C3E
B53: 10 | C53: Distribution of Student Learning Time (SLT) | AI53: C3F
C54: Note: This SLT calculation is designed for home grown programme only. | AI54: C4A
AI55: C4B
D56: Course Content Outline and Subtopics | K56: CLO* | M56: Learning and Teaching Activities** | X56: Total SLT | AI56: C5
M57: Face-to-Face (F2F) | U57: NF2F Independent Learning (Asynchronous)
M58: Physical | Q58: Online/ Technology-mediated (Synchronous)
M59: L | N59: T | O59: P | P59: O | Q59: L | R59: T | S59: P | T59: O
D60: 1 | E60: 1.0 Islam sebagai al-Deen 1.1 Islam dan konsep-konsep asas - Pengertian Islam, Iman, Ihsan - Akidah, Ibadah dan Akhlak - Sumber ilmu islam | K60: CLO 1 | M60: 2 | N60: 1 | U60: 4
D61: 2 | E61: 2.0 Islam dan Konsep-konsep Asas 2.1 Asas-asas Islam - Akidah dan tauhid * Allah * Rasul * Kitab * Malaikat * Hari Kiamat * Qada' dan Qadar - Rukun Islam * Syahadah * Solat * Puasa * Zakat * Haji - Ihsan * Akhlak * Dosa dan Pahala - Aplikasi asas syariah * Definisi Syarak dan Hukum * Ibadah * Muamalat * Munakahat * Jenayah | K61: CLO 1 | M61: 4 | N61: 2 | U61: 6
D62: 3 | E62: 3.0 Institusi Islam 3.1 Insitusi Keluarga - Tanggungjawab ibu bapa dan anak 3.2 Insitusi Masyarakat - Kejiranan - Majmuk 3.3 Institusi Ekonomi - Zakat - Perbankan - Takaful - Ar-Rahnu 3.4 Institusi Pendidikan - Masjid, Pondok, Universiti 3.5 institusi Siasah - Khilafah/mamah - Syura - Hisbah | K62: CLO 1, CLO3 | M62: 4 | N62: 2 | U62: 6
D63: 4 | E63: 4.0 Islam dan Cabaran Semasa 4.1 Gejala Keruntuhan Moral 4.2 Pembangunan Alam Sekitar 4.3 Sains, Teknologi dan ICT 4.4 Globalisasi 4.5 Salah faham terhadap islam 4.6 Salah faham terhadap Islam 4.7 Radikaslisme dan Extremisme dalam beragama 4.8 Dialog Peradaban | K63: CLO 1, CLO2 | M63: 6 | N63: 3 | U63: 8
D64: 5
D65: 6
D66: 7
D67: 8
D68: 9
D69: 10
D70: =D69+1 -> 11
D71: =D70+1 -> 12
D72: 13
D73: 14
D74: 15
D75: 16
D76: 17
D77: 18
D78: 19
D79: 20
D80: SUB-TOTAL SLT: | X80: =SUM(M60:P79)+SUM(Q60:T79)+SUM(U60:W79) -> 48
D81: Continous Assessement | K81: % | M81: Face-to-Face (F2F) | U81: NF2F Independent Learning for Assessment (Asynchronous)
M82: Physical | Q82: Online/ Technology-mediated (Synchronous)
D83: 1 | E83: Pembentangan | K83: 35 | M83: 2 | U83: 10
D84: 2 | E84: Laporan Bertulis/Refleksi | K84: 35 | M84: 2 | U84: 10
D85: 3
D86: 4
D87: 5
D88: SUB-TOTAL SLT: | X88: =SUM(M83:W87) -> 24
D89: Final Assessement | K89: % | M89: Face-to-Face (F2F) | U89: NF2F Independent Learning for Assessment (Asynchronous)
M90: Physical | Q90: Online/ Technology-mediated (Synchronous)
D91: 1 | E91: Peperiksaan Akhir | K91: 30 | M91: 2 | U91: 6
D92: 2
D93: 3
D94: 4
D95: 5
D96: SUB-TOTAL SLT: | X96: =SUM(M91:W95) -> 8
D98: SLT for Assessment: | X98: =X88+X96 -> 32
D99: GRAND TOTAL SLT: | X99: =X98+X80 -> 80
D100: A | E100: % SLT for F2F Physical Component: [Total F2F Physical /(Total F2F Physical + Total F2F Online + Total Independent Learning) x 100)] | X100: =IFERROR(((SUM(M60:P79)+SUM(M83:P87)+SUM(M91:P95))/X99)* 100,"") -> 37.5
D102: B | E102: % SLT for Online & Independent Learning Component: [(Total F2F Online + Total Independent Learning) /( Total F2F Physical + Total F2F Online + Total Independent Learning) x 100] | X102: =IFERROR((SUM(Q60:W79)+SUM(Q83:W87) + SUM(Q91:W95))/X99 * 100,"") -> 62.5
D103: C | E103: % SLT for All Practical Component: [% F2F Physical Practical + % F2F Online Practical] | X103: =IFERROR(X104+X105,"") -> 0
D104: C1 | E104: % SLT for F2F Physical Practical Component [Total F2F Physical Practical /( Total F2F Physical + Total F2F Online + Total Independent Learning) x 100)] | X104: =IFERROR(SUM(O60:O79)/X99*100,"") -> 0
D105: C2 | E105: % SLT for F2F Online Practical Component [Total F2F Online Practical / (Total F2F Physical + Total F2F Online + Total Independent Learning) x 100] | X105: =IFERROR(SUM(S60:S79)/X99 *100,"") -> 0
Z106: =IFERROR(X102+X104,"") -> 62.5
D107: Please tick (√) if this course is Industrial Training/ Clinical Placement/ Practicum using 50% of Effective Learning Time (ELT)
D108: Note:
D109: * Indicate the CLO based on the CLO's numbering in Item 8
D110: ** For ODL programme: Courses with mandatory practical requiremnets imposed by the programme standards or any related standards can be exempted from complying to the minimum 80% ODL delivery rule in the SLT.
B112: 11 | C112: Identify special requirement or resources to deliver the course (e.g., software, nursery, computer lab, simulation room etc)
B114: 12 | C114: References (include required and further readings, and should be the most current) | K114: Al-Mawdudi, Abu al-Ala. (2010). Towards Understanding Islam. Singapore : Pustaka Nasional Beg,M.A.J (2004). The Images of Ismlamic Civilization. Kuala Lumpur : University of Malaya Press. Mohd Yusuf Ahmad. (2003). Pengajian Islam. Kuala Lumpur : Penerbit Universiti Malaya. Sulaiman Nordin. (2013). Sejarah Pemikiran 2. Bangi : Pusat Pengajian Umum.
B116: 13 | C116: Other additional information (if applicable)
C119: Note: Number of PLO indicated is purely for illustration purposes only and the number is subjected to the curriculum design.

Sheet PST 1021
B2: Back To FORM @ TEMPLATE
AI3: √
B5: 1 | C5: Course Name: | F5: Program Pembangunan Syakhsiah Terpuji 2 (Pesat 2) | AI5: Semester
C6: Course Code: | F6: PST 1021 | AI6: 1
C7: Course Classification: | F7: Compulsory | AI7: 2
B8: 2 | C8: Synopsis: | F8: Kursus ini menekankan kepada perkara-perkara asas dalam Islam iaitu menghafaz 9 ayat daripada surah-surah lazim dalam Al-Quran, menanam kesedaran kepada pelajar supaya mengamal solat berjemaah serta kefahaman mengenai tuntutan Islam dalam diri, keluarga bagi menjamin masa depan Islamnya. | AI8: 3
B9: =B8+1 -> 3 | C9: Name(s) of Academic Staff: | F9: 1 | G9: Ustaz Mahamad Bin Senik
F10: 2 | G10: Ustaz Mohd Khairol Bin Mokhtar | AI10: Year Offered
F11: 3 | G11: Ustazah Radin Seri Nabahah Binti Ahmad Zabidi | AI11: 1
B12: =B9+1 -> 4 | C12: Semester and Year offered: | F12: Year Offered | I12: 2 | J12: Semester | L12: 1 | M12: Remarks: | AI12: 2
B13: =B12+1 -> 5 | C13: Credit Value: | F13: =IF(X107 ="√",INT(X99/80),INT(X99/40)) -> 1 | AI13: 3
B14: 6 | C14: Pre-requisite/ co-requisite (if any): | AI14: 4
AI15: 5
B16: 7 | C16: Course Learning Outcomes (CLO) | F16: CLO1 | H16: Mengaplikasikan ilmu Al-Quran, solat jemaah dan tuntutan Islam dalam diri dan keluarga. (C3, PLO1) | AI16: 6
F17: CLO2 | H17: Melaksanakan amali ibadah dengan sempurna. (P3, PLO3) | AI17: 7
F18: CLO3 | H18: Menghafal surah pilihan dengan tajwid yang betul. (A3, LL3, PLO9) | AI18: 8
AI20: Compulsory
AI21: Major (core)
AI22: Minor
AI23: Elective (core)
AI24: Elective (open/free)
B25: 8 | C25: Mapping of the Course Learning Outcomes to the Programme Learning Outcomes, Teaching Methods and Assessment Methods
D27: Course Learning Outcomes | F27: Programme Learning Outcomes (PLO) | R27: Teaching Methods | W27: Assessment Methods
F28: PLO 1 | G28: PLO 2 | H28: PLO 3 | I28: PLO 4 | J28: PLO 5 | K28: PLO 6 | L28: PLO 7 | M28: PLO 8 | N28: PLO 9 | O28: PLO 10 | P28: PLO 11
D29: =IF(ISBLANK(F16),"",F16) -> CLO1 | F29: √ | R29: Kuliah | W29: Kuiz | Ujian |Tugasan
D30: =IF(ISBLANK(F17),"",F17) -> CLO2 | H30: √ | R30: Praktikal Solat | W30: Ujian Amali
D31: CLO3 | N31: √ | R31: Bacaan | Hafazan | W31: Ujian Lisan
AI36: Cognitive skills
D37: Mapping with MQF Cluster of Learning Outcomes | F37: C1 | G37: C2 | H37: C3A | I37: C3B | J37: C3C | K37: C3D | L37: C3E | M37: C3F | N37: C4A | O37: C4B | P37: C5 | AI37: Interpersonal skills
AI38: Communication Skills
AI39: Digital Skills
AI40: Numeracy Skills
D41: Indicate the primary causal link between the CLO and PLO by ticking '√' in the appropriate box. | AI41: Leadership, Autonomy and Responsibility
D42: C1 = Knowledge & Understanding, C2 = Cognitive Skills, C3A = Practical Skills, C3B = Interpersonal Skills, C3C = Communication Skills, C3D = Digital Skills, | AI42: Personal Skills
D43: C3E = Numeracy Skills, C3F = Leadership, Autonomy & Responsibility, C4A = Personal Skills, C4B = Entrepreneurial Skills, C5 = Ethics & Professionalism | AI43: Entrepreneurial Skills
AI44: Ethics and Professionalism
B45: 9 | C45: Transferable Skills (if applicable)
C46: (Skills learned in the course of study which can be useful and utilized in other settings) | I46: 1 | J46: Cognitive skills | AI46: C1
I47: 2 | J47: Personal Skills | AI47: C2
I48: 3 | AI48: C3A
I49: Open-ended response (if any) | AI49: C3B
I50: 4 | J50: Practical skills | AI50: C3C
AI51: C3D
AB52: ` | AI52: C3E
B53: 10 | C53: Distribution of Student Learning Time (SLT) | AI53: C3F
C54: Note: This SLT calculation is designed for home grown programme only. | AI54: C4A
AI55: C4B
D56: Course Content Outline and Subtopics | K56: CLO* | M56: Learning and Teaching Activities** | X56: Total SLT | AI56: C5
M57: Face-to-Face (F2F) | U57: NF2F Independent Learning (Asynchronous)
M58: Physical | Q58: Online/ Technology-mediated (Synchronous)
M59: L | N59: T | O59: P | P59: O | Q59: L | R59: T | S59: P | T59: O
D60: 1 | E60: 1.0 AL-QURAN-BACAAN DAN HAFAZAN 1.1 Hafazan Ayat-Ayat Pilihan. (i) Surah Al-Masad (ii) Surah An-Nasr (iii) Surah Al-Kafirun (iv) Surah Al-Kausar (v) Surah Al-Maun (vi) Surah Al-Quraish (vii) Surah Al-Fiil (viii) Surah Al-Humazah (ix) Surah Al-Asr 1.2 Hukum Mad Asli Dan Far’iy. 1.3 Kepentingan Menghafal Alquran dan Kaedah Menghafal Al-Quran | K60: CLO1, CLO3 | M60: 2 | O60: 2 | U60: 4
D61: 2 | E61: 2.0 PERLAKSANAAN SOLAT JEMAAH 2.1 Makna bacaan dalam solat. 2.2 Kepentingan Solat Jemaah. 2.3 Cara Solat Jemaah. | K61: CLO1, CLO2 | M61: 2 | O61: 2 | U61: 3
D62: 3 | E62: 3.0 TUNTUTAN ISLAM DALAM DIRI, KELUARGA BAGI MENJAMIN MASA DEPAN ISLAMNYA 3.1 Saya mestilah dapat menguasai diri. 3.2 Saya mestilah Muslim di sudut keluarga. 3.3 Pengurusan cinta dalam melahirkan keluarga Islam yang diberkati. | K62: CLO1 | M62: 2 | U62: 3
D63: 4
D64: 5
D65: 6
D66: 7
D67: 8
D68: 9
D69: 10
D70: =D69+1 -> 11
D71: =D70+1 -> 12
D72: 13
D73: 14
D74: 15
D75: 16
D76: 17
D77: 18
D78: 19
D79: 20
D80: SUB-TOTAL SLT: | X80: =SUM(M60:P79)+SUM(Q60:T79)+SUM(U60:W79) -> 20
D81: Continous Assessement | K81: % | M81: Face-to-Face (F2F) | U81: NF2F Independent Learning for Assessment (Asynchronous)
M82: Physical | Q82: Online/ Technology-mediated (Synchronous)
D83: 1 | E83: Ujian Amali | K83: 10 | M83: 1 | U83: 2
D84: 2 | E84: Ujian Lisan | K84: 20 | M84: 1 | U84: 2
D85: 3 | E85: Pemerhatian Syakhsiah | K85: 10 | M85: 0
D86: 4 | E86: Tugasan | K86: 30 | M86: 1 | U86: 6
D87: 5 | E87: Ujian & Kuiz | K87: 30 | M87: 1 | U87: 6
D88: SUB-TOTAL SLT: | X88: =SUM(M83:W87) -> 20
D89: Final Assessement | K89: % | M89: Face-to-Face (F2F) | U89: NF2F Independent Learning for Assessment (Asynchronous)
M90: Physical | Q90: Online/ Technology-mediated (Synchronous)
D91: 1
D92: 2
D93: 3
D94: 4
D95: 5
D96: SUB-TOTAL SLT: | X96: =SUM(M91:W95) -> 0
D98: SLT for Assessment: | X98: =X88+X96 -> 20
D99: GRAND TOTAL SLT: | X99: =X98+X80 -> 40
D100: A | E100: % SLT for F2F Physical Component: [Total F2F Physical /(Total F2F Physical + Total F2F Online + Total Independent Learning) x 100)] | X100: =IFERROR(((SUM(M60:P79)+SUM(M83:P87)+SUM(M91:P95))/X99)* 100,"") -> 35
D102: B | E102: % SLT for Online & Independent Learning Component: [(Total F2F Online + Total Independent Learning) /( Total F2F Physical + Total F2F Online + Total Independent Learning) x 100] | X102: =IFERROR((SUM(Q60:W79)+SUM(Q83:W87) + SUM(Q91:W95))/X99 * 100,"") -> 65
D103: C | E103: % SLT for All Practical Component: [% F2F Physical Practical + % F2F Online Practical] | X103: =IFERROR(X104+X105,"") -> 10
D104: C1 | E104: % SLT for F2F Physical Practical Component [Total F2F Physical Practical /( Total F2F Physical + Total F2F Online + Total Independent Learning) x 100)] | X104: =IFERROR(SUM(O60:O79)/X99*100,"") -> 10
D105: C2 | E105: % SLT for F2F Online Practical Component [Total F2F Online Practical / (Total F2F Physical + Total F2F Online + Total Independent Learning) x 100] | X105: =IFERROR(SUM(S60:S79)/X99 *100,"") -> 0
Z106: =IFERROR(X102+X104,"") -> 75
D107: Please tick (√) if this course is Industrial Training/ Clinical Placement/ Practicum using 50% of Effective Learning Time (ELT)
D108: Note:
D109: * Indicate the CLO based on the CLO's numbering in Item 8
D110: ** For ODL programme: Courses with mandatory practical requiremnets imposed by the programme standards or any related standards can be exempted from complying to the minimum 80% ODL delivery rule in the SLT.
B112: 11 | C112: Identify special requirement or resources to deliver the course (e.g., software, nursery, computer lab, simulation room etc)
B114: 12 | C114: References (include required and further readings, and should be the most current) | K114: 1. Dr Umar Sulaiman Al-Asyqar, Alih Bahasa Shalahuddin Abdul Rahman. (2008). Iman Kepada Allah. Riyadh. Internasional Islamic Publishing House. 2. Hasnan Kasan(2011), Mari Memahami dan Menghayati Bacaan Solat, Selangor, Bina Ummah Publication 3. Fathi Yakan,Alih Bahasa Alias Othman(1983) Apa Erti Saya Menganut Islam. Kuala Lumpur.Pustaka Salam. 4. Irwan Prayitno (2003), Keperibadian Muslim. Bekasi: Pustaka Tarbiatuna. 5. Mohd Ali Hashimi, Keperibadian Muslim, Sarjana Media. 6. Dr Yusuf Qaradhawi (2001), Ibadah Dalam Islam, Surabaya, PT. Bina Ilmu. 7. Abul A’laa Maududi,(1980), Asas-asas Islam. The Holy Koran Publishing House.
B116: 13 | C116: Other additional information (if applicable)
C119: Note: Number of PLO indicated is purely for illustration purposes only and the number is subjected to the curriculum design.

Sheet ARB 1122
B2: Back To FORM @ TEMPLATE
AI3: √
B5: 1 | C5: Course Name: | F5: AL-LUGHAH AL-ARABIAH II | AI5: Semester
C6: Course Code: | F6: ARB 1122 | AI6: 1
C7: Course Classification: | F7: Major (core) | AI7: 2
B8: 2 | C8: Synopsis: | F8: This course provides a lot of information related to sentence formation techniques from nouns and verbs, adjectives and others as well as helping students understand the lessons written in Arabic, especially through exposure or referring to Arabic books. | AI8: 3
B9: =B8+1 -> 3 | C9: Name(s) of Academic Staff: | F9: 1 | G9: NURUL 'IZZAH BINTI M A ZAABA
F10: 2 | AI10: Year Offered
F11: 3 | AI11: 1
B12: =B9+1 -> 4 | C12: Semester and Year offered: | F12: Year Offered | I12: 2 | J12: Semester | L12: 1 | M12: Remarks: | AI12: 2
B13: =B12+1 -> 5 | C13: Credit Value: | F13: =IF(X107 ="√",INT(X99/80),INT(X99/40)) -> 2 | AI13: 3
B14: 6 | C14: Pre-requisite/ co-requisite (if any): | AI14: 4
AI15: 5
B16: 7 | C16: Course Learning Outcomes (CLO) | F16: CLO1 | H16: Explain the basic rules of Arabic grammar correctly such as mubtada ', khabar, inna wa akhawatuha, kana wa akhawatuha, harf al-jarr wa al-zarf. (C2,PLO1) | AI16: 6
F17: CLO2 | H17: Present the Arabic language concept orally and writing the ideas of Islamic values. (A3, PLO5) | AI17: 7
F18: CLO3 | H18: Work collaboratively in a team to practice basic Arabic language skills. (A3, PLO9) | AI18: 8
AI20: Compulsory
AI21: Major (core)
AI22: Minor
AI23: Elective (core)
AI24: Elective (open/free)
B25: 8 | C25: Mapping of the Course Learning Outcomes to the Programme Learning Outcomes, Teaching Methods and Assessment Methods
D27: Course Learning Outcomes | F27: Programme Learning Outcomes (PLO) | R27: Teaching Methods | W27: Assessment Methods
F28: PLO 1 | G28: PLO 2 | H28: PLO 3 | I28: PLO 4 | J28: PLO 5 | K28: PLO 6 | L28: PLO 7 | M28: PLO 8 | N28: PLO 9 | O28: PLO 10 | P28: PLO 11
D29: =IF(ISBLANK(F16),"",F16) -> CLO1 | F29: √ | R29: Lecture | Discussion | W29: Test | Final Examination
D30: =IF(ISBLANK(F17),"",F17) -> CLO2 | J30: √ | R30: Lecture | Activities | Presentation | W30: Assignment | Test | Final Examination
D31: CLO3 | N31: √ | R31: Discussion| Presentation | W31: Assignment
AI36: Cognitive skills
D37: Mapping with MQF Cluster of Learning Outcomes | F37: C1 | G37: C2 | H37: C3A | I37: C3B | J37: C3C | K37: C3D | L37: C3E | M37: C3F | N37: C4A | O37: C4B | P37: C5 | AI37: Interpersonal skills
AI38: Communication Skills
AI39: Digital Skills
AI40: Numeracy Skills
D41: Indicate the primary causal link between the CLO and PLO by ticking '√' in the appropriate box. | AI41: Leadership, Autonomy and Responsibility
D42: C1 = Knowledge & Understanding, C2 = Cognitive Skills, C3A = Practical Skills, C3B = Interpersonal Skills, C3C = Communication Skills, C3D = Digital Skills, | AI42: Personal Skills
D43: C3E = Numeracy Skills, C3F = Leadership, Autonomy & Responsibility, C4A = Personal Skills, C4B = Entrepreneurial Skills, C5 = Ethics & Professionalism | AI43: Entrepreneurial Skills
AI44: Ethics and Professionalism
B45: 9 | C45: Transferable Skills (if applicable)
C46: (Skills learned in the course of study which can be useful and utilized in other settings) | I46: 1 | J46: Cognitive skills | AI46: C1
I47: 2 | J47: Communication Skills | AI47: C2
I48: 3 | J48: Personal Skills | AI48: C3A
I49: Open-ended response (if any) | AI49: C3B
I50: 4 | AI50: C3C
AI51: C3D
AB52: ` | AI52: C3E
B53: 10 | C53: Distribution of Student Learning Time (SLT) | AI53: C3F
C54: Note: This SLT calculation is designed for home grown programme only. | AI54: C4A
AI55: C4B
D56: Course Content Outline and Subtopics | K56: CLO* | M56: Learning and Teaching Activities** | X56: Total SLT | AI56: C5
M57: Face-to-Face (F2F) | U57: NF2F Independent Learning (Asynchronous)
M58: Physical | Q58: Online/ Technology-mediated (Synchronous)
M59: L | N59: T | O59: P | P59: O | Q59: L | R59: T | S59: P | T59: O
D60: 1 | E60: Text 1 - Qawaid : Al-Mubtada' | K60: CLO1 | M60: 2 | N60: 3 | U60: 4
D61: 2 | E61: Text 2 - Qawaid : Al-Khabar | K61: CLO1 | M61: 2 | N61: 4 | U61: 4
D62: 3 | E62: Text 3 - Qawaid : 'Alamat Al-'Irab | K62: CLO2 | M62: 2 | N62: 4 | U62: 6
D63: 4 | E63: Text 4 - Qawaid : Kana Wa Akhawatuha | K63: CLO2 | M63: 2 | N63: 3 | U63: 4
D64: 5 | E64: Text 5 - Qawaid : Inna Wa Akhawatuha | K64: CLO1, CLO2, CLO3 | M64: 2 | N64: 4 | U64: 4
D65: 6 | E65: Text 6 - Qawaid : Harf Al-Jarr Wa Al-Zarf | K65: CLO1, CLO2, CLO3 | M65: 2 | N65: 4 | U65: 6
D66: 7
D67: 8
D68: 9
D69: 10
D70: =D69+1 -> 11
D71: =D70+1 -> 12
D72: 13
D73: 14
D74: 15
D75: 16
D76: 17
D77: 18
D78: 19
D79: 20
D80: SUB-TOTAL SLT: | X80: =SUM(M60:P79)+SUM(Q60:T79)+SUM(U60:W79) -> 62
D81: Continous Assessement | K81: % | M81: Face-to-Face (F2F) | U81: NF2F Independent Learning for Assessment (Asynchronous)
M82: Physical | Q82: Online/ Technology-mediated (Synchronous)
D83: 1 | E83: Test 1 | K83: 10 | M83: 1 | U83: 1
D84: 2 | E84: Test 2 | K84: 15 | M84: 1 | U84: 1
D85: 3 | E85: Assignment / Presentation | K85: 15 | M85: 2 | U85: 2
D86: 4 | E86: Quiz | K86: 10 | M86: 1 | U86: 1
D87: 5
D88: SUB-TOTAL SLT: | X88: =SUM(M83:W87) -> 10
D89: Final Assessement | K89: % | M89: Face-to-Face (F2F) | U89: NF2F Independent Learning for Assessment (Asynchronous)
M90: Physical | Q90: Online/ Technology-mediated (Synchronous)
D91: 1 | E91: Examination | K91: 50 | M91: 2 | U91: 6
D92: 2
D93: 3
D94: 4
D95: 5
D96: SUB-TOTAL SLT: | X96: =SUM(M91:W95) -> 8
D98: SLT for Assessment: | X98: =X88+X96 -> 18
D99: GRAND TOTAL SLT: | X99: =X98+X80 -> 80
D100: A | E100: % SLT for F2F Physical Component: [Total F2F Physical /(Total F2F Physical + Total F2F Online + Total Independent Learning) x 100)] | X100: =IFERROR(((SUM(M60:P79)+SUM(M83:P87)+SUM(M91:P95))/X99)* 100,"") -> 51.25
D102: B | E102: % SLT for Online & Independent Learning Component: [(Total F2F Online + Total Independent Learning) /( Total F2F Physical + Total F2F Online + Total Independent Learning) x 100] | X102: =IFERROR((SUM(Q60:W79)+SUM(Q83:W87) + SUM(Q91:W95))/X99 * 100,"") -> 48.75
D103: C | E103: % SLT for All Practical Component: [% F2F Physical Practical + % F2F Online Practical] | X103: =IFERROR(X104+X105,"") -> 0
D104: C1 | E104: % SLT for F2F Physical Practical Component [Total F2F Physical Practical /( Total F2F Physical + Total F2F Online + Total Independent Learning) x 100)] | X104: =IFERROR(SUM(O60:O79)/X99*100,"") -> 0
D105: C2 | E105: % SLT for F2F Online Practical Component [Total F2F Online Practical / (Total F2F Physical + Total F2F Online + Total Independent Learning) x 100] | X105: =IFERROR(SUM(S60:S79)/X99 *100,"") -> 0
Z106: =IFERROR(X102+X104,"") -> 48.75
D107: Please tick (√) if this course is Industrial Training/ Clinical Placement/ Practicum using 50% of Effective Learning Time (ELT)
D108: Note:
D109: * Indicate the CLO based on the CLO's numbering in Item 8
D110: ** For ODL programme: Courses with mandatory practical requiremnets imposed by the programme standards or any related standards can be exempted from complying to the minimum 80% ODL delivery rule in the SLT.
B112: 11 | C112: Identify special requirement or resources to deliver the course (e.g., software, nursery, computer lab, simulation room etc)
B114: 12 | C114: References (include required and further readings, and should be the most current) | K114: Main references: 1. Mardiana Nordin & Hasnah Hussin. (2011). Pengajian Malaysia. Petaling Jaya. Fajar Bakti Sdn. Bhd. 2. Hairol Anuar Mak Din. (2006). Pengajian Malaysia: Kenegaraan & Patriotisme. Bangi: Kolej Universiti Islam Antarabangsa Selangor. 3. ILBS. (2002). Malaysia Kita. Petaling Jaya: Internasional Law Book Services. 4. Ruslan Zainuddin, Mohd Mahadee Ismail, Zaini Othman. (2005). Kenegaraan Malaysia. Shah Alam: Fajar Bakti Sdn. Bhd. 5. Siti Zurina Abd Majid, (2001). Sejarah Malaysia. Kuala Lumpur: Dewan Bahasa dan Pustaka. Additional references: 1. Ahmad Ibrahim & Aminah Joned. (1987). Sistem Undang-Undang Malaysia. Kuala Lumpur: Dewan Bahasa Dan Pustaka. 2. Asnarulhadi Abu Samah & Jayum A. Jawan. (1997). Kenegaraan Malaysia. Serdang: Penerbit Universiti Putra Malaysia. 3. Mohamad Sofian Hashim. Tan. (1984). Mengenal Perlembagaan Malaysia. Edisi Kedua. Kuala Lumpur; Dewan Bahasa Dan Pustaka.
B116: 13 | C116: Other additional information (if applicable)
C119: Note: Number of PLO indicated is purely for illustration purposes only and the number is subjected to the curriculum design.

Sheet AQS1233
B2: Back To FORM @ TEMPLATE
AI3: √
B5: 1 | C5: Course Name: | F5: ULUM AL-HADITH I | AI5: Semester
C6: Course Code: | F6: AQS1233 | AI6: 1
C7: Course Classification: | F7: Major (core) | AI7: 2
B8: 2 | C8: Synopsis: | F8: Kursus ini membincangkan berkenaan dengan pengajian Ulum al-Hadith merangkumi istilah-istilah utama pengajian hadis, pembahagian hadis-hadis berdasarkan bilangan turuq dan penerimaan serta penolakannya serta bahagian-bahagian yang lain. | AI8: 3
B9: =B8+1 -> 3 | C9: Name(s) of Academic Staff: | F9: 1 | G9: WAN MUHAMMAD SILMI BIN HAMZAH
F10: 2 | AI10: Year Offered
F11: 3 | AI11: 1
B12: =B9+1 -> 4 | C12: Semester and Year offered: | F12: Year Offered | I12: 2 | J12: Semester | L12: 1 | M12: Remarks: | AI12: 2
B13: =B12+1 -> 5 | C13: Credit Value: | F13: =IF(X107 ="√",INT(X99/80),INT(X99/40)) -> 3 | AI13: 3
B14: 6 | C14: Pre-requisite/ co-requisite (if any): | AI14: 4
AI15: 5
B16: 7 | C16: Course Learning Outcomes (CLO) | F16: CLO1 | H16: Menjelaskan definisi, fungsi dan sejarah penyusunan dan pengumpulan hadith. (C2,PLO1) | AI16: 6
F17: CLO2 | H17: Mengaplikasikan contoh bahagian-bahagian hadith dari sudut mutawatir dan ahad. (C3, CTPS3, PLO2) | AI17: 7
F18: CLO3 | H18: Membahaskan dalam kumpulan tentang syarat-syarat sesebuah hadith diterima dan ditolak mengikut syarat-syarat yang ditetapkan oleh ulama’ hadith. (A3, PLO5) | AI18: 8
AI20: Compulsory
AI21: Major (core)
AI22: Minor
AI23: Elective (core)
AI24: Elective (open/free)
B25: 8 | C25: Mapping of the Course Learning Outcomes to the Programme Learning Outcomes, Teaching Methods and Assessment Methods
D27: Course Learning Outcomes | F27: Programme Learning Outcomes (PLO) | R27: Teaching Methods | W27: Assessment Methods
F28: PLO 1 | G28: PLO 2 | H28: PLO 3 | I28: PLO 4 | J28: PLO 5 | K28: PLO 6 | L28: PLO 7 | M28: PLO 8 | N28: PLO 9 | O28: PLO 10 | P28: PLO 11
D29: =IF(ISBLANK(F16),"",F16) -> CLO1 | F29: √ | R29: Kuliah/Tutorial/ perbincangan/pembentangan | W29: Kuiz,Ujian, Peperiksaan Akhir
D30: =IF(ISBLANK(F17),"",F17) -> CLO2 | G30: √ | R30: Kuliah/Tutorial/ perbincangan/pembentangan | W30: Kuiz,Ujian, Peperiksaan Akhir
D31: CLO3 | J31: √ | R31: Kuliah/Tutorial/ perbincangan/pembentangan | W31: Kuiz,Ujian, Peperiksaan Akhir
AI36: Cognitive skills
D37: Mapping with MQF Cluster of Learning Outcomes | F37: C1 | G37: C2 | H37: C3A | I37: C3B | J37: C3C | K37: C3D | L37: C3E | M37: C3F | N37: C4A | O37: C4B | P37: C5 | AI37: Interpersonal skills
AI38: Communication Skills
AI39: Digital Skills
AI40: Numeracy Skills
D41: Indicate the primary causal link between the CLO and PLO by ticking '√' in the appropriate box. | AI41: Leadership, Autonomy and Responsibility
D42: C1 = Knowledge & Understanding, C2 = Cognitive Skills, C3A = Practical Skills, C3B = Interpersonal Skills, C3C = Communication Skills, C3D = Digital Skills, | AI42: Personal Skills
D43: C3E = Numeracy Skills, C3F = Leadership, Autonomy & Responsibility, C4A = Personal Skills, C4B = Entrepreneurial Skills, C5 = Ethics & Professionalism | AI43: Entrepreneurial Skills
AI44: Ethics and Professionalism
B45: 9 | C45: Transferable Skills (if applicable)
C46: (Skills learned in the course of study which can be useful and utilized in other settings) | I46: 1 | J46: Cognitive skills | AI46: C1
I47: 2 | J47: Communication Skills | AI47: C2
I48: 3 | AI48: C3A
I49: Open-ended response (if any) | AI49: C3B
I50: 4 | AI50: C3C
AI51: C3D
AB52: ` | AI52: C3E
B53: 10 | C53: Distribution of Student Learning Time (SLT) | AI53: C3F
C54: Note: This SLT calculation is designed for home grown programme only. | AI54: C4A
AI55: C4B
D56: Course Content Outline and Subtopics | K56: CLO* | M56: Learning and Teaching Activities** | X56: Total SLT | AI56: C5
M57: Face-to-Face (F2F) | U57: NF2F Independent Learning (Asynchronous)
M58: Physical | Q58: Online/ Technology-mediated (Synchronous)
M59: L | N59: T | O59: P | P59: O | Q59: L | R59: T | S59: P | T59: O
D60: 1 | E60: 1.0 Pengenalan kepada Ulum al-Hadith. 1.1 Penyusunan dan pengumpulan hadis | K60: CLO1 | M60: 2 | N60: 2 | U60: 2
D61: 2 | E61: 2.0 Pengenalan kepada Ulum al-Hadith. 2.1 Pengertian Hadith, Athar, Khabar dan Sunnah. | K61: CLO1 | M61: 2 | N61: 2 | U61: 2
D62: 3 | E62: 3.0 Pengenalan kepada Ulum al-Hadith. 3.1 Kedudukan sunnah dalam Islam 3.2 Perbezaan al-Hadith al-Nabawi, al-Hadith al-Qudsi dan al-Quran. | K62: CLO1 | M62: 4 | N62: 2 | U62: 6
D63: 4 | E63: 4.0 Pembahagian hadis kepada mutawatir, ahad, marfu’, mawquf dan maqtu’ | K63: CLO2 | M63: 4 | N63: 2 | U63: 6
D64: 5 | E64: 5.0 Penilaian hadis-hadis berdasarkan sahih, hasan, da’if dan mawdu’. | K64: CLO2 | M64: 6 | N64: 4 | U64: 8
D65: 6 | E65: 6.0 Penilaian berkenaan pembahagian hadis da’if yang lebih lanjut seperti pembahagian berikut : 6.1 Isnad : Mu`allaq, Mursal, Mu`addal, Munqati`, Mudallas, Mursal al-Khafiy, al-Mu’an’an, al-Mu’annan, al-‘Ali wa al-Nazil | K65: CLO3 | M65: 6 | N65: 4 | U65: 8
D66: 7 | E66: 7.0 Penilaian berkenaan pembahagian hadis da’if yang lebih lanjut seperti pembahagian berikut : -Perawi: Matruk. Mungkar, Muallaq, Mudarraj, Maqlub, Bid`ah, al-Syadh, Mudtarib, Musahhaf, Su` al-Hifz | K66: CLO3 | M66: 6 | N66: 4 | U66: 8
D67: 8
D68: 9
D69: 10
D70: =D69+1 -> 11
D71: =D70+1 -> 12
D72: 13
D73: 14
D74: 15
D75: 16
D76: 17
D77: 18
D78: 19
D79: 20
D80: SUB-TOTAL SLT: | X80: =SUM(M60:P79)+SUM(Q60:T79)+SUM(U60:W79) -> 90
D81: Continous Assessement | K81: % | M81: Face-to-Face (F2F) | U81: NF2F Independent Learning for Assessment (Asynchronous)
M82: Physical | Q82: Online/ Technology-mediated (Synchronous)
D83: 1 | E83: Ujian 1 | K83: 10 | M83: 1.5 | U83: 3
D84: 2 | E84: Ujian 2 | K84: 10 | M84: 1.5 | U84: 3
D85: 3 | E85: Tugasan & Pembentangan | K85: 20 | M85: 2 | U85: 6
D86: 4 | E86: Kuiz | K86: 10 | M86: 1 | U86: 1
D87: 5
D88: SUB-TOTAL SLT: | X88: =SUM(M83:W87) -> 19
D89: Final Assessement | K89: % | M89: Face-to-Face (F2F) | U89: NF2F Independent Learning for Assessment (Asynchronous)
M90: Physical | Q90: Online/ Technology-mediated (Synchronous)
D91: 1 | E91: Examination | K91: 50 | M91: 2.5 | U91: 8.5
D92: 2
D93: 3
D94: 4
D95: 5
D96: SUB-TOTAL SLT: | X96: =SUM(M91:W95) -> 11
D98: SLT for Assessment: | X98: =X88+X96 -> 30
D99: GRAND TOTAL SLT: | X99: =X98+X80 -> 120
D100: A | E100: % SLT for F2F Physical Component: [Total F2F Physical /(Total F2F Physical + Total F2F Online + Total Independent Learning) x 100)] | X100: =IFERROR(((SUM(M60:P79)+SUM(M83:P87)+SUM(M91:P95))/X99)* 100,"") -> 48.75
D102: B | E102: % SLT for Online & Independent Learning Component: [(Total F2F Online + Total Independent Learning) /( Total F2F Physical + Total F2F Online + Total Independent Learning) x 100] | X102: =IFERROR((SUM(Q60:W79)+SUM(Q83:W87) + SUM(Q91:W95))/X99 * 100,"") -> 51.25
D103: C | E103: % SLT for All Practical Component: [% F2F Physical Practical + % F2F Online Practical] | X103: =IFERROR(X104+X105,"") -> 0
D104: C1 | E104: % SLT for F2F Physical Practical Component [Total F2F Physical Practical /( Total F2F Physical + Total F2F Online + Total Independent Learning) x 100)] | X104: =IFERROR(SUM(O60:O79)/X99*100,"") -> 0
D105: C2 | E105: % SLT for F2F Online Practical Component [Total F2F Online Practical / (Total F2F Physical + Total F2F Online + Total Independent Learning) x 100] | X105: =IFERROR(SUM(S60:S79)/X99 *100,"") -> 0
Z106: =IFERROR(X102+X104,"") -> 51.25
D107: Please tick (√) if this course is Industrial Training/ Clinical Placement/ Practicum using 50% of Effective Learning Time (ELT)
D108: Note:
D109: * Indicate the CLO based on the CLO's numbering in Item 8
D110: ** For ODL programme: Courses with mandatory practical requiremnets imposed by the programme standards or any related standards can be exempted from complying to the minimum 80% ODL delivery rule in the SLT.
B112: 11 | C112: Identify special requirement or resources to deliver the course (e.g., software, nursery, computer lab, simulation room etc)
B114: 12 | C114: References (include required and further readings, and should be the most current) | K114: Rujukan Utama: Mahmud al-Tahhan. 1987. Taysir Mustalah al-Hadith. Riyadh: Maktabah al-Ma`arif. Syarf Mahmud al-Qudah. 2003. Al- Manhaj al-Hadith fi ‘Ulum al-Hadith. Kuala Lumpur: Albian Corporation. Rujukan Tambahan: Subhi al-Salih. 1991. Ulum al-Hadith wa Mustalahuh. Beirut: Dar al-Ilm li al-Malayin Al-Suyuti, Jalal al-Din Abd al-Rahman. T.t.. Tadrib al-Rawi fi Syarh Taqrib al-Nawawi. Beirut: Dar al-Kutub al-Ilmiyyah
B116: 13 | C116: Other additional information (if applicable)
C119: Note: Number of PLO indicated is purely for illustration purposes only and the number is subjected to the curriculum design.

Sheet AQS1111
B2: Back To FORM @ TEMPLATE
AI3: √
B5: 1 | C5: Course Name: | F5: TARTIL AL-QURAN WA HIFZUH | AI5: Semester
C6: Course Code: | F6: AQS1111 | AI6: 1
C7: Course Classification: | F7: Major (core) | AI7: 2
B8: 2 | C8: Synopsis: | F8: This course focuses on memorizing the Qur'an from Surah Luqman and Surah al-Sajadah by using the correct method of memorization as well as the ruling of tajwid, eg: makhraj (points of vocal articulation), law of nun saakin and tanwin, mim saakin and maad. | AI8: 3
B9: =B8+1 -> 3 | C9: Name(s) of Academic Staff: | F9: 1 | G9: RADIN SERI NABAHAH BT AHMAD ZABIDI
F10: 2 | AI10: Year Offered
F11: 3 | AI11: 1
B12: =B9+1 -> 4 | C12: Semester and Year offered: | F12: Year Offered | I12: 2 | J12: Semester | L12: 1 | M12: Remarks: | AI12: 2
B13: =B12+1 -> 5 | C13: Credit Value: | F13: =IF(X107 ="√",INT(X99/80),INT(X99/40)) -> 1 | AI13: 3
B14: 6 | C14: Pre-requisite/ co-requisite (if any): | AI14: 4
AI15: 5
B16: 7 | C16: Course Learning Outcomes (CLO) | F16: CLO1 | H16: Describe the ruling of tajwid, nun saakin and tanwin, mim saakin and maad with the correct makhraj and method of reading. (C2,PLO1) | AI16: 6
F17: CLO2 | H17: Memorize Surah Luqman and Surah al-Sajadah by reciting according to the ruling of tajwid. (P3, PLO3) | AI17: 7
F18: CLO3 | H18: Practice Surah Luqman and Surah al-Sajdah in appropriate method and for personal skills. (A2,PLO9) | AI18: 8
AI20: Compulsory
AI21: Major (core)
AI22: Minor
AI23: Elective (core)
AI24: Elective (open/free)
B25: 8 | C25: Mapping of the Course Learning Outcomes to the Programme Learning Outcomes, Teaching Methods and Assessment Methods
D27: Course Learning Outcomes | F27: Programme Learning Outcomes (PLO) | R27: Teaching Methods | W27: Assessment Methods
F28: PLO 1 | G28: PLO 2 | H28: PLO 3 | I28: PLO 4 | J28: PLO 5 | K28: PLO 6 | L28: PLO 7 | M28: PLO 8 | N28: PLO 9 | O28: PLO 10 | P28: PLO 11
D29: =IF(ISBLANK(F16),"",F16) -> CLO1 | F29: √ | R29: Kuliah|Tutorial|perbincangan |pembentangan | W29: Kuiz|Ujian|Peperiksaan Akhir
D30: =IF(ISBLANK(F17),"",F17) -> CLO2 | H30: √ | R30: Kuliah|Tutorial|perbincangan |pembentangan | W30: Kuiz|Ujian|Peperiksaan Akhir
D31: CLO3 | N31: √ | R31: Kuliah|Tutorial|perbincangan |pembentangan | W31: Kuiz|Ujian|Peperiksaan Akhir
AI36: Cognitive skills
D37: Mapping with MQF Cluster of Learning Outcomes | F37: C1 | G37: C2 | H37: C3A | I37: C3B | J37: C3C | K37: C3D | L37: C3E | M37: C3F | N37: C4A | O37: C4B | P37: C5 | AI37: Interpersonal skills
AI38: Communication Skills
AI39: Digital Skills
AI40: Numeracy Skills
D41: Indicate the primary causal link between the CLO and PLO by ticking '√' in the appropriate box. | AI41: Leadership, Autonomy and Responsibility
D42: C1 = Knowledge & Understanding, C2 = Cognitive Skills, C3A = Practical Skills, C3B = Interpersonal Skills, C3C = Communication Skills, C3D = Digital Skills, | AI42: Personal Skills
D43: C3E = Numeracy Skills, C3F = Leadership, Autonomy & Responsibility, C4A = Personal Skills, C4B = Entrepreneurial Skills, C5 = Ethics & Professionalism | AI43: Entrepreneurial Skills
AI44: Ethics and Professionalism
B45: 9 | C45: Transferable Skills (if applicable)
C46: (Skills learned in the course of study which can be useful and utilized in other settings) | I46: 1 | J46: Cognitive skills | AI46: C1
I47: 2 | J47: Personal Skills | AI47: C2
I48: 3 | AI48: C3A
I49: Open-ended response (if any) | AI49: C3B
I50: 4 | J50: Practicakl Skills | AI50: C3C
AI51: C3D
AB52: ` | AI52: C3E
B53: 10 | C53: Distribution of Student Learning Time (SLT) | AI53: C3F
C54: Note: This SLT calculation is designed for home grown programme only. | AI54: C4A
AI55: C4B
D56: Course Content Outline and Subtopics | K56: CLO* | M56: Learning and Teaching Activities** | X56: Total SLT | AI56: C5
M57: Face-to-Face (F2F) | U57: NF2F Independent Learning (Asynchronous)
M58: Physical | Q58: Online/ Technology-mediated (Synchronous)
M59: L | N59: T | O59: P | P59: O | Q59: L | R59: T | S59: P | T59: O
D60: 1 | E60: 1.0 Course Introduction. 1.1 Introduction to the Ruling of Tajweed 1.2 Errors in reading 1.3 Reading level 1.4 Tasmik recitation of Surah Luqman | K60: CLO1 | M60: 1 | U60: 1
D61: 2 | E61: 2.0 Memorization of Surah 1: Part 1 2.1 Memorization of verses 1 to 11 of Surah Luqman 2.2 Makhraj Letters 2.3 Isti'azah and Basmalah | K61: CLO2 | M61: 1 | U61: 1
D62: 3 | E62: 3.0 Memorization of Surah 1: Part 2 3.1 Memorization of verses 11 to 19 of surah Luqman 3.2 The Ruling of Nun Saakin / Tanwin 3.2.1 Izhar Halqi 3.2.2 Iqlab 3.2.3 Ikhfa ’Hakiki | K62: CLO2 | M62: 1 | U62: 1
D63: 4 | E63: 4.0 Memorization of Surah 1: Part 3 4.1 Memorization of verses 20 to 28 of surah Luqman 4.2 Dead Mim Law 4.2.1 Idgham Mutamathilain 4.2.2 Ikhfa ’Syafawi 4.2.3 Izhar Syafawi | K63: CLO1 , CLO3 | M63: 1 | U63: 1
D64: 5 | E64: 5.0 Memorization of Surah 1: Part 4 5.1 Memorization verses 29 to 34 Surah Luqman 5.2 The ruling of nun and mim sabdu 5.3 Qalqalah Law | K64: CLO1 , CLO3 | M64: 1 | U64: 1
D65: 6 | E65: 6.0 Memorize the entire Surah Luqman Review tajwid | K65: CLO1, CLO3 | M65: 1 | U65: 1
D66: 7 | E66: 7.0 Memorization of Surah 2: Part 1 7.1 Memorization of verses 1 to 11 of Surah Al-Sajadah 7.2 Ruling of Mad 7.2.1 Mad Asli 7.2.2 Mad Wajib Muttasil 7.2.3 Mad Jaiz Munfasil | K66: CLO1, CLO3 | M66: 1 | U66: 1
D67: 8 | E67: 8.0 Memorization of Surah 2: Part 2 8.1 Memorization verses 11 to 20 Surah Al- Sajadah 8.2 Mad Ruling 8.2.1 Mad Badal 8.2.2 Mad Lin 8.2.3 Mad ‘Arid Lissukum | K67: CLO1, CLO3 | M67: 1 | U67: 1
D68: 9 | E68: 9.0 Memorization of Surah 2: Part 3 9.1 Memorization of verses 21 to 30 of Surah Al-Sajadah 9.2 Ruling of Mad 9.2.1 Mad Lazim 9.2.2 Mad Silah | K68: CLO1, CLO3 | M68: 1 | U68: 1
D69: 10 | E69: 10.1 Repeat the entire memorization of Surah As-Sajadah 10.2 Ruling of Madd 10.2.1 Mad Farq 10.2.2 Mad Iwad 10.2.3 Mad Tamkin | K69: CLO2 CLO3 | M69: 1 | U69: 1
D70: =D69+1 -> 11 | E70: 11.1 Reviewing the entire memorization of Surah Luqman and As-Sajadah 11.2 Reviewing the Whole ruling of Tajwid | K70: CLO1, CLO2 CLO3 | M70: 1 | U70: 1
D71: =D70+1 -> 12
D72: 13
D73: 14
D74: 15
D75: 16
D76: 17
D77: 18
D78: 19
D79: 20
D80: SUB-TOTAL SLT: | X80: =SUM(M60:P79)+SUM(Q60:T79)+SUM(U60:W79) -> 22
D81: Continous Assessement | K81: % | M81: Face-to-Face (F2F) | U81: NF2F Independent Learning for Assessment (Asynchronous)
M82: Physical | Q82: Online/ Technology-mediated (Synchronous)
D83: 1 | E83: Tasmik | K83: 20 | M83: 2 | U83: 2
D84: 2 | E84: Oral Test 1 - Surah Luqman | K84: 10 | M84: 1 | U84: 2
D85: 3 | E85: Oral Test 2 - Surah As-Sajadah | K85: 10 | M85: 1 | U85: 2
D86: 4 | E86: Assignment | K86: 10 | M86: 1 | U86: 2
D87: 5
D88: SUB-TOTAL SLT: | X88: =SUM(M83:W87) -> 13
D89: Final Assessement | K89: % | M89: Face-to-Face (F2F) | U89: NF2F Independent Learning for Assessment (Asynchronous)
M90: Physical | Q90: Online/ Technology-mediated (Synchronous)
D91: 1 | E91: Examination | K91: 50 | M91: 1 | U91: 4
D92: 2
D93: 3
D94: 4
D95: 5
D96: SUB-TOTAL SLT: | X96: =SUM(M91:W95) -> 5
D98: SLT for Assessment: | X98: =X88+X96 -> 18
D99: GRAND TOTAL SLT: | X99: =X98+X80 -> 40
D100: A | E100: % SLT for F2F Physical Component: [Total F2F Physical /(Total F2F Physical + Total F2F Online + Total Independent Learning) x 100)] | X100: =IFERROR(((SUM(M60:P79)+SUM(M83:P87)+SUM(M91:P95))/X99)* 100,"") -> 42.5
D102: B | E102: % SLT for Online & Independent Learning Component: [(Total F2F Online + Total Independent Learning) /( Total F2F Physical + Total F2F Online + Total Independent Learning) x 100] | X102: =IFERROR((SUM(Q60:W79)+SUM(Q83:W87) + SUM(Q91:W95))/X99 * 100,"") -> 57.5
D103: C | E103: % SLT for All Practical Component: [% F2F Physical Practical + % F2F Online Practical] | X103: =IFERROR(X104+X105,"") -> 0
D104: C1 | E104: % SLT for F2F Physical Practical Component [Total F2F Physical Practical /( Total F2F Physical + Total F2F Online + Total Independent Learning) x 100)] | X104: =IFERROR(SUM(O60:O79)/X99*100,"") -> 0
D105: C2 | E105: % SLT for F2F Online Practical Component [Total F2F Online Practical / (Total F2F Physical + Total F2F Online + Total Independent Learning) x 100] | X105: =IFERROR(SUM(S60:S79)/X99 *100,"") -> 0
Z106: =IFERROR(X102+X104,"") -> 57.5
D107: Please tick (√) if this course is Industrial Training/ Clinical Placement/ Practicum using 50% of Effective Learning Time (ELT)
D108: Note:
D109: * Indicate the CLO based on the CLO's numbering in Item 8
D110: ** For ODL programme: Courses with mandatory practical requiremnets imposed by the programme standards or any related standards can be exempted from complying to the minimum 80% ODL delivery rule in the SLT.
B112: 11 | C112: Identify special requirement or resources to deliver the course (e.g., software, nursery, computer lab, simulation room etc)
B114: 12 | C114: References (include required and further readings, and should be the most current) | K114: Main references: 1. Mashaf Al-Quran Rasm Uthmani 2. As’ad Humam. Ilmu Tajwid Cara Mudah dan Berkesan. 2016. Penerbitan Darul Kitab. Shah Alam. 3. Abdul Qadir Leong. Tajwid Al-Quran Rasm Uthmani. 2016. Abdul Kadir bin Abdullah. Tanjung Karang. Additional references: 1. Mashaf al-Tajwid. 1403H Beirut: Mu`assasah al-Imam 2. Abdullah al-Jauhari al-Sayyid. 1995. Al-Idah Fi Tajwid Kalam al-Fattah. Kaherah 3. Al-Jumal, Ahmad Abdul Ghani Muhammad al-Najuli. 1990. Al-Qawl al-Sadid Fi Fann al-Tajwid. Kaherah.
B116: 13 | C116: Other additional information (if applicable)
C119: Note: Number of PLO indicated is purely for illustration purposes only and the number is subjected to the curriculum design.

Sheet ASY3123
B2: Back To FORM @ TEMPLATE
AI3: √
B5: 1 | C5: Course Name: | F5: USUL AL-FIQH | AI5: Semester
C6: Course Code: | F6: ASY3123 | AI6: 1
C7: Course Classification: | F7: Major (core) | AI7: 2
B8: 2 | C8: Synopsis: | F8: Kursus ini membincangkan tentang pengenalan Usul al-Fiqh iaitu definisi fiqh dan usul fiqh, perbezaan usul fiqh dan fiqh, sejarah perkembangan Usul Al-Fiqh , pembahagian hukum-hukum syara' kepada hukum-hukum taklif dan wad`i, dalil-dalil yang disepakati: al-Quran dan al-Sunnah, ijmak dan qias. Ia juga membincangkan dalil-dalil yang tidak disepakati di kalangan ulamak iaitu al-istihsan, al-masolih al-mursalah, al-istishab, al-`urf, pendapat sahabat, saddu al-zara`i, dan amal ahlu al-Madinah. | AI8: 3
B9: =B8+1 -> 3 | C9: Name(s) of Academic Staff: | F9: 1 | G9: RADIN SERI NABAHAH BT AHMAD ZABIDI
F10: 2 | AI10: Year Offered
F11: 3 | AI11: 1
B12: =B9+1 -> 4 | C12: Semester and Year offered: | F12: Year Offered | I12: 2 | J12: Semester | L12: 1 | M12: Remarks: | AI12: 2
B13: =B12+1 -> 5 | C13: Credit Value: | F13: =IF(X107 ="√",INT(X99/80),INT(X99/40)) -> 3 | AI13: 3
B14: 6 | C14: Pre-requisite/ co-requisite (if any): | AI14: 4
AI15: 5
B16: 7 | C16: Course Learning Outcomes (CLO) | F16: CLO1 | H16: Membezakan konsep fiqh dan usul fiqh serta menghuraikan sejarah perkembangan ilmu usul fiqh. (PO1, C2) | AI16: 6
F17: CLO2 | H17: Menyelesaikan masalah hukum menggunakan konsep, kaedah, dalil-dalil yang bersesuaian. (PLO2 CTPS, P1) | AI17: 7
F18: CLO3 | H18: Menerangkan dalil-dalil yang disepakati dan dalil-dalil yang tidak disepakati oleh para ulamak. (PLO4, A3) | AI18: 8
AI20: Compulsory
AI21: Major (core)
AI22: Minor
AI23: Elective (core)
AI24: Elective (open/free)
B25: 8 | C25: Mapping of the Course Learning Outcomes to the Programme Learning Outcomes, Teaching Methods and Assessment Methods
D27: Course Learning Outcomes | F27: Programme Learning Outcomes (PLO) | R27: Teaching Methods | W27: Assessment Methods
F28: PLO 1 | G28: PLO 2 | H28: PLO 3 | I28: PLO 4 | J28: PLO 5 | K28: PLO 6 | L28: PLO 7 | M28: PLO 8 | N28: PLO 9 | O28: PLO 10 | P28: PLO 11
D29: =IF(ISBLANK(F16),"",F16) -> CLO1 | F29: √ | R29: Kuliah|Tutorial|perbincangan |pembentangan | W29: Kuiz|Ujian|Peperiksaan Akhir
D30: =IF(ISBLANK(F17),"",F17) -> CLO2 | G30: √ | R30: Kuliah|Tutorial|perbincangan |pembentangan | W30: Tugasan | Perbentangan
D31: CLO3 | J31: √ | R31: Kuliah|Tutorial|perbincangan |pembentangan | W31: Tugasan | Perbentangan
AI36: Cognitive skills
D37: Mapping with MQF Cluster of Learning Outcomes | F37: C1 | G37: C2 | H37: C3A | I37: C3B | J37: C3C | K37: C3D | L37: C3E | M37: C3F | N37: C4A | O37: C4B | P37: C5 | AI37: Interpersonal skills
AI38: Communication Skills
AI39: Digital Skills
AI40: Numeracy Skills
D41: Indicate the primary causal link between the CLO and PLO by ticking '√' in the appropriate box. | AI41: Leadership, Autonomy and Responsibility
D42: C1 = Knowledge & Understanding, C2 = Cognitive Skills, C3A = Practical Skills, C3B = Interpersonal Skills, C3C = Communication Skills, C3D = Digital Skills, | AI42: Personal Skills
D43: C3E = Numeracy Skills, C3F = Leadership, Autonomy & Responsibility, C4A = Personal Skills, C4B = Entrepreneurial Skills, C5 = Ethics & Professionalism | AI43: Entrepreneurial Skills
AI44: Ethics and Professionalism
B45: 9 | C45: Transferable Skills (if applicable)
C46: (Skills learned in the course of study which can be useful and utilized in other settings) | I46: 1 | J46: Cognitive skills | AI46: C1
I47: 2 | J47: Communication Skills | AI47: C2
I48: 3 | AI48: C3A
I49: Open-ended response (if any) | AI49: C3B
I50: 4 | AI50: C3C
AI51: C3D
AB52: ` | AI52: C3E
B53: 10 | C53: Distribution of Student Learning Time (SLT) | AI53: C3F
C54: Note: This SLT calculation is designed for home grown programme only. | AI54: C4A
AI55: C4B
D56: Course Content Outline and Subtopics | K56: CLO* | M56: Learning and Teaching Activities** | X56: Total SLT | AI56: C5
M57: Face-to-Face (F2F) | U57: NF2F Independent Learning (Asynchronous)
M58: Physical | Q58: Online/ Technology-mediated (Synchronous)
M59: L | N59: T | O59: P | P59: O | Q59: L | R59: T | S59: P | T59: O
D60: 1 | E60: 1.0 Pendahuluan Usul Fiqh 1.1 Definisi Usul Fiqh 1.2 Bidang perbahasan usul fiqh 1.3 Tujuan usul fiqh 1.4 Perbezaan fiqh dan usul fiqh | K60: CLO1, CLO2, CLO3 | M60: 2 | N60: 1 | U60: 3
D61: 2 | E61: 2.0 Sejarah Perkembangan Usul Fiqh 2.1 Sejarah kemunculan usul fiqh 2.2 Pembukuan usul fiqh dan manhaj penulisan kitab usul fiqh 2.2.1 Manhaj al-Mutakallimin 2.2.2 Manhaj al-Ahnaf 2.2.3 Manhaj al-Mutaakhkhirin | K61: CLO1, CLO2, CLO3 | M61: 2 | N61: 1 | U61: 3
D62: 3 | E62: 3.0 Prinsip Hukum Syara’ dan pembahagiannya 3.1 Definisi Hukum 3.2 Pembahagian Hukum 3.2.1 Hukum taklifi 3.2.2 Hukum wad’ie | K62: CLO1, CLO2, CLO3 | M62: 2 | N62: 1 | U62: 3
D63: 4 | E63: 4.0 Jenis-jenis hukum Taklifi 4.1 Pembahagian mengikut jumhur – wajib, sunat, haram, makruh, harus. 4.2 Pembahagian mengikut mazhab Hanafi – fardhu, wajib, sunat, makruh tahrim, makruh tanzih, haram, harus 4.3 Pembahagian wajib 4.4 Pembahagian haram | K63: CLO1, CLO2, CLO3 | M63: 4 | N63: 1 | U63: 5
D64: 5 | E64: 5.0 Jenis-jenis Hukum Wadh’ie 5.1 Sabab 5.2 Syarat 5.3 Mani’ 5.4 Rukhsah dan azimah 5.5 Sah dan batal | K64: CLO1, CLO2, CLO3 | M64: 4 | N64: 2 | U64: 5
D65: 6 | E65: 6.0 Sumber Hukum Yang Disepakati 6.1 Al-Quran 6.1.1 Definisi Al-Quran 6.1.2 Ciri-ciri dan keistimewaan Al-Quran 6.1.3 Hujiyyah Al-Quran 6.1.4 Hukum qiraat syaz | K65: CLO1, CLO2, CLO3 | M65: 4 | N65: 2 | U65: 5
D66: 7 | E66: 7.0 Sumber Hukum Yang Disepakati 7.1 Al-Sunnah 7.1.1 Definisi Al-Sunnah 7.1.2 Kedudukan Al-Sunnah dengan Al-Quran 7.1.3 Pembahagian Sunnah – mutawatir, masyhur, ahad - Sunnah qawliyyah, sunnah fi’liyyah, sunnah taqririyyah | K66: CLO1, CLO2, CLO3 | M66: 4 | N66: 2 | U66: 4
D67: 8 | E67: 8.0 Sumber Hukum Yang Disepakati 8.1 Ijma’ 8.1.1 Definisi Ijma’ 8.1.2 Syarat-syarat ijma’ 8.1.3 Pandangan ulama’ tentang ijma’ 8.1.4 Jenis-jenis ijma’ | K67: CLO1, CLO2, CLO3 | M67: 4 | N67: 2 | U67: 4
D68: 9 | E68: 9.0 Sumber Hukum Yang Disepakati 9.1 Qiyas 9.1.1 Definisi Qiyas 9.1.2 Rukun Qiyas 9.1.3 Pandangan ulama’ terhadap Qiyas 9.1.4 Pembahagian Qiyas 9.1.5 Syarat Qiyas | K68: CLO1, CLO2, CLO3 | M68: 4 | N68: 2 | U68: 4
D69: 10 | E69: 10.0 Sumber Hukum Yang Tidak Disepakati : 10.1 Al- Istihsan 10.1.1 Definisi al-istihsan 10.1.2 Pandangan ulamak terhadap istihsan 10.1.3 Pembahagian al-istihsan 10.2 Al-Masolih AL-Mursalah 10.2.1 Definisi al-masolih al-mursalah 10.2.2 Pandangan ulamak terhadap al-masolih al-mursalah 10.2.3 Pembahagian maslahah 10.3 ‘Uruf 10.3.1 Definisi Uruf 10.3.2 Pembahagian Uruf 10.3.3 Pandangan ulamak terhadap uruf 10.4 Al- Istishab 10.4.1 Definisi AL-Istishab 10.4.2 Pandangan ulamak terhadap al-istishab 10.5 Syar’u Man Qablana 10.5.1 Definisi Syar’u Man Qablana 10.5.2 Pandangan ulama’ berkaitan dengannya 10.6 Qaul Sohabi 10.6.1 Definisi Qaul Sohabi 10.6.2 Pandangan ulamak berkaitan dengannya 10.7 Sadd Al-Zara’ie 10.7.1 Definisi Saddu Al-Zara’ie 10.7.2 Pandangan ulama’ berkaitan dengannya 10.8 Amal Ahli al-Madinah 10.8.1 Definisi Amal ahli al-madinah 10.8.2 Pandangan ulama’ berkaitan dengannya | K69: CLO1, CLO2, CLO3 | M69: 4 | N69: 2 | U69: 4
D70: =D69+1 -> 11
D71: =D70+1 -> 12
D72: 13
D73: 14
D74: 15
D75: 16
D76: 17
D77: 18
D78: 19
D79: 20
D80: SUB-TOTAL SLT: | X80: =SUM(M60:P79)+SUM(Q60:T79)+SUM(U60:W79) -> 90
D81: Continous Assessement | K81: % | M81: Face-to-Face (F2F) | U81: NF2F Independent Learning for Assessment (Asynchronous)
M82: Physical | Q82: Online/ Technology-mediated (Synchronous)
D83: 1 | E83: Ujian 1 | K83: 10 | M83: 1.5 | U83: 3
D84: 2 | E84: Ujian 2 | K84: 10 | M84: 1.5 | U84: 3
D85: 3 | E85: Tugasan & Pembentangan | K85: 20 | M85: 2 | U85: 6
D86: 4 | E86: Kuiz | K86: 10 | M86: 1 | U86: 1
D87: 5
D88: SUB-TOTAL SLT: | X88: =SUM(M83:W87) -> 19
D89: Final Assessement | K89: % | M89: Face-to-Face (F2F) | U89: NF2F Independent Learning for Assessment (Asynchronous)
M90: Physical | Q90: Online/ Technology-mediated (Synchronous)
D91: 1 | E91: Peperiksaan Akhir | K91: 50 | M91: 2.5 | U91: 8.5
D92: 2
D93: 3
D94: 4
D95: 5
D96: SUB-TOTAL SLT: | X96: =SUM(M91:W95) -> 11
D98: SLT for Assessment: | X98: =X88+X96 -> 30
D99: GRAND TOTAL SLT: | X99: =X98+X80 -> 120
D100: A | E100: % SLT for F2F Physical Component: [Total F2F Physical /(Total F2F Physical + Total F2F Online + Total Independent Learning) x 100)] | X100: =IFERROR(((SUM(M60:P79)+SUM(M83:P87)+SUM(M91:P95))/X99)* 100,"") -> 48.75
D102: B | E102: % SLT for Online & Independent Learning Component: [(Total F2F Online + Total Independent Learning) /( Total F2F Physical + Total F2F Online + Total Independent Learning) x 100] | X102: =IFERROR((SUM(Q60:W79)+SUM(Q83:W87) + SUM(Q91:W95))/X99 * 100,"") -> 51.25
D103: C | E103: % SLT for All Practical Component: [% F2F Physical Practical + % F2F Online Practical] | X103: =IFERROR(X104+X105,"") -> 0
D104: C1 | E104: % SLT for F2F Physical Practical Component [Total F2F Physical Practical /( Total F2F Physical + Total F2F Online + Total Independent Learning) x 100)] | X104: =IFERROR(SUM(O60:O79)/X99*100,"") -> 0
D105: C2 | E105: % SLT for F2F Online Practical Component [Total F2F Online Practical / (Total F2F Physical + Total F2F Online + Total Independent Learning) x 100] | X105: =IFERROR(SUM(S60:S79)/X99 *100,"") -> 0
Z106: =IFERROR(X102+X104,"") -> 51.25
D107: Please tick (√) if this course is Industrial Training/ Clinical Placement/ Practicum using 50% of Effective Learning Time (ELT)
D108: Note:
D109: * Indicate the CLO based on the CLO's numbering in Item 8
D110: ** For ODL programme: Courses with mandatory practical requiremnets imposed by the programme standards or any related standards can be exempted from complying to the minimum 80% ODL delivery rule in the SLT.
B112: 11 | C112: Identify special requirement or resources to deliver the course (e.g., software, nursery, computer lab, simulation room etc)
B114: 12 | C114: References (include required and further readings, and should be the most current) | K114: 1. Zaidan, Abdul Karim (2011), Al-Wajiz fi Usul al-Fiqh, Thoba’ah Jadidah Mushahhihah wa Munqohhah: Beirut: Muassasah al-Risalah Naasyirun.Z 2. Zaidan, Abdul Karim (1987), Al-Wajiz fi Usul al-Fiqh: Beirut: Muassasah al-Risalah. 3. Al-Zuhaili, Wahbah (1995), Al-Wajiz fi Usul al-Fiqh, Beirut: Dar al-Fikr Al-Ma’ashir. Rujukan Tambahan 1. Al-Syukaini, Muhamad bin Ali bin Muhamad (1993) Isrhad al-Fuhul ila Tahqiq ilmu al-Usul. Beirut: Muassasah al-Kutub al-Thaqafiah 2. Abdul Wahab Khallaf (1947) Ilmu Usul al-Fiqh. Kaherah: Darul Al Qutub al-Ilmiyah. 3. Al-Asyqar, Muhamad Sulaiman Abdullah (2008) Al Waadih fi Usul al-Fiqh Lil Mubtadiin Ma’a al-As ilah Lil Munaqasyah wa At-Tamriinaat. Al-Urdun: Darul al-Nafais. 4. Al-Kafrawy, As’ad Abdul Ghani As-Sayyid dan Muhammad, Ali Juma’ah (2005) Al-Istidlaal ‘inda Al-Usuliyyin.Kaherah: Dar As-Salaam. 5. Al-Atthor, Muhammad Al-Hadhari Khalid (t.t), Tarikh Tasyri’ Al-Islamiy. Beirut: Daar Al-FIkr Al-Arabiy. 6. Zahir, Muhammad Abu An-Nuur, (2007), Usul Al-Fiqh, Kaherah : Daar Al-Bashair.
B116: 13 | C116: Other additional information (if applicable)
C119: Note: Number of PLO indicated is purely for illustration purposes only and the number is subjected to the curriculum design.

Sheet ASY3133
B2: Back To FORM @ TEMPLATE
AI3: √
B5: 1 | C5: Course Name: | F5: FQH AL-IBADAT 2 | AI5: Semester
C6: Course Code: | F6: ASY3133 | AI6: 1
C7: Course Classification: | F7: Major (core) | AI7: 2
B8: 2 | C8: Synopsis: | F8: Perbincangan mengenai hukum-hukum ibadat yang wajib dan sunat: puasa, manasik haji dan umrah, serta ibadah korban dan akikah. | AI8: 3
B9: =B8+1 -> 3 | C9: Name(s) of Academic Staff: | F9: 1 | G9: FATIN AWANIS BINTI HAYU
F10: 2 | AI10: Year Offered
F11: 3 | AI11: 1
B12: =B9+1 -> 4 | C12: Semester and Year offered: | F12: Year Offered | I12: 2 | J12: Semester | L12: 1 | M12: Remarks: | AI12: 2
B13: =B12+1 -> 5 | C13: Credit Value: | F13: =IF(X107 ="√",INT(X99/80),INT(X99/40)) -> 3 | AI13: 3
B14: 6 | C14: Pre-requisite/ co-requisite (if any): | AI14: 4
AI15: 5
B16: 7 | C16: Course Learning Outcomes (CLO) | F16: CLO1 | H16: Menjelas hukum-hukum ibadah khusus dengan jelas. (PLO1, C2) | AI16: 6
F17: CLO2 | H17: Mempraktikkan hukum-hukum dengan betul berpandukan rujukan dan maklumat yang tepat (PLO3, CTPS2, P3) | AI17: 7
F18: CLO3 | H18: Menyelesaikan masalah berdasarkan isu dan masalah semasa yang wujud (PLO5, A3) | AI18: 8
AI20: Compulsory
AI21: Major (core)
AI22: Minor
AI23: Elective (core)
AI24: Elective (open/free)
B25: 8 | C25: Mapping of the Course Learning Outcomes to the Programme Learning Outcomes, Teaching Methods and Assessment Methods
D27: Course Learning Outcomes | F27: Programme Learning Outcomes (PLO) | R27: Teaching Methods | W27: Assessment Methods
F28: PLO 1 | G28: PLO 2 | H28: PLO 3 | I28: PLO 4 | J28: PLO 5 | K28: PLO 6 | L28: PLO 7 | M28: PLO 8 | N28: PLO 9 | O28: PLO 10 | P28: PLO 11
D29: =IF(ISBLANK(F16),"",F16) -> CLO1 | F29: √ | R29: Kuliah |Tutorial | W29: Kuiz |Ujian| Peperiksaan Akhir
D30: =IF(ISBLANK(F17),"",F17) -> CLO2 | H30: √ | R30: Kuliah |Tutorial | W30: Kuiz|Ujian |Peperiksaan Akhir
D31: CLO3 | J31: √ | R31: Kuliah|Tutorial |pembentangan | W31: Tugasan
AI36: Cognitive skills
D37: Mapping with MQF Cluster of Learning Outcomes | F37: C1 | G37: C2 | H37: C3A | I37: C3B | J37: C3C | K37: C3D | L37: C3E | M37: C3F | N37: C4A | O37: C4B | P37: C5 | AI37: Interpersonal skills
AI38: Communication Skills
AI39: Digital Skills
AI40: Numeracy Skills
D41: Indicate the primary causal link between the CLO and PLO by ticking '√' in the appropriate box. | AI41: Leadership, Autonomy and Responsibility
D42: C1 = Knowledge & Understanding, C2 = Cognitive Skills, C3A = Practical Skills, C3B = Interpersonal Skills, C3C = Communication Skills, C3D = Digital Skills, | AI42: Personal Skills
D43: C3E = Numeracy Skills, C3F = Leadership, Autonomy & Responsibility, C4A = Personal Skills, C4B = Entrepreneurial Skills, C5 = Ethics & Professionalism | AI43: Entrepreneurial Skills
AI44: Ethics and Professionalism
B45: 9 | C45: Transferable Skills (if applicable)
C46: (Skills learned in the course of study which can be useful and utilized in other settings) | I46: 1 | J46: Cognitive skills | AI46: C1
I47: 2 | J47: Communication Skills | AI47: C2
I48: 3 | AI48: C3A
I49: Open-ended response (if any) | AI49: C3B
I50: 4 | J50: Practical Skills | AI50: C3C
AI51: C3D
AB52: ` | AI52: C3E
B53: 10 | C53: Distribution of Student Learning Time (SLT) | AI53: C3F
C54: Note: This SLT calculation is designed for home grown programme only. | AI54: C4A
AI55: C4B
D56: Course Content Outline and Subtopics | K56: CLO* | M56: Learning and Teaching Activities** | X56: Total SLT | AI56: C5
M57: Face-to-Face (F2F) | U57: NF2F Independent Learning (Asynchronous)
M58: Physical | Q58: Online/ Technology-mediated (Synchronous)
M59: L | N59: T | O59: P | P59: O | Q59: L | R59: T | S59: P | T59: O
D60: 1 | E60: 1.0 Pengenalan Fiqh Al-Ibadat 2 | K60: CLO1 | M60: 4 | N60: 2 | U60: 6
D61: 2 | E61: 2.0 Puasa 2.1 Pengenalan 2.2 Puasa Wajib 2.3 Puasa Sunat | K61: CLO2 | M61: 6 | N61: 4 | U61: 8
D62: 3 | E62: 3.0 Zakat 3.1 Pengenalan 3.2 Harta Wajib Zakat 3.3 Pengiraan Nisab 3.4 Golongan Layak Zakat | K62: CLO3 | M62: 6 | N62: 4 | U62: 8
D63: 4 | E63: 4.0 Haji Dan Umrah 4.1 Pengenalan 4.2 Manasik Umrah 4.3 Manasik Haji | K63: CLO3 | M63: 6 | N63: 4 | U63: 8
D64: 5 | E64: 5.0 Korban | K64: CLO3 | M64: 4 | N64: 3 | U64: 5
D65: 6 | E65: 6.0 Akikah | K65: CLO3 | M65: 4 | N65: 3 | U65: 5
D66: 7
D67: 8
D68: 9
D69: 10
D70: =D69+1 -> 11
D71: =D70+1 -> 12
D72: 13
D73: 14
D74: 15
D75: 16
D76: 17
D77: 18
D78: 19
D79: 20
D80: SUB-TOTAL SLT: | X80: =SUM(M60:P79)+SUM(Q60:T79)+SUM(U60:W79) -> 90
D81: Continous Assessement | K81: % | M81: Face-to-Face (F2F) | U81: NF2F Independent Learning for Assessment (Asynchronous)
M82: Physical | Q82: Online/ Technology-mediated (Synchronous)
D83: 1 | E83: Ujian 1 | K83: 10 | M83: 1.5 | U83: 3
D84: 2 | E84: Ujian 2 | K84: 10 | M84: 1.5 | U84: 3
D85: 3 | E85: Kuiz | K85: 10 | M85: 1 | U85: 1
D86: 4 | E86: Tugasan & Pembentangan | K86: 20 | M86: 2 | U86: 6
D87: 5
D88: SUB-TOTAL SLT: | X88: =SUM(M83:W87) -> 19
D89: Final Assessement | K89: % | M89: Face-to-Face (F2F) | U89: NF2F Independent Learning for Assessment (Asynchronous)
M90: Physical | Q90: Online/ Technology-mediated (Synchronous)
D91: 1 | E91: Examination | K91: 50 | M91: 2.5 | U91: 8.5
D92: 2
D93: 3
D94: 4
D95: 5
D96: SUB-TOTAL SLT: | X96: =SUM(M91:W95) -> 11
D98: SLT for Assessment: | X98: =X88+X96 -> 30
D99: GRAND TOTAL SLT: | X99: =X98+X80 -> 120
D100: A | E100: % SLT for F2F Physical Component: [Total F2F Physical /(Total F2F Physical + Total F2F Online + Total Independent Learning) x 100)] | X100: =IFERROR(((SUM(M60:P79)+SUM(M83:P87)+SUM(M91:P95))/X99)* 100,"") -> 48.75
D102: B | E102: % SLT for Online & Independent Learning Component: [(Total F2F Online + Total Independent Learning) /( Total F2F Physical + Total F2F Online + Total Independent Learning) x 100] | X102: =IFERROR((SUM(Q60:W79)+SUM(Q83:W87) + SUM(Q91:W95))/X99 * 100,"") -> 51.25
D103: C | E103: % SLT for All Practical Component: [% F2F Physical Practical + % F2F Online Practical] | X103: =IFERROR(X104+X105,"") -> 0
D104: C1 | E104: % SLT for F2F Physical Practical Component [Total F2F Physical Practical /( Total F2F Physical + Total F2F Online + Total Independent Learning) x 100)] | X104: =IFERROR(SUM(O60:O79)/X99*100,"") -> 0
D105: C2 | E105: % SLT for F2F Online Practical Component [Total F2F Online Practical / (Total F2F Physical + Total F2F Online + Total Independent Learning) x 100] | X105: =IFERROR(SUM(S60:S79)/X99 *100,"") -> 0
Z106: =IFERROR(X102+X104,"") -> 51.25
D107: Please tick (√) if this course is Industrial Training/ Clinical Placement/ Practicum using 50% of Effective Learning Time (ELT)
D108: Note:
D109: * Indicate the CLO based on the CLO's numbering in Item 8
D110: ** For ODL programme: Courses with mandatory practical requiremnets imposed by the programme standards or any related standards can be exempted from complying to the minimum 80% ODL delivery rule in the SLT.
B112: 11 | C112: Identify special requirement or resources to deliver the course (e.g., software, nursery, computer lab, simulation room etc)
B114: 12 | C114: References (include required and further readings, and should be the most current) | K114: 1. Al-Zuhaili, Wahbah (1997) Al-Fiqh al-Islami wa Adillatuh. Damsyik: Dar al-Fikr. 2. Al- Asqalani, ‘Ibnu Hajr (2003) Bulughu Al-Maram min Adillat Al-Ahkam. Riyadh: Maktabat Al-Rushd Nashrin.
B116: 13 | C116: Other additional information (if applicable)
C119: Note: Number of PLO indicated is purely for illustration purposes only and the number is subjected to the curriculum design.

Sheet ASY3143
B2: Back To FORM @ TEMPLATE
AI3: √
B5: 1 | C5: Course Name: | F5: FIQH AL-MUAMALAT | AI5: Semester
C6: Course Code: | F6: ASY3143 | AI6: 1
C7: Course Classification: | F7: Major (core) | AI7: 2
B8: 2 | C8: Synopsis: | F8: Perbincangan mengenai asas-asas muamalah Islam seperti konsep hak, kehartaan, pemilikan dan kontrak atau akad ; jenis-jenis kontrak seperti jual beli, pinjaman (al-qard), sewaan (al-ijarah), syarikat, pemberian (hibah), simpanan (wadi`ah), perwakilan (wakalah), jaminan (kafalah), surat jaminan hutang (hiwalah), gadaian (rahn), penerokaan tanah (ihya’ al-mawat), perkongsian pertanian (muzara`ah), barang jumpaan (luqatah) dan wakaf. | AI8: 3
B9: =B8+1 -> 3 | C9: Name(s) of Academic Staff: | F9: 1 | G9: RADIN SERI NABAHAH BT AHMAD ZABIDI
F10: 2 | AI10: Year Offered
F11: 3 | AI11: 1
B12: =B9+1 -> 4 | C12: Semester and Year offered: | F12: Year Offered | I12: 2 | J12: Semester | L12: 1 | M12: Remarks: | AI12: 2
B13: =B12+1 -> 5 | C13: Credit Value: | F13: =IF(X107 ="√",INT(X99/80),INT(X99/40)) -> 3 | AI13: 3
B14: 6 | C14: Pre-requisite/ co-requisite (if any): | AI14: 4
AI15: 5
B16: 7 | C16: Course Learning Outcomes (CLO) | F16: CLO1 | H16: Menjelaskan konsep,prinsip, rukun dan syarat yang berkaitan dengan muamalat, harta dan hak serta perkaitannya (PLO1, C2) | AI16: 6
F17: CLO2 | H17: Membezakan antara sistem muamalat Islam dan bukan Islam (PLO2, CTPS, P1) | AI17: 7
F18: CLO3 | H18: Mencadangkan jenis-jenis kontrak asas muamalat iaitu al-bai‘, al-qard, al-ijarah, al-hibah, al-wadi`ah, al-wakalah, al-kafalah, al-hiwalah, al-rahn, al-syarikat dan al-luqatah dengan isu semasa (PLO4, A2) | AI18: 8
AI20: Compulsory
AI21: Major (core)
AI22: Minor
AI23: Elective (core)
AI24: Elective (open/free)
B25: 8 | C25: Mapping of the Course Learning Outcomes to the Programme Learning Outcomes, Teaching Methods and Assessment Methods
D27: Course Learning Outcomes | F27: Programme Learning Outcomes (PLO) | R27: Teaching Methods | W27: Assessment Methods
F28: PLO 1 | G28: PLO 2 | H28: PLO 3 | I28: PLO 4 | J28: PLO 5 | K28: PLO 6 | L28: PLO 7 | M28: PLO 8 | N28: PLO 9 | O28: PLO 10 | P28: PLO 11
D29: =IF(ISBLANK(F16),"",F16) -> CLO1 | F29: √ | R29: Kuliah |Tutorial | W29: Kuiz |Ujian| Peperiksaan Akhir
D30: =IF(ISBLANK(F17),"",F17) -> CLO2 | G30: √ | R30: Kuliah |Tutorial | W30: Kuiz|Ujian |Peperiksaan Akhir
D31: CLO3 | I31: √ | R31: Kuliah|Tutorial |pembentangan | W31: Tugasan
AI36: Cognitive skills
D37: Mapping with MQF Cluster of Learning Outcomes | F37: C1 | G37: C2 | H37: C3A | I37: C3B | J37: C3C | K37: C3D | L37: C3E | M37: C3F | N37: C4A | O37: C4B | P37: C5 | AI37: Interpersonal skills
AI38: Communication Skills
AI39: Digital Skills
AI40: Numeracy Skills
D41: Indicate the primary causal link between the CLO and PLO by ticking '√' in the appropriate box. | AI41: Leadership, Autonomy and Responsibility
D42: C1 = Knowledge & Understanding, C2 = Cognitive Skills, C3A = Practical Skills, C3B = Interpersonal Skills, C3C = Communication Skills, C3D = Digital Skills, | AI42: Personal Skills
D43: C3E = Numeracy Skills, C3F = Leadership, Autonomy & Responsibility, C4A = Personal Skills, C4B = Entrepreneurial Skills, C5 = Ethics & Professionalism | AI43: Entrepreneurial Skills
AI44: Ethics and Professionalism
B45: 9 | C45: Transferable Skills (if applicable)
C46: (Skills learned in the course of study which can be useful and utilized in other settings) | I46: 1 | J46: Cognitive skills | AI46: C1
I47: 2 | J47: Interpersonal skills | AI47: C2
I48: 3 | AI48: C3A
I49: Open-ended response (if any) | AI49: C3B
I50: 4 | AI50: C3C
AI51: C3D
AB52: ` | AI52: C3E
B53: 10 | C53: Distribution of Student Learning Time (SLT) | AI53: C3F
C54: Note: This SLT calculation is designed for home grown programme only. | AI54: C4A
AI55: C4B
D56: Course Content Outline and Subtopics | K56: CLO* | M56: Learning and Teaching Activities** | X56: Total SLT | AI56: C5
M57: Face-to-Face (F2F) | U57: NF2F Independent Learning (Asynchronous)
M58: Physical | Q58: Online/ Technology-mediated (Synchronous)
M59: L | N59: T | O59: P | P59: O | Q59: L | R59: T | S59: P | T59: O
D60: 1 | E60: 1.0 Pengenalan Fiqh Muamalat : Pembahagian Fiqh , Definisi serta teori Hak, Harta serta Kontrak (Akad) | K60: CLO1 | M60: 4 | N60: 2 | U60: 6
D61: 2 | E61: 2.0 Dasar Fiqh Al-Muamalat : 8 Dasar | K61: CLO1 CLO2 | M61: 6 | N61: 4 | U61: 8
D62: 3 | E62: 3.0 Kontrak (`Aqad) 3.1 Pengertian Kontrak 3.2 Unsur-unsur pembentukan kontrak - Rukun dan Syarat | K62: CLO1 CLO2 | M62: 6 | N62: 4 | U62: 8
D63: 4 | E63: 4.0 Jenis-jenis kontrak asas muamalat & aplikasi semasa 4.1 Al-Buyu’ 4.2 Al-Riba - Konsep, rukun dan syarat 4.3 Al-Qard 4.4 Al-Ijarah - Konsep, rukun dan syarat 4.5 Al-Syarikah 4.6 Al-Hibah - Konsep, rukun dan syarat 4.7 Al-Wadi’ah 4.8 Al-Wakalah - Konsep, rukun dan syarat 4.9 Al-Kafalah 4.10 Al-Hiwalah -Konsep, rukun dan syarat 4.11 Al-Rahn -Konsep, rukun dan syarat 4.12 Contoh Aplikasi semasa dalam perbankan Islam | K63: CLO1 CLO2 | M63: 8 | N63: 6 | U63: 10
D64: 5 | E64: 5.0 Pemilikan 5.1 Konsep Pemilikan 5.2 Jenis-jenis Pemilikan 5.3 Pemilikan Tanah 5.4 Ihya’ al-Mawat 5.5 Muzara’ah & Musaqah 5.6 Luqatoh 5.7 Wakaf | K64: CLO1 CLO2 | M64: 6 | N64: 4 | U64: 8
D65: 6
D66: 7
D67: 8
D68: 9
D69: 10
D70: =D69+1 -> 11
D71: =D70+1 -> 12
D72: 13
D73: 14
D74: 15
D75: 16
D76: 17
D77: 18
D78: 19
D79: 20
D80: SUB-TOTAL SLT: | X80: =SUM(M60:P79)+SUM(Q60:T79)+SUM(U60:W79) -> 90
D81: Continous Assessement | K81: % | M81: Face-to-Face (F2F) | U81: NF2F Independent Learning for Assessment (Asynchronous)
M82: Physical | Q82: Online/ Technology-mediated (Synchronous)
D83: 1 | E83: Ujian 1 | K83: 10 | M83: 1.5 | U83: 3
D84: 2 | E84: Ujian 2 | K84: 10 | M84: 1.5 | U84: 3
D85: 3 | E85: Kuiz | K85: 10 | M85: 1 | U85: 1
D86: 4 | E86: Tugasan & Pembentangan | K86: 20 | M86: 2 | U86: 6
D87: 5
D88: SUB-TOTAL SLT: | X88: =SUM(M83:W87) -> 19
D89: Final Assessement | K89: % | M89: Face-to-Face (F2F) | U89: NF2F Independent Learning for Assessment (Asynchronous)
M90: Physical | Q90: Online/ Technology-mediated (Synchronous)
D91: 1 | E91: Examination | K91: 50 | M91: 2.5 | U91: 8.5
D92: 2
D93: 3
D94: 4
D95: 5
D96: SUB-TOTAL SLT: | X96: =SUM(M91:W95) -> 11
D98: SLT for Assessment: | X98: =X88+X96 -> 30
D99: GRAND TOTAL SLT: | X99: =X98+X80 -> 120
D100: A | E100: % SLT for F2F Physical Component: [Total F2F Physical /(Total F2F Physical + Total F2F Online + Total Independent Learning) x 100)] | X100: =IFERROR(((SUM(M60:P79)+SUM(M83:P87)+SUM(M91:P95))/X99)* 100,"") -> 48.75
D102: B | E102: % SLT for Online & Independent Learning Component: [(Total F2F Online + Total Independent Learning) /( Total F2F Physical + Total F2F Online + Total Independent Learning) x 100] | X102: =IFERROR((SUM(Q60:W79)+SUM(Q83:W87) + SUM(Q91:W95))/X99 * 100,"") -> 51.25
D103: C | E103: % SLT for All Practical Component: [% F2F Physical Practical + % F2F Online Practical] | X103: =IFERROR(X104+X105,"") -> 0
D104: C1 | E104: % SLT for F2F Physical Practical Component [Total F2F Physical Practical /( Total F2F Physical + Total F2F Online + Total Independent Learning) x 100)] | X104: =IFERROR(SUM(O60:O79)/X99*100,"") -> 0
D105: C2 | E105: % SLT for F2F Online Practical Component [Total F2F Online Practical / (Total F2F Physical + Total F2F Online + Total Independent Learning) x 100] | X105: =IFERROR(SUM(S60:S79)/X99 *100,"") -> 0
Z106: =IFERROR(X102+X104,"") -> 51.25
D107: Please tick (√) if this course is Industrial Training/ Clinical Placement/ Practicum using 50% of Effective Learning Time (ELT)
D108: Note:
D109: * Indicate the CLO based on the CLO's numbering in Item 8
D110: ** For ODL programme: Courses with mandatory practical requiremnets imposed by the programme standards or any related standards can be exempted from complying to the minimum 80% ODL delivery rule in the SLT.
B112: 11 | C112: Identify special requirement or resources to deliver the course (e.g., software, nursery, computer lab, simulation room etc)
B114: 12 | C114: References (include required and further readings, and should be the most current) | K114: Rujukan Utama: 1. Zaharuddin Abdul Rahman (2008), Wang, Anda & Islam : Halal dan Haram dalam Kewangan dan Perbankan, KL : True Wealth Sdn. Bhd. 2. Ahmad, Abdul Rahim, (2009) Fiqh Al-Muamalat, KUIS. 3. Al-Zuhaili, Wahbah (1997) Al-Fiqh al-Islami wa Adillatuh. Damsyik: Dar al-Fikr. 4. Al-Khin, Mustafa (1989), Al-Fiqh al-Manhaji, Damsyik: Dar al-Ilm al-Insaniah
B116: 13 | C116: Other additional information (if applicable)
C119: Note: Number of PLO indicated is purely for illustration purposes only and the number is subjected to the curriculum design.

Sheet PST 2031
B2: Back To FORM @ TEMPLATE
AI3: √
B5: 1 | C5: Course Name: | F5: Program Pembangunan Syakhsiah Terpuji 3 (Pesat 3) | AI5: Semester
C6: Course Code: | F6: PST 2031 | AI6: 1
C7: Course Classification: | F7: Compulsory | AI7: 2
B8: 2 | C8: Synopsis: | F8: Kursus ini menfokus kepada kemahiran menghafaz surah-surah yang terpilih, kesempurnaan dalam mengerjakan ibadah terutama ibadah khusus ;tauhid uluhiyyah, rububiyyah, tauhid asma wa sifat dan perkara-perkara yang membatalkan iman serta sifat-sifat orang mencintai Islam. | AI8: 3
B9: =B8+1 -> 3 | C9: Name(s) of Academic Staff: | F9: 1 | G9: Ustaz Mahamad Bin Senik
F10: 2 | G10: Ustaz Mohd Khairol Bin Mokhtar | AI10: Year Offered
F11: 3 | G11: Ustazah Radin Seri Nabahah Binti Ahmad Zabidi | AI11: 1
B12: =B9+1 -> 4 | C12: Semester and Year offered: | F12: Year Offered | I12: 3 | J12: Semester | L12: 1 | M12: Remarks: | AI12: 2
B13: =B12+1 -> 5 | C13: Credit Value: | F13: =IF(X107 ="√",INT(X99/80),INT(X99/40)) -> 1 | AI13: 3
B14: 6 | C14: Pre-requisite/ co-requisite (if any): | AI14: 4
AI15: 5
B16: 7 | C16: Course Learning Outcomes (CLO) | F16: CLO1 | H16: Mengaplikasikan ilmu Al-Quran, solat jemaah dan tuntutan Islam dalam diri dan keluarga. (C3, PLO1) | AI16: 6
F17: CLO2 | H17: Menerangkan kesempurnaan dalam mengerjakan ibadah, asas tauhid dan sifat orang yang mencintai Islam. (A3, CS3, PLO5) | AI17: 7
F18: CLO3 | H18: Menghafal surah pilihan dengan tajwid yang betul. (A3, LL3, PLO9) | AI18: 8
AI20: Compulsory
AI21: Major (core)
AI22: Minor
AI23: Elective (core)
AI24: Elective (open/free)
B25: 8 | C25: Mapping of the Course Learning Outcomes to the Programme Learning Outcomes, Teaching Methods and Assessment Methods
D27: Course Learning Outcomes | F27: Programme Learning Outcomes (PLO) | R27: Teaching Methods | W27: Assessment Methods
F28: PLO 1 | G28: PLO 2 | H28: PLO 3 | I28: PLO 4 | J28: PLO 5 | K28: PLO 6 | L28: PLO 7 | M28: PLO 8 | N28: PLO 9 | O28: PLO 10 | P28: PLO 11
D29: =IF(ISBLANK(F16),"",F16) -> CLO1 | F29: √ | R29: Kuliah | W29: Kuiz | Ujian |Tugasan
D30: =IF(ISBLANK(F17),"",F17) -> CLO2 | J30: √ | R30: Kuliah | W30: Kuiz | Ujian |Tugasan
D31: CLO3 | N31: √ | R31: Bacaan | Hafazan | W31: Ujian Lisan
AI36: Cognitive skills
D37: Mapping with MQF Cluster of Learning Outcomes | F37: C1 | G37: C2 | H37: C3A | I37: C3B | J37: C3C | K37: C3D | L37: C3E | M37: C3F | N37: C4A | O37: C4B | P37: C5 | AI37: Interpersonal skills
AI38: Communication Skills
AI39: Digital Skills
AI40: Numeracy Skills
D41: Indicate the primary causal link between the CLO and PLO by ticking '√' in the appropriate box. | AI41: Leadership, Autonomy and Responsibility
D42: C1 = Knowledge & Understanding, C2 = Cognitive Skills, C3A = Practical Skills, C3B = Interpersonal Skills, C3C = Communication Skills, C3D = Digital Skills, | AI42: Personal Skills
D43: C3E = Numeracy Skills, C3F = Leadership, Autonomy & Responsibility, C4A = Personal Skills, C4B = Entrepreneurial Skills, C5 = Ethics & Professionalism | AI43: Entrepreneurial Skills
AI44: Ethics and Professionalism
B45: 9 | C45: Transferable Skills (if applicable)
C46: (Skills learned in the course of study which can be useful and utilized in other settings) | I46: 1 | J46: Cognitive skills | AI46: C1
I47: 2 | J47: Communication Skills | AI47: C2
I48: 3 | J48: Personal Skills | AI48: C3A
I49: Open-ended response (if any) | AI49: C3B
I50: 4 | AI50: C3C
AI51: C3D
AB52: ` | AI52: C3E
B53: 10 | C53: Distribution of Student Learning Time (SLT) | AI53: C3F
C54: Note: This SLT calculation is designed for home grown programme only. | AI54: C4A
AI55: C4B
D56: Course Content Outline and Subtopics | K56: CLO* | M56: Learning and Teaching Activities** | X56: Total SLT | AI56: C5
M57: Face-to-Face (F2F) | U57: NF2F Independent Learning (Asynchronous)
M58: Physical | Q58: Online/ Technology-mediated (Synchronous)
M59: L | N59: T | O59: P | P59: O | Q59: L | R59: T | S59: P | T59: O
D60: 1 | E60: 1.0 AL-QURAN –HAFAZAN SURAH-SURAH PILIHAN 1.1 SURAH AL-QARIAH 1.2 SURAH ,AL-A’DIYAT 1.3 SURAH AL-ZALZALAH 1.4 SURAH AL-BAYYINAH 1.5 SURAH AL-TAKASUR 1.6 SURAH AL-QADR | K60: CLO1, CLO3 | M60: 2 | O60: 2 | U60: 6
D61: 2 | E61: 2.0 KESEMPURNAAN DALAM MENGERJAKAN IBADAH 2.1 Kepentingan Ibadah Bagi Manusia 2.2 Tujuan Dan Hakikat Ibadah Dalam Islam 2.3 Ibadah Dan Keberkesanan Dalam Kehidupan | K61: CLO1, CLO2 | M61: 2 | U61: 3
D62: 3 | E62: 3.0 KONSEP-KONSEP ASAS TAUHID DALAM ISLAM 3.1 Tauhid Uluhiyyah 3.2 Tauhid Rububiyyah 3.3 Tauhid Asma’ Wa Sifat 3.4 Perkara-Perkara Yang Membatalkan Iman | K62: CLO1, CLO2 | M62: 2 | U62: 3
D63: 4 | E63: 4.0 SIFAT-SIFAT ORANG MENCINTAI ISLAM 4.1 Makna Islam 4.2 Persaudaraan Islam 4.3 Yakin dengan Islam 4.4 Berkerja untuk Islam | K63: CLO1, CLO2 | M63: 2 | U63: 3
D64: 5
D65: 6
D66: 7
D67: 8
D68: 9
D69: 10
D70: =D69+1 -> 11
D71: =D70+1 -> 12
D72: 13
D73: 14
D74: 15
D75: 16
D76: 17
D77: 18
D78: 19
D79: 20
D80: SUB-TOTAL SLT: | X80: =SUM(M60:P79)+SUM(Q60:T79)+SUM(U60:W79) -> 25
D81: Continous Assessement | K81: % | M81: Face-to-Face (F2F) | U81: NF2F Independent Learning for Assessment (Asynchronous)
M82: Physical | Q82: Online/ Technology-mediated (Synchronous)
D83: 1 | E83: Ujian & Kuiz | K83: 30 | M83: 1 | U83: 2
D84: 2 | E84: Ujian Lisan | K84: 20 | M84: 1 | U84: 2
D85: 3 | E85: Pemerhatian Syakhsiah | K85: 10 | M85: 0
D86: 4 | E86: Tugasan | K86: 40 | M86: 2 | U86: 7
D87: 5
D88: SUB-TOTAL SLT: | X88: =SUM(M83:W87) -> 15
D89: Final Assessement | K89: % | M89: Face-to-Face (F2F) | U89: NF2F Independent Learning for Assessment (Asynchronous)
M90: Physical | Q90: Online/ Technology-mediated (Synchronous)
D91: 1
D92: 2
D93: 3
D94: 4
D95: 5
D96: SUB-TOTAL SLT: | X96: =SUM(M91:W95) -> 0
D98: SLT for Assessment: | X98: =X88+X96 -> 15
D99: GRAND TOTAL SLT: | X99: =X98+X80 -> 40
D100: A | E100: % SLT for F2F Physical Component: [Total F2F Physical /(Total F2F Physical + Total F2F Online + Total Independent Learning) x 100)] | X100: =IFERROR(((SUM(M60:P79)+SUM(M83:P87)+SUM(M91:P95))/X99)* 100,"") -> 35
D102: B | E102: % SLT for Online & Independent Learning Component: [(Total F2F Online + Total Independent Learning) /( Total F2F Physical + Total F2F Online + Total Independent Learning) x 100] | X102: =IFERROR((SUM(Q60:W79)+SUM(Q83:W87) + SUM(Q91:W95))/X99 * 100,"") -> 65
D103: C | E103: % SLT for All Practical Component: [% F2F Physical Practical + % F2F Online Practical] | X103: =IFERROR(X104+X105,"") -> 5
D104: C1 | E104: % SLT for F2F Physical Practical Component [Total F2F Physical Practical /( Total F2F Physical + Total F2F Online + Total Independent Learning) x 100)] | X104: =IFERROR(SUM(O60:O79)/X99*100,"") -> 5
D105: C2 | E105: % SLT for F2F Online Practical Component [Total F2F Online Practical / (Total F2F Physical + Total F2F Online + Total Independent Learning) x 100] | X105: =IFERROR(SUM(S60:S79)/X99 *100,"") -> 0
Z106: =IFERROR(X102+X104,"") -> 70
D107: Please tick (√) if this course is Industrial Training/ Clinical Placement/ Practicum using 50% of Effective Learning Time (ELT)
D108: Note:
D109: * Indicate the CLO based on the CLO's numbering in Item 8
D110: ** For ODL programme: Courses with mandatory practical requiremnets imposed by the programme standards or any related standards can be exempted from complying to the minimum 80% ODL delivery rule in the SLT.
B112: 11 | C112: Identify special requirement or resources to deliver the course (e.g., software, nursery, computer lab, simulation room etc)
B114: 12 | C114: References (include required and further readings, and should be the most current) | K114: Dr Muhammad Na’im Yasin,(2007), Iman: Rukun, Hakikatnya dan Pembatalnya. Kedah, Pustaka Salam. Mohd Ali Hashimi Alih bahasa Haji Tahir Daeng Mengati(2007), Keperibadian Muslim, Kuala Lumpur, Sarjana Media. Dr Irwan Prayitno (2003), Keperibadian Muslim, Bekasi, Pustaka Tarbiatuna. Sayid Sabiq(1991), Aqidah Dalam Islam, Kuala Lumpur, Pustaka Salam. Abul Al A’laa Maududi(1984), Dasar-dasar Islam,Bandung, Penerbit Pustaka. Sayid Sabiq(1978), Fiqhus Sunnah Jilid 3, Bandung, PT AlMa’arif. Dr Yusuf Qaradhawi (2001), Ibadah Dalam Islam, Surabaya, PT. Bina Ilmu.
B116: 13 | C116: Other additional information (if applicable)
C119: Note: Number of PLO indicated is purely for illustration purposes only and the number is subjected to the curriculum design.

Sheet AQS2163
B2: Back To FORM @ TEMPLATE
AI3: √
B5: 1 | C5: Course Name: | F5: TAFSIR AYAT AL-AHKAM | AI5: Semester
C6: Course Code: | F6: AQS2163 | AI6: 1
C7: Course Classification: | F7: Major (core) | AI7: 2
B8: 2 | C8: Synopsis: | F8: Kursus ini berkenaan tafsir beberapa ayat hukum pilihan yang mengandungi hukum syara’ meliputi aspek akidah, pendidikan dan sahsiah, keluarga, kemasyarakatan, kesihatan, pembangunan dan ekonomi, serta siasah/kepimpinan. Skop kajian ayat ialah asbab al-nuzul, munasabah al-ayat, syarh al-ayat secara ijmali dan tafsili, maksud ungkapan ayat, istinbat hukum, dan taujihat. Setiap ayat yang dikaji dikaitkan dengan nas lain yang berkaitan dan realiti masyarakat masa kini. | AI8: 3
B9: =B8+1 -> 3 | C9: Name(s) of Academic Staff: | F9: 1 | G9: FATIN AWANIS BINTI HAYU
F10: 2 | AI10: Year Offered
F11: 3 | AI11: 1
B12: =B9+1 -> 4 | C12: Semester and Year offered: | F12: Year Offered | I12: 3 | J12: Semester | L12: 1 | M12: Remarks: | AI12: 2
B13: =B12+1 -> 5 | C13: Credit Value: | F13: =IF(X107 ="√",INT(X99/80),INT(X99/40)) -> 3 | AI13: 3
B14: 6 | C14: Pre-requisite/ co-requisite (if any): | AI14: 4
AI15: 5
B16: 7 | C16: Course Learning Outcomes (CLO) | F16: CLO1 | H16: Menjelaskan maksud ayat, sebab-sebab turun ayat, hubungan ayat tersebut dengan ayat yang lepas dan intinbat hukum daripada ayat-ayat hukum yang dipelajari. (C2, PLO1) | AI16: 6
F17: CLO2 | H17: Mempamerkan pengetahuan dan kefahaman dalam bidang Tafsir Ayat Ahkam untuk memahami hukum syarak; (P2, CTPS2, PLO3) | AI17: 7
F18: CLO3 | H18: Menghujah isu-isu yang berkaitan dengan sesuatu Ayat Ahkam. (A3, PLO4) | AI18: 8
AI20: Compulsory
AI21: Major (core)
AI22: Minor
AI23: Elective (core)
AI24: Elective (open/free)
B25: 8 | C25: Mapping of the Course Learning Outcomes to the Programme Learning Outcomes, Teaching Methods and Assessment Methods
D27: Course Learning Outcomes | F27: Programme Learning Outcomes (PLO) | R27: Teaching Methods | W27: Assessment Methods
F28: PLO 1 | G28: PLO 2 | H28: PLO 3 | I28: PLO 4 | J28: PLO 5 | K28: PLO 6 | L28: PLO 7 | M28: PLO 8 | N28: PLO 9 | O28: PLO 10 | P28: PLO 11
D29: =IF(ISBLANK(F16),"",F16) -> CLO1 | F29: √ | R29: Kuliah |Tutorial | W29: Kuiz |Ujian| Peperiksaan Akhir
D30: =IF(ISBLANK(F17),"",F17) -> CLO2 | H30: √ | R30: Kuliah |Tutorial | W30: Kuiz|Ujian |Peperiksaan Akhir
D31: CLO3 | I31: √ | R31: Kuliah|Tutorial |pembentangan | W31: Tugasan
AI36: Cognitive skills
D37: Mapping with MQF Cluster of Learning Outcomes | F37: C1 | G37: C2 | H37: C3A | I37: C3B | J37: C3C | K37: C3D | L37: C3E | M37: C3F | N37: C4A | O37: C4B | P37: C5 | AI37: Interpersonal skills
AI38: Communication Skills
AI39: Digital Skills
AI40: Numeracy Skills
D41: Indicate the primary causal link between the CLO and PLO by ticking '√' in the appropriate box. | AI41: Leadership, Autonomy and Responsibility
D42: C1 = Knowledge & Understanding, C2 = Cognitive Skills, C3A = Practical Skills, C3B = Interpersonal Skills, C3C = Communication Skills, C3D = Digital Skills, | AI42: Personal Skills
D43: C3E = Numeracy Skills, C3F = Leadership, Autonomy & Responsibility, C4A = Personal Skills, C4B = Entrepreneurial Skills, C5 = Ethics & Professionalism | AI43: Entrepreneurial Skills
AI44: Ethics and Professionalism
B45: 9 | C45: Transferable Skills (if applicable)
C46: (Skills learned in the course of study which can be useful and utilized in other settings) | I46: 1 | J46: Cognitive skills | AI46: C1
I47: 2 | J47: Interpersonal skills | AI47: C2
I48: 3 | AI48: C3A
I49: Open-ended response (if any) | AI49: C3B
I50: 4 | J50: Practical Skills | AI50: C3C
AI51: C3D
AB52: ` | AI52: C3E
B53: 10 | C53: Distribution of Student Learning Time (SLT) | AI53: C3F
C54: Note: This SLT calculation is designed for home grown programme only. | AI54: C4A
AI55: C4B
D56: Course Content Outline and Subtopics | K56: CLO* | M56: Learning and Teaching Activities** | X56: Total SLT | AI56: C5
M57: Face-to-Face (F2F) | U57: NF2F Independent Learning (Asynchronous)
M58: Physical | Q58: Online/ Technology-mediated (Synchronous)
M59: L | N59: T | O59: P | P59: O | Q59: L | R59: T | S59: P | T59: O
D60: 1 | E60: 1.0 Pengenalan Tafsir Ayat Al-Ahkam | K60: CLO1, CLO2 | M60: 2 | N60: 2 | U60: 2
D61: 2 | E61: 2.0 Topik 1: Hukum Penyusuan | K61: CL03 | M61: 2 | N61: 2 | U61: 2
D62: 3 | E62: 3.0 Topik 2: Riba | K62: CL03 | M62: 2 | N62: 2 | U62: 2
D63: 4 | E63: 4.0 Topik 3: Hukum Halal Haram Makanan | K63: CL03 | M63: 4 | N63: 2 | U63: 5
D64: 5 | E64: 5.0 Topik 4: Hukum Hijab Wanita | K64: CL03 | M64: 2 | N64: 2 | U64: 4
D65: 6 | E65: 6.0 Topik 6: Hukum Patung dan Gambar | K65: CL03 | M65: 2 | N65: 2 | U65: 4
D66: 7 | E66: 7.0 Topik 7: Hukum Perang dalam Islam | K66: CL03 | M66: 2 | N66: 2 | U66: 4
D67: 8 | E67: 8.0 Topik 8: Hukum Mencari Kebenaran Berita. | K67: CL03 | M67: 4 | N67: 2 | U67: 5
D68: 9 | E68: 9.0 Topik 9: Hukum Menyentuh Mushaf | K68: CL03 | M68: 2 | N68: 2 | U68: 4
D69: 10 | E69: 10.0 Topik 10: Solat Jumaat | K69: CL03 | M69: 4 | N69: 2 | U69: 4
D70: =D69+1 -> 11 | E70: 11.0 Topik 11: Talak | K70: CL03 | M70: 2 | N70: 2 | U70: 4
D71: =D70+1 -> 12
D72: 13
D73: 14
D74: 15
D75: 16
D76: 17
D77: 18
D78: 19
D79: 20
D80: SUB-TOTAL SLT: | X80: =SUM(M60:P79)+SUM(Q60:T79)+SUM(U60:W79) -> 90
D81: Continous Assessement | K81: % | M81: Face-to-Face (F2F) | U81: NF2F Independent Learning for Assessment (Asynchronous)
M82: Physical | Q82: Online/ Technology-mediated (Synchronous)
D83: 1 | E83: Ujian 1 | K83: 10 | M83: 1.5 | U83: 3
D84: 2 | E84: Ujian 2 | K84: 10 | M84: 1.5 | U84: 3
D85: 3 | E85: Kuiz | K85: 10 | M85: 1 | U85: 1
D86: 4 | E86: Tugasan & Pembentangan | K86: 20 | M86: 2 | U86: 6
D87: 5
D88: SUB-TOTAL SLT: | X88: =SUM(M83:W87) -> 19
D89: Final Assessement | K89: % | M89: Face-to-Face (F2F) | U89: NF2F Independent Learning for Assessment (Asynchronous)
M90: Physical | Q90: Online/ Technology-mediated (Synchronous)
D91: 1 | E91: Examination | K91: 50 | M91: 2.5 | U91: 8.5
D92: 2
D93: 3
D94: 4
D95: 5
D96: SUB-TOTAL SLT: | X96: =SUM(M91:W95) -> 11
D98: SLT for Assessment: | X98: =X88+X96 -> 30
D99: GRAND TOTAL SLT: | X99: =X98+X80 -> 120
D100: A | E100: % SLT for F2F Physical Component: [Total F2F Physical /(Total F2F Physical + Total F2F Online + Total Independent Learning) x 100)] | X100: =IFERROR(((SUM(M60:P79)+SUM(M83:P87)+SUM(M91:P95))/X99)* 100,"") -> 48.75
D102: B | E102: % SLT for Online & Independent Learning Component: [(Total F2F Online + Total Independent Learning) /( Total F2F Physical + Total F2F Online + Total Independent Learning) x 100] | X102: =IFERROR((SUM(Q60:W79)+SUM(Q83:W87) + SUM(Q91:W95))/X99 * 100,"") -> 51.25
D103: C | E103: % SLT for All Practical Component: [% F2F Physical Practical + % F2F Online Practical] | X103: =IFERROR(X104+X105,"") -> 0
D104: C1 | E104: % SLT for F2F Physical Practical Component [Total F2F Physical Practical /( Total F2F Physical + Total F2F Online + Total Independent Learning) x 100)] | X104: =IFERROR(SUM(O60:O79)/X99*100,"") -> 0
D105: C2 | E105: % SLT for F2F Online Practical Component [Total F2F Online Practical / (Total F2F Physical + Total F2F Online + Total Independent Learning) x 100] | X105: =IFERROR(SUM(S60:S79)/X99 *100,"") -> 0
Z106: =IFERROR(X102+X104,"") -> 51.25
D107: Please tick (√) if this course is Industrial Training/ Clinical Placement/ Practicum using 50% of Effective Learning Time (ELT)
D108: Note:
D109: * Indicate the CLO based on the CLO's numbering in Item 8
D110: ** For ODL programme: Courses with mandatory practical requiremnets imposed by the programme standards or any related standards can be exempted from complying to the minimum 80% ODL delivery rule in the SLT.
B112: 11 | C112: Identify special requirement or resources to deliver the course (e.g., software, nursery, computer lab, simulation room etc)
B114: 12 | C114: References (include required and further readings, and should be the most current) | K114: 1. Muhammad Ali Al-Sabuni (1997), Rawa’iul Bayan Tafsir Ayat Al-Ahkam min Al-Quran,Kaherah : Dar As-Salam.Jilid 1 dan 2. 2. Wahbah Al-Zuhaili (2010) , Tafsir Al-Munir, Beirut : Dar Al-Fikr Al-
B116: 13 | C116: Other additional information (if applicable)
C119: Note: Number of PLO indicated is purely for illustration purposes only and the number is subjected to the curriculum design.

Sheet AQS1263
B2: Back To FORM @ TEMPLATE
AI3: √
B5: 1 | C5: Course Name: | F5: HADITH AHKAM | AI5: Semester
C6: Course Code: | F6: AQS1263 | AI6: 1
C7: Course Classification: | F7: Major (core) | AI7: 2
B8: 2 | C8: Synopsis: | F8: Kursus ini memperkenalkan kepada pelajar beberapa matan hadis nabawi mengenai topik yag pelbagai antaranya hal permasalahan semasa dan hukum hakam ibadah berpandukan karya-karya syarah. Aspek yang diberi penekanan adalah tarjamah al-rawi, ma’ani al-mufradat, al-ahkam yang berkaitan dengan hadis, dan pengajaran yang boleh diambil dari hadis. Topik-topik perbahasan ialah Kitab Al-Taharah, Kitab al-Solah, Kitab al-Zakah, Kitab al-Saum, Kitab al-Hajj dan Umrah, Kitab al-Nikah, Kitab al-Jinayat dan Kitab al-Jihad. | AI8: 3
B9: =B8+1 -> 3 | C9: Name(s) of Academic Staff: | F9: 1 | G9: MOHD KHAIROL BIN MOKHTAR
F10: 2 | AI10: Year Offered
F11: 3 | AI11: 1
B12: =B9+1 -> 4 | C12: Semester and Year offered: | F12: Year Offered | I12: 3 | J12: Semester | L12: 1 | M12: Remarks: | AI12: 2
B13: =B12+1 -> 5 | C13: Credit Value: | F13: =IF(X107 ="√",INT(X99/80),INT(X99/40)) -> 3 | AI13: 3
B14: 6 | C14: Pre-requisite/ co-requisite (if any): | AI14: 4
AI15: 5
B16: 7 | C16: Course Learning Outcomes (CLO) | F16: CLO1 | H16: Mengenal pasti keutamaan kitab-kitab hadith untuk dijadikan rujukan. (C1, PLO1) | AI16: 6
F17: CLO2 | H17: Menjelaskan hadith-hadith yang boleh dijadikan hujah dan sandaran dalam menyelesaikan sesuatu isu dan permasalahan.(A3, CTPS, PLO5) | AI17: 7
F18: CLO3 | H18: Menyatakan hukum-hakam dan pengajaran yang terdapat di dalam hadith. (P2, PLO2) | AI18: 8
AI20: Compulsory
AI21: Major (core)
AI22: Minor
AI23: Elective (core)
AI24: Elective (open/free)
B25: 8 | C25: Mapping of the Course Learning Outcomes to the Programme Learning Outcomes, Teaching Methods and Assessment Methods
D27: Course Learning Outcomes | F27: Programme Learning Outcomes (PLO) | R27: Teaching Methods | W27: Assessment Methods
F28: PLO 1 | G28: PLO 2 | H28: PLO 3 | I28: PLO 4 | J28: PLO 5 | K28: PLO 6 | L28: PLO 7 | M28: PLO 8 | N28: PLO 9 | O28: PLO 10 | P28: PLO 11
D29: =IF(ISBLANK(F16),"",F16) -> CLO1 | F29: √ | R29: Kuliah |Tutorial | W29: Kuiz |Ujian| Peperiksaan Akhir
D30: =IF(ISBLANK(F17),"",F17) -> CLO2 | H30: √ | R30: Kuliah |Tutorial | W30: Kuiz|Ujian |Peperiksaan Akhir
D31: CLO3 | I31: √ | R31: Kuliah|Tutorial |pembentangan | W31: Tugasan
AI36: Cognitive skills
D37: Mapping with MQF Cluster of Learning Outcomes | F37: C1 | G37: C2 | H37: C3A | I37: C3B | J37: C3C | K37: C3D | L37: C3E | M37: C3F | N37: C4A | O37: C4B | P37: C5 | AI37: Interpersonal skills
AI38: Communication Skills
AI39: Digital Skills
AI40: Numeracy Skills
D41: Indicate the primary causal link between the CLO and PLO by ticking '√' in the appropriate box. | AI41: Leadership, Autonomy and Responsibility
D42: C1 = Knowledge & Understanding, C2 = Cognitive Skills, C3A = Practical Skills, C3B = Interpersonal Skills, C3C = Communication Skills, C3D = Digital Skills, | AI42: Personal Skills
D43: C3E = Numeracy Skills, C3F = Leadership, Autonomy & Responsibility, C4A = Personal Skills, C4B = Entrepreneurial Skills, C5 = Ethics & Professionalism | AI43: Entrepreneurial Skills
AI44: Ethics and Professionalism
B45: 9 | C45: Transferable Skills (if applicable)
C46: (Skills learned in the course of study which can be useful and utilized in other settings) | I46: 1 | J46: Cognitive skills | AI46: C1
I47: 2 | J47: Interpersonal skills | AI47: C2
I48: 3 | AI48: C3A
I49: Open-ended response (if any) | AI49: C3B
I50: 4 | J50: Practical Skills | AI50: C3C
AI51: C3D
AB52: ` | AI52: C3E
B53: 10 | C53: Distribution of Student Learning Time (SLT) | AI53: C3F
C54: Note: This SLT calculation is designed for home grown programme only. | AI54: C4A
AI55: C4B
D56: Course Content Outline and Subtopics | K56: CLO* | M56: Learning and Teaching Activities** | X56: Total SLT | AI56: C5
M57: Face-to-Face (F2F) | U57: NF2F Independent Learning (Asynchronous)
M58: Physical | Q58: Online/ Technology-mediated (Synchronous)
M59: L | N59: T | O59: P | P59: O | Q59: L | R59: T | S59: P | T59: O
D60: 1 | E60: 1.0 Kitab Al-Taharah Hadis 1 & hadis 2 1.1 Perawi Hadis 1.2 Makna al-Mufradat 1.3 Huraian hadis secara ringkas 1.4 Fiqh al-Hadith 1.5 Pengajaran dari hadith | K60: CLO1, CLO2, CLO3 | M60: 4 | N60: 3 | U60: 5
D61: 2 | E61: 2.0 Kitab al-Solah Hadis 1 & hadis 2 2.1 Perawi hadis 2.2 Makna al-mufradat 2.3 Huraian hadis secara ringkas 2.4 Fiqh Al-Hadith 2.5 Pengajaran dari Hadis | K61: CLO1, CLO2, CLO3 | M61: 4 | N61: 3 | U61: 5
D62: 3 | E62: 3.0 Kitab al-Zakah Hadis 1 3.1 Perawi hadis 3.2 Makna al-mufradat 3.3 Huraian hadis secara ringkas 3.4 Fiqh Al-Hadith 3.5 Pengajaran dari Hadis | K62: CLO1, CLO2, CLO3 | M62: 2 | N62: 2 | U62: 3
D63: 4 | E63: 4.0Kitab al-Saum Hadis 1 & hadis 2 4.1 Perawi hadis 4.2 Makna al-mufradat 4.3 Huraian hadis secara ringkas 4.4 Fiqh Al-Hadith 4.5 Pengajaran dari Hadis | K63: CLO1, CLO2, CLO3 | M63: 4 | N63: 4 | U63: 7
D64: 5 | E64: 5.0 Kitab al-Hajj Wa al-Umrah Hadis 1 & hadis 2 5.1 Perawi hadis 5.2 Makna al-mufradat 5.3 Huraian hadis secara ringkas 5.4 Fiqh Al-Hadith 5.5 Pengajaran dari Hadis | K64: CLO1, CLO2, CLO3 | M64: 4 | N64: 4 | U64: 7
D65: 6 | E65: 6.0 Kitab al-Nikah Hadis 1 6.1 Perawi hadis 6.2 Makna al-mufradat 6.3 Huraian hadis secara ringkas 6.4 Fiqh Al-Hadith 6.5 Pengajaran dari Hadis | K65: CLO1, CLO2, CLO3 | M65: 2 | N65: 2 | U65: 3
D66: 7 | E66: 7.0 Kitab al-Jinayat Hadis 1 & hadis 2 7.1 Perawi hadis 7.2 Makna al-mufradat 7.3 Huraian hadis secara ringkas 7.4 Fiqh Al-Hadith 7.5 Pengajaran dari Hadis | K66: CLO1, CLO2, CLO3 | M66: 4 | N66: 4 | U66: 7
D67: 8 | E67: 8.0 al-Jihad Hadis 1 8.1 Perawi hadis 8.2 Makna al-mufradat 8.3 Huraian hadis secara ringkas 8.4 Fiqh Al-Hadith 8.5 Pengajaran dari Hadis | K67: CLO1, CLO2, CLO3 | M67: 2 | N67: 2 | U67: 3
D68: 9
D69: 10
D70: =D69+1 -> 11
D71: =D70+1 -> 12
D72: 13
D73: 14
D74: 15
D75: 16
D76: 17
D77: 18
D78: 19
D79: 20
D80: SUB-TOTAL SLT: | X80: =SUM(M60:P79)+SUM(Q60:T79)+SUM(U60:W79) -> 90
D81: Continous Assessement | K81: % | M81: Face-to-Face (F2F) | U81: NF2F Independent Learning for Assessment (Asynchronous)
M82: Physical | Q82: Online/ Technology-mediated (Synchronous)
D83: 1 | E83: Ujian 1 | K83: 10 | M83: 1.5 | U83: 3
D84: 2 | E84: Ujian 2 | K84: 10 | M84: 1.5 | U84: 3
D85: 3 | E85: Kuiz | K85: 10 | M85: 1 | U85: 1
D86: 4 | E86: Tugasan & Pembentangan | K86: 20 | M86: 2 | U86: 6
D87: 5
D88: SUB-TOTAL SLT: | X88: =SUM(M83:W87) -> 19
D89: Final Assessement | K89: % | M89: Face-to-Face (F2F) | U89: NF2F Independent Learning for Assessment (Asynchronous)
M90: Physical | Q90: Online/ Technology-mediated (Synchronous)
D91: 1 | E91: Examination | K91: 50 | M91: 2.5 | U91: 8.5
D92: 2
D93: 3
D94: 4
D95: 5
D96: SUB-TOTAL SLT: | X96: =SUM(M91:W95) -> 11
D98: SLT for Assessment: | X98: =X88+X96 -> 30
D99: GRAND TOTAL SLT: | X99: =X98+X80 -> 120
D100: A | E100: % SLT for F2F Physical Component: [Total F2F Physical /(Total F2F Physical + Total F2F Online + Total Independent Learning) x 100)] | X100: =IFERROR(((SUM(M60:P79)+SUM(M83:P87)+SUM(M91:P95))/X99)* 100,"") -> 48.75
D102: B | E102: % SLT for Online & Independent Learning Component: [(Total F2F Online + Total Independent Learning) /( Total F2F Physical + Total F2F Online + Total Independent Learning) x 100] | X102: =IFERROR((SUM(Q60:W79)+SUM(Q83:W87) + SUM(Q91:W95))/X99 * 100,"") -> 51.25
D103: C | E103: % SLT for All Practical Component: [% F2F Physical Practical + % F2F Online Practical] | X103: =IFERROR(X104+X105,"") -> 0
D104: C1 | E104: % SLT for F2F Physical Practical Component [Total F2F Physical Practical /( Total F2F Physical + Total F2F Online + Total Independent Learning) x 100)] | X104: =IFERROR(SUM(O60:O79)/X99*100,"") -> 0
D105: C2 | E105: % SLT for F2F Online Practical Component [Total F2F Online Practical / (Total F2F Physical + Total F2F Online + Total Independent Learning) x 100] | X105: =IFERROR(SUM(S60:S79)/X99 *100,"") -> 0
Z106: =IFERROR(X102+X104,"") -> 51.25
D107: Please tick (√) if this course is Industrial Training/ Clinical Placement/ Practicum using 50% of Effective Learning Time (ELT)
D108: Note:
D109: * Indicate the CLO based on the CLO's numbering in Item 8
D110: ** For ODL programme: Courses with mandatory practical requiremnets imposed by the programme standards or any related standards can be exempted from complying to the minimum 80% ODL delivery rule in the SLT.
B112: 11 | C112: Identify special requirement or resources to deliver the course (e.g., software, nursery, computer lab, simulation room etc)
B114: 12 | C114: References (include required and further readings, and should be the most current) | K114: 1. Kitab Bulughul Maram oleh Ibnu Hajar al-Asqalani 2. Fiqh al-Hadith oleh Dr. Muhideen B Abdul Rahman
B116: 13 | C116: Other additional information (if applicable)
C119: Note: Number of PLO indicated is purely for illustration purposes only and the number is subjected to the curriculum design.

Sheet PST 2041
B2: Back To FORM @ TEMPLATE
AI3: √
B5: 1 | C5: Course Name: | F5: Program Pembangunan Syakhsiah Terpuji 4 (Pesat 4) | AI5: Semester
C6: Course Code: | F6: PST 2041 | AI6: 1
C7: Course Classification: | F7: Compulsory | AI7: 2
B8: 2 | C8: Synopsis: | F8: Kursus ini memberi penekanan dengan menghafaz surah Al-Alaq, At-Tinn,Al-Insyirah,Ad-dhuha,Al-A’la, tarbiyah ruhiyah serta konsep dakwah Islam didedahkan dalam mengapikasikan dalam kehidupan. | AI8: 3
B9: =B8+1 -> 3 | C9: Name(s) of Academic Staff: | F9: 1 | G9: Ustaz Mahamad Bin Senik
F10: 2 | G10: Ustaz Mohd Khairol Bin Mokhtar | AI10: Year Offered
F11: 3 | G11: Ustazah Radin Seri Nabahah Binti Ahmad Zabidi | AI11: 1
B12: =B9+1 -> 4 | C12: Semester and Year offered: | F12: Year Offered | I12: 1 | J12: Semester | L12: 2 | M12: Remarks: | AI12: 2
B13: =B12+1 -> 5 | C13: Credit Value: | F13: =IF(X107 ="√",INT(X99/80),INT(X99/40)) -> 1 | AI13: 3
B14: 6 | C14: Pre-requisite/ co-requisite (if any): | AI14: 4
AI15: 5
B16: 7 | C16: Course Learning Outcomes (CLO) | F16: CLO1 | H16: Mengaplikasikan ilmu Al-Quran, tarbiyah ruhiyah dan konsep dakwah. (C3, PLO1) | AI16: 6
F17: CLO2 | H17: Menerangkan kepentingan tarbiyah ruhiyah dan konsep dakwah Islam. (A3, CS3, PLO5) | AI17: 7
F18: CLO3 | H18: Menghafal surah pilihan dengan tajwid yang betul. (A3, LL3, PLO9) | AI18: 8
AI20: Compulsory
AI21: Major (core)
AI22: Minor
AI23: Elective (core)
AI24: Elective (open/free)
B25: 8 | C25: Mapping of the Course Learning Outcomes to the Programme Learning Outcomes, Teaching Methods and Assessment Methods
D27: Course Learning Outcomes | F27: Programme Learning Outcomes (PLO) | R27: Teaching Methods | W27: Assessment Methods
F28: PLO 1 | G28: PLO 2 | H28: PLO 3 | I28: PLO 4 | J28: PLO 5 | K28: PLO 6 | L28: PLO 7 | M28: PLO 8 | N28: PLO 9 | O28: PLO 10 | P28: PLO 11
D29: =IF(ISBLANK(F16),"",F16) -> CLO1 | F29: √ | R29: Kuliah | W29: Kuiz | Ujian |Tugasan
D30: =IF(ISBLANK(F17),"",F17) -> CLO2 | J30: √ | R30: Kuliah | W30: Kuiz | Ujian |Tugasan
D31: CLO3 | N31: √ | R31: Bacaan | Hafazan | W31: Ujian Lisan
AI36: Cognitive skills
D37: Mapping with MQF Cluster of Learning Outcomes | F37: C1 | G37: C2 | H37: C3A | I37: C3B | J37: C3C | K37: C3D | L37: C3E | M37: C3F | N37: C4A | O37: C4B | P37: C5 | AI37: Interpersonal skills
AI38: Communication Skills
AI39: Digital Skills
AI40: Numeracy Skills
D41: Indicate the primary causal link between the CLO and PLO by ticking '√' in the appropriate box. | AI41: Leadership, Autonomy and Responsibility
D42: C1 = Knowledge & Understanding, C2 = Cognitive Skills, C3A = Practical Skills, C3B = Interpersonal Skills, C3C = Communication Skills, C3D = Digital Skills, | AI42: Personal Skills
D43: C3E = Numeracy Skills, C3F = Leadership, Autonomy & Responsibility, C4A = Personal Skills, C4B = Entrepreneurial Skills, C5 = Ethics & Professionalism | AI43: Entrepreneurial Skills
AI44: Ethics and Professionalism
B45: 9 | C45: Transferable Skills (if applicable)
C46: (Skills learned in the course of study which can be useful and utilized in other settings) | I46: 1 | J46: Cognitive skills | AI46: C1
I47: 2 | J47: Communication Skills | AI47: C2
I48: 3 | J48: Personal Skills | AI48: C3A
I49: Open-ended response (if any) | AI49: C3B
I50: 4 | AI50: C3C
AI51: C3D
AB52: ` | AI52: C3E
B53: 10 | C53: Distribution of Student Learning Time (SLT) | AI53: C3F
C54: Note: This SLT calculation is designed for home grown programme only. | AI54: C4A
AI55: C4B
D56: Course Content Outline and Subtopics | K56: CLO* | M56: Learning and Teaching Activities** | X56: Total SLT | AI56: C5
M57: Face-to-Face (F2F) | U57: NF2F Independent Learning (Asynchronous)
M58: Physical | Q58: Online/ Technology-mediated (Synchronous)
M59: L | N59: T | O59: P | P59: O | Q59: L | R59: T | S59: P | T59: O
D60: 1 | E60: 1.0 AL-QURAN –HAFAZAN AYAT-AYAT PILIHAN 1.1 Surah Al-Alaq 1.2 Surah At-Tinn 1.3 Surah Al-Insyirah 1.4 Surah Ad-Dhuha 1.5 Surah Al-A’la | K60: CLO1, CLO3 | M60: 2 | O60: 2 | U60: 6
D61: 2 | E61: 2.0 TARBIYAH RUHIYAH : MENUJU KETAKWAAN 2.1 Kepentingan ‘Tarbiyah Ruhiyah ’ - Pengertian dan Hakikat Iman - Takwa dan Pengertiannya - Jalan Menuju Takwa 2.2 Amalan-Amalan Dalam Menguat Serta Memperteguhkan Rohani 2.3 Kesan Kerohanian Dalam Pembinaan Islam Dan Perubahan | K61: CLO1, CLO2 | M61: 2 | O61: 2 | U61: 6
D62: 3 | E62: 3.0 KONSEP DAKWAH ISLAM 3.1 Makna dan Definisi Dakwah 3.2 Perbaiki Diri Kamu dan Serulah Orang Lain 3.3 Keutamaan Dakwah 3.4 Dakwah Fardhiyah | K62: CLO1, CLO2 | M62: 2 | U62: 4
D63: 4
D64: 5
D65: 6
D66: 7
D67: 8
D68: 9
D69: 10
D70: =D69+1 -> 11
D71: =D70+1 -> 12
D72: 13
D73: 14
D74: 15
D75: 16
D76: 17
D77: 18
D78: 19
D79: 20
D80: SUB-TOTAL SLT: | X80: =SUM(M60:P79)+SUM(Q60:T79)+SUM(U60:W79) -> 26
D81: Continous Assessement | K81: % | M81: Face-to-Face (F2F) | U81: NF2F Independent Learning for Assessment (Asynchronous)
M82: Physical | Q82: Online/ Technology-mediated (Synchronous)
D83: 1 | E83: Ujian & Kuiz | K83: 30 | M83: 1 | U83: 2
D84: 2 | E84: Ujian Lisan | K84: 20 | M84: 1 | U84: 2
D85: 3 | E85: Pemerhatian Syakhsiah | K85: 10 | M85: 0
D86: 4 | E86: Tugasan | K86: 40 | M86: 2 | U86: 7
D87: 5
D88: SUB-TOTAL SLT: | X88: =SUM(M83:W87) -> 15
D89: Final Assessement | K89: % | M89: Face-to-Face (F2F) | U89: NF2F Independent Learning for Assessment (Asynchronous)
M90: Physical | Q90: Online/ Technology-mediated (Synchronous)
D91: 1
D92: 2
D93: 3
D94: 4
D95: 5
D96: SUB-TOTAL SLT: | X96: =SUM(M91:W95) -> 0
D98: SLT for Assessment: | X98: =X88+X96 -> 15
D99: GRAND TOTAL SLT: | X99: =X98+X80 -> 41
D100: A | E100: % SLT for F2F Physical Component: [Total F2F Physical /(Total F2F Physical + Total F2F Online + Total Independent Learning) x 100)] | X100: =IFERROR(((SUM(M60:P79)+SUM(M83:P87)+SUM(M91:P95))/X99)* 100,"") -> 34.14634146
D102: B | E102: % SLT for Online & Independent Learning Component: [(Total F2F Online + Total Independent Learning) /( Total F2F Physical + Total F2F Online + Total Independent Learning) x 100] | X102: =IFERROR((SUM(Q60:W79)+SUM(Q83:W87) + SUM(Q91:W95))/X99 * 100,"") -> 65.85365854
D103: C | E103: % SLT for All Practical Component: [% F2F Physical Practical + % F2F Online Practical] | X103: =IFERROR(X104+X105,"") -> 9.756097561
D104: C1 | E104: % SLT for F2F Physical Practical Component [Total F2F Physical Practical /( Total F2F Physical + Total F2F Online + Total Independent Learning) x 100)] | X104: =IFERROR(SUM(O60:O79)/X99*100,"") -> 9.756097561
D105: C2 | E105: % SLT for F2F Online Practical Component [Total F2F Online Practical / (Total F2F Physical + Total F2F Online + Total Independent Learning) x 100] | X105: =IFERROR(SUM(S60:S79)/X99 *100,"") -> 0
Z106: =IFERROR(X102+X104,"") -> 75.6097561
D107: Please tick (√) if this course is Industrial Training/ Clinical Placement/ Practicum using 50% of Effective Learning Time (ELT)
D108: Note:
D109: * Indicate the CLO based on the CLO's numbering in Item 8
D110: ** For ODL programme: Courses with mandatory practical requiremnets imposed by the programme standards or any related standards can be exempted from complying to the minimum 80% ODL delivery rule in the SLT.
B112: 11 | C112: Identify special requirement or resources to deliver the course (e.g., software, nursery, computer lab, simulation room etc)
B114: 12 | C114: References (include required and further readings, and should be the most current) | K114: Abdullah Nasih Ulwan, Alih Bahasa Mohd Kamal Mahyudin Harun(1988), Menuju Ketakwaan, Kuala Lumpur, Pustaka Salam. Fakhruddin Nursyam(2007), Syarah Lengkap Arba’in Ruhiyah,Solo, Bina Insani Press Solo. Dr Abdul Karim Zaidan, Alih Bahasa H.M Asiwadi Syukur (1980), Dasar – Dasar Ilmu Dakwah (2), Jakarta, Media Dakwah. Jum’ah Amin Abdul Aziz(2005), Alih Bahasa Abdul Salam, Fiqh Dakwah, Pajang, Era Intermedia. Syeikh Musthafa Masyhur Alih Bahasa Hamim Thohari (2008), 7 Tahapan Dakwah Fardiyah,Jakarta Timur, Al-I’tishom Cahaya Umat.
B116: 13 | C116: Other additional information (if applicable)
C119: Note: Number of PLO indicated is purely for illustration purposes only and the number is subjected to the curriculum design.

Sheet MPU2422
B2: Back To FORM @ TEMPLATE
AI3: √
B5: 1 | C5: Course Name: | F5: Iqra' | AI5: Semester
C6: Course Code: | F6: MPU2422 | AI6: 1
C7: Course Classification: | F7: Compulsory | AI7: 2
B8: 2 | C8: Synopsis: | F8: Kursus ini memberi pendedahan asas bacaan Al-Quran beserta hukum tajwid dan penandaan Rasm Usmani dalam pembelajaran Al-Quran | AI8: 3
B9: =B8+1 -> 3 | C9: Name(s) of Academic Staff: | F9: 1 | G9: NOOR ENAIDA BT TUTAN KHAMIN
F10: 2 | AI10: Year Offered
F11: 3 | AI11: 1
B12: =B9+1 -> 4 | C12: Semester and Year offered: | F12: Year Offered | I12: 1 | J12: Semester | L12: 2 | M12: Remarks: | AI12: 2
B13: =B12+1 -> 5 | C13: Credit Value: | F13: =IF(X107 ="√",INT(X99/80),INT(X99/40)) -> 2 | AI13: 3
B14: 6 | C14: Pre-requisite/ co-requisite (if any): | AI14: 4
AI15: 5
B16: 7 | C16: Course Learning Outcomes (CLO) | F16: CLO1 | H16: Mengenal sifat huruf hijaiyah makhraj, tempat keluar atau makhraj huruf dan menyebutnya dengan betul dan mengenal tajwid. (C2, PLO1) | AI16: 6
F17: CLO2 | H17: Mempamerkan bacaan dengan tajwid yang betul. (P3, PLO3) | AI17: 7
F18: CLO3 | H18: Menganjur dan mengendalikan suatu aktiviti Bacaan Al-quran. (A3, TS3, PLO4) | AI18: 8
AI20: Compulsory
AI21: Major (core)
AI22: Minor
AI23: Elective (core)
AI24: Elective (open/free)
B25: 8 | C25: Mapping of the Course Learning Outcomes to the Programme Learning Outcomes, Teaching Methods and Assessment Methods
D27: Course Learning Outcomes | F27: Programme Learning Outcomes (PLO) | R27: Teaching Methods | W27: Assessment Methods
F28: PLO 1 | G28: PLO 2 | H28: PLO 3 | I28: PLO 4 | J28: PLO 5 | K28: PLO 6 | L28: PLO 7 | M28: PLO 8 | N28: PLO 9 | O28: PLO 10 | P28: PLO 11
D29: =IF(ISBLANK(F16),"",F16) -> CLO1 | F29: √ | R29: Kuliah | Tutorial | W29: Ujian | Tugasan
D30: =IF(ISBLANK(F17),"",F17) -> CLO2 | H30: √ | R30: Kuliah | Tutorial | W30: Amali | Tugasan
D31: CLO3 | I31: √ | R31: Kuliah | Tutorial | W31: Amali | Tugasan
AI36: Cognitive skills
D37: Mapping with MQF Cluster of Learning Outcomes | F37: C1 | G37: C2 | H37: C3A | I37: C3B | J37: C3C | K37: C3D | L37: C3E | M37: C3F | N37: C4A | O37: C4B | P37: C5 | AI37: Interpersonal skills
AI38: Communication Skills
AI39: Digital Skills
AI40: Numeracy Skills
D41: Indicate the primary causal link between the CLO and PLO by ticking '√' in the appropriate box. | AI41: Leadership, Autonomy and Responsibility
D42: C1 = Knowledge & Understanding, C2 = Cognitive Skills, C3A = Practical Skills, C3B = Interpersonal Skills, C3C = Communication Skills, C3D = Digital Skills, | AI42: Personal Skills
D43: C3E = Numeracy Skills, C3F = Leadership, Autonomy & Responsibility, C4A = Personal Skills, C4B = Entrepreneurial Skills, C5 = Ethics & Professionalism | AI43: Entrepreneurial Skills
AI44: Ethics and Professionalism
B45: 9 | C45: Transferable Skills (if applicable)
C46: (Skills learned in the course of study which can be useful and utilized in other settings) | I46: 1 | J46: Cognitive skills | AI46: C1
I47: 2 | J47: Interpersonal skills | AI47: C2
I48: 3 | AI48: C3A
I49: Open-ended response (if any) | AI49: C3B
I50: 4 | J50: Practical Skills | AI50: C3C
AI51: C3D
AB52: ` | AI52: C3E
B53: 10 | C53: Distribution of Student Learning Time (SLT) | AI53: C3F
C54: Note: This SLT calculation is designed for home grown programme only. | AI54: C4A
AI55: C4B
D56: Course Content Outline and Subtopics | K56: CLO* | M56: Learning and Teaching Activities** | X56: Total SLT | AI56: C5
M57: Face-to-Face (F2F) | U57: NF2F Independent Learning (Asynchronous)
M58: Physical | Q58: Online/ Technology-mediated (Synchronous)
M59: L | N59: T | O59: P | P59: O | Q59: L | R59: T | S59: P | T59: O
D60: 1 | E60: 1.0 Pengenalan Al-Quran | K60: CLO1 | M60: 1 | O60: 1 | U60: 2
D61: 2 | E61: 2.0 Pengenalan Makhraj dan Sifat Huruf 2.1 Amali Modul Iqra 1 2.2 Amali Modul Iqra 2 | K61: CLO1, CLO2 | M61: 1 | O61: 1 | U61: 2
D62: 3 | E62: 3.0 Bacaan Panjang (Mad) 3.1 Mad Asli 3.2 Amali Modul Iqra 2 | K62: CLO1, CLO2 | M62: 1 | O62: 1 | U62: 3
D63: 4 | E63: 4.0 Tanda-tanda bacaan Al-Quran Rasm Usmani 4.1 Panjang dan hazaf 4.2 Amali Modul Iqra 3 | K63: CLO1, CLO2 | M63: 1 | O63: 1 | U63: 3
D64: 5 | E64: 5.0 Tanda-tanda bacaan Al-Quran Rasm Usmani untuk Izhar 5.1 Hukum nun mati, tanwin, min mati 5.2 Amali Modul Iqra 4 | K64: CLO1, CLO2 | M64: 1 | O64: 1 | U64: 3
D65: 6 | E65: 6.0 Hukum bacaan Qalqalah 6.1 Sughra, Kubra, Akbar 6.2 Amali Modul Iqra 4 | K65: CLO1, CLO2 | M65: 1 | O65: 1 | U65: 3
D66: 7 | E66: 7.0 Tanda-tanda bacaan Al-Quran Rasm Usmani 7.1 Hamzah Wasal, Mad Jaiz, Mad I'warh, Mad Arid Lissukun dll. 7.2 Amali Modul Iqra 5 | K66: CLO1, CLO2 | M66: 1 | O66: 1 | U66: 3
D67: 8 | E67: 8.0 Hukum dengung 8.1 Wajibal ghunnah 8.2 Amali Modul Iqra 6 | K67: CLO1, CLO2 | M67: 1 | O67: 1 | U67: 2
D68: 9 | E68: 9.0 Hukum ikhfa' dan iqlab | K68: CLO1, CLO2 | M68: 1 | O68: 1 | U68: 2
D69: 10 | E69: 10.0 Tanda Wakaf dan panjang bacaan bagi mad lazim | K69: CLO1, CLO2 | M69: 1 | O69: 1 | U69: 2
D70: =D69+1 -> 11 | E70: Kertas cadangan projek komuniti | K70: CLO3 | U70: 8
D71: =D70+1 -> 12
D72: 13
D73: 14
D74: 15
D75: 16
D76: 17
D77: 18
D78: 19
D79: 20
D80: SUB-TOTAL SLT: | X80: =SUM(M60:P79)+SUM(Q60:T79)+SUM(U60:W79) -> 53
D81: Continous Assessement | K81: % | M81: Face-to-Face (F2F) | U81: NF2F Independent Learning for Assessment (Asynchronous)
M82: Physical | Q82: Online/ Technology-mediated (Synchronous)
D83: 1 | E83: Amali | K83: 30 | M83: 4 | U83: 8
D84: 2 | E84: Tugasan | K84: 30 | M84: 2 | U84: 6
D85: 3 | E85: Ujian Akhir | K85: 40 | M85: 2 | U85: 5
D86: 4
D87: 5
D88: SUB-TOTAL SLT: | X88: =SUM(M83:W87) -> 27
D89: Final Assessement | K89: % | M89: Face-to-Face (F2F) | U89: NF2F Independent Learning for Assessment (Asynchronous)
M90: Physical | Q90: Online/ Technology-mediated (Synchronous)
D91: 1
D92: 2
D93: 3
D94: 4
D95: 5
D96: SUB-TOTAL SLT: | X96: =SUM(M91:W95) -> 0
D98: SLT for Assessment: | X98: =X88+X96 -> 27
D99: GRAND TOTAL SLT: | X99: =X98+X80 -> 80
D100: A | E100: % SLT for F2F Physical Component: [Total F2F Physical /(Total F2F Physical + Total F2F Online + Total Independent Learning) x 100)] | X100: =IFERROR(((SUM(M60:P79)+SUM(M83:P87)+SUM(M91:P95))/X99)* 100,"") -> 35
D102: B | E102: % SLT for Online & Independent Learning Component: [(Total F2F Online + Total Independent Learning) /( Total F2F Physical + Total F2F Online + Total Independent Learning) x 100] | X102: =IFERROR((SUM(Q60:W79)+SUM(Q83:W87) + SUM(Q91:W95))/X99 * 100,"") -> 65
D103: C | E103: % SLT for All Practical Component: [% F2F Physical Practical + % F2F Online Practical] | X103: =IFERROR(X104+X105,"") -> 12.5
D104: C1 | E104: % SLT for F2F Physical Practical Component [Total F2F Physical Practical /( Total F2F Physical + Total F2F Online + Total Independent Learning) x 100)] | X104: =IFERROR(SUM(O60:O79)/X99*100,"") -> 12.5
D105: C2 | E105: % SLT for F2F Online Practical Component [Total F2F Online Practical / (Total F2F Physical + Total F2F Online + Total Independent Learning) x 100] | X105: =IFERROR(SUM(S60:S79)/X99 *100,"") -> 0
Z106: =IFERROR(X102+X104,"") -> 77.5
D107: Please tick (√) if this course is Industrial Training/ Clinical Placement/ Practicum using 50% of Effective Learning Time (ELT)
D108: Note:
D109: * Indicate the CLO based on the CLO's numbering in Item 8
D110: ** For ODL programme: Courses with mandatory practical requiremnets imposed by the programme standards or any related standards can be exempted from complying to the minimum 80% ODL delivery rule in the SLT.
B112: 11 | C112: Identify special requirement or resources to deliver the course (e.g., software, nursery, computer lab, simulation room etc)
B114: 12 | C114: References (include required and further readings, and should be the most current) | K114: 1. Modul Iqra' As' ad Humam. (1995). Kuala Lumpur, Pustaka Dini 2. Ajmain Safar. (1996). Buku Panduan Modul Iqra' dan Al-Quran, Rasm Uthmani, Johor Bharu Management Sdn Bhd. 3. Hj. Abdul Kadir Leong. (1993). Tajwib Al-Quran, Kuala Lumpur, Penerbitan Pustaka Salam
B116: 13 | C116: Other additional information (if applicable)
C119: Note: Number of PLO indicated is purely for illustration purposes only and the number is subjected to the curriculum design.

Sheet MPU2222
B2: Back To FORM @ TEMPLATE
AI3: √
B5: 1 | C5: Course Name: | F5: Asas Keushawanan | AI5: Semester
C6: Course Code: | F6: MPU2222 | AI6: 1
C7: Course Classification: | F7: Compulsory | AI7: 2
B8: 2 | C8: Synopsis: | F8: Kursus ini bertujuan untuk memberi ilmu asas dan konsep keusahawanan kepada pelajar supaya dapat menimbulkan minat dan memupuk nilai untuk menceburi bidang keusahawanan sebagai salah satu pilihan kerjaya. Pengajaran dan pembelajaran dilaksanakan berasaskan kes, simulasi perniagaan dan pembentangan. Pada akhir, kursus ini, pelaajr diharapkan dapat membentuk minda keusahawanan dan mempamerkan kemahiran keusahawanan dalam aktiviti harian. | AI8: 3
B9: =B8+1 -> 3 | C9: Name(s) of Academic Staff: | F9: 1 | G9: NOOR ENAIDA BT TUTAN KHAMIN
F10: 2 | AI10: Year Offered
F11: 3 | AI11: 1
B12: =B9+1 -> 4 | C12: Semester and Year offered: | F12: Year Offered | I12: 1 | J12: Semester | L12: 2 | M12: Remarks: | AI12: 2
B13: =B12+1 -> 5 | C13: Credit Value: | F13: =IF(X107 ="√",INT(X99/80),INT(X99/40)) -> 2 | AI13: 3
B14: 6 | C14: Pre-requisite/ co-requisite (if any): | AI14: 4
AI15: 5
B16: 7 | C16: Course Learning Outcomes (CLO) | F16: CLO1 | H16: Menerangkan konsep asas keusahawanan melalui sorotan kes terpilih (A3, LL3, PLO9) | AI16: 6
F17: CLO2 | H17: Menghasilkan idea keusahawanan yang Kreatif dan Inovatif (A3, KK2, PLO10) | AI17: 7
F18: CLO3 | H18: Membangunkan kerangka rancangan perniagaan (A3, KK2, PLO10) | AI18: 8
AI20: Compulsory
AI21: Major (core)
AI22: Minor
AI23: Elective (core)
AI24: Elective (open/free)
B25: 8 | C25: Mapping of the Course Learning Outcomes to the Programme Learning Outcomes, Teaching Methods and Assessment Methods
D27: Course Learning Outcomes | F27: Programme Learning Outcomes (PLO) | R27: Teaching Methods | W27: Assessment Methods
F28: PLO 1 | G28: PLO 2 | H28: PLO 3 | I28: PLO 4 | J28: PLO 5 | K28: PLO 6 | L28: PLO 7 | M28: PLO 8 | N28: PLO 9 | O28: PLO 10 | P28: PLO 11
D29: =IF(ISBLANK(F16),"",F16) -> CLO1 | N29: √ | R29: Kuliah | pembelajaran berasaskan kes | W29: Laporan
D30: =IF(ISBLANK(F17),"",F17) -> CLO2 | O30: √ | R30: Pembelajaran berasakan kes |Simulasi perniagaan | W30: Simulasi
D31: CLO3 | O31: √ | R31: Pembelajaran berasakan kes | W31: Laporan | Pembentangan
AI36: Cognitive skills
D37: Mapping with MQF Cluster of Learning Outcomes | F37: C1 | G37: C2 | H37: C3A | I37: C3B | J37: C3C | K37: C3D | L37: C3E | M37: C3F | N37: C4A | O37: C4B | P37: C5 | AI37: Interpersonal skills
AI38: Communication Skills
AI39: Digital Skills
AI40: Numeracy Skills
D41: Indicate the primary causal link between the CLO and PLO by ticking '√' in the appropriate box. | AI41: Leadership, Autonomy and Responsibility
D42: C1 = Knowledge & Understanding, C2 = Cognitive Skills, C3A = Practical Skills, C3B = Interpersonal Skills, C3C = Communication Skills, C3D = Digital Skills, | AI42: Personal Skills
D43: C3E = Numeracy Skills, C3F = Leadership, Autonomy & Responsibility, C4A = Personal Skills, C4B = Entrepreneurial Skills, C5 = Ethics & Professionalism | AI43: Entrepreneurial Skills
AI44: Ethics and Professionalism
B45: 9 | C45: Transferable Skills (if applicable)
C46: (Skills learned in the course of study which can be useful and utilized in other settings) | I46: 1 | J46: Communication Skills | AI46: C1
I47: 2 | J47: Interpersonal skills | AI47: C2
I48: 3 | J48: Personal Skills | AI48: C3A
I49: Open-ended response (if any) | AI49: C3B
I50: 4 | AI50: C3C
AI51: C3D
AB52: ` | AI52: C3E
B53: 10 | C53: Distribution of Student Learning Time (SLT) | AI53: C3F
C54: Note: This SLT calculation is designed for home grown programme only. | AI54: C4A
AI55: C4B
D56: Course Content Outline and Subtopics | K56: CLO* | M56: Learning and Teaching Activities** | X56: Total SLT | AI56: C5
M57: Face-to-Face (F2F) | U57: NF2F Independent Learning (Asynchronous)
M58: Physical | Q58: Online/ Technology-mediated (Synchronous)
M59: L | N59: T | O59: P | P59: O | Q59: L | R59: T | S59: P | T59: O
D60: 1 | E60: 1.0 Asas Keusahawanan 1.1 Konsep dan Teori Keusahawanan 1.2 Kepentingan Keusahawanan 1.3 Faktor yang mempengaruhi keushawanan 1.4 Pembangunan Keusahawanan di Malaysia | K60: CLO 1 | M60: 4 | N60: 2 | U60: 4
D61: 2 | E61: 2.0 Kreativit dan Inovasi 2.1 Proses dan Faktor yang mempengaruhi kreativiti 2.2 Teknik-teknik Kreativiti 2.3 Jenis dan sumber Inovasi | K61: CLO 2 | M61: 4 | N61: 2 | U61: 4
D62: 3 | E62: 3.0 Rancangan Perniagaan 3.1 Mengenal pasti peluang 3.2 Plan Perniagaan 3.3 Sistem Sokongan Perniagaan 3.4 Bentuk Entiti perniagaan dan keperluan berkanun | K62: CLO 3 | M62: 4 | N62: 2 | O62: 8 | U62: 7
D63: 4 | E63: 4.0 Pengurusan Perniagaan Kecil 4.1 Pengurusan Sumber Manusia 4.2 Pengurusan Pemasaran 4.3 Pengurusan Operasi 4.4 Pengurusan Kewangan untuk Industri Kecil & sederhana (IKS) 4.5 Etika, Profesionalisme dan Tanggungjawab sosial | K63: CLO 3 | M63: 4 | N63: 2 | O63: 6 | U63: 6
D64: 5
D65: 6
D66: 7
D67: 8
D68: 9
D69: 10
D70: =D69+1 -> 11
D71: =D70+1 -> 12
D72: 13
D73: 14
D74: 15
D75: 16
D76: 17
D77: 18
D78: 19
D79: 20
D80: SUB-TOTAL SLT: | X80: =SUM(M60:P79)+SUM(Q60:T79)+SUM(U60:W79) -> 59
D81: Continous Assessement | K81: % | M81: Face-to-Face (F2F) | U81: NF2F Independent Learning for Assessment (Asynchronous)
M82: Physical | Q82: Online/ Technology-mediated (Synchronous)
D83: 1 | E83: Laporan (2) | K83: 50 | M83: 6 | U83: 4
D84: 2 | E84: Simulasi | K84: 30 | M84: 4 | U84: 3
D85: 3 | E85: Pembentangan | K85: 20 | M85: 2 | U85: 2
D86: 4
D87: 5
D88: SUB-TOTAL SLT: | X88: =SUM(M83:W87) -> 21
D89: Final Assessement | K89: % | M89: Face-to-Face (F2F) | U89: NF2F Independent Learning for Assessment (Asynchronous)
M90: Physical | Q90: Online/ Technology-mediated (Synchronous)
D91: 1
D92: 2
D93: 3
D94: 4
D95: 5
D96: SUB-TOTAL SLT: | X96: =SUM(M91:W95) -> 0
D98: SLT for Assessment: | X98: =X88+X96 -> 21
D99: GRAND TOTAL SLT: | X99: =X98+X80 -> 80
D100: A | E100: % SLT for F2F Physical Component: [Total F2F Physical /(Total F2F Physical + Total F2F Online + Total Independent Learning) x 100)] | X100: =IFERROR(((SUM(M60:P79)+SUM(M83:P87)+SUM(M91:P95))/X99)* 100,"") -> 62.5
D102: B | E102: % SLT for Online & Independent Learning Component: [(Total F2F Online + Total Independent Learning) /( Total F2F Physical + Total F2F Online + Total Independent Learning) x 100] | X102: =IFERROR((SUM(Q60:W79)+SUM(Q83:W87) + SUM(Q91:W95))/X99 * 100,"") -> 37.5
D103: C | E103: % SLT for All Practical Component: [% F2F Physical Practical + % F2F Online Practical] | X103: =IFERROR(X104+X105,"") -> 17.5
D104: C1 | E104: % SLT for F2F Physical Practical Component [Total F2F Physical Practical /( Total F2F Physical + Total F2F Online + Total Independent Learning) x 100)] | X104: =IFERROR(SUM(O60:O79)/X99*100,"") -> 17.5
D105: C2 | E105: % SLT for F2F Online Practical Component [Total F2F Online Practical / (Total F2F Physical + Total F2F Online + Total Independent Learning) x 100] | X105: =IFERROR(SUM(S60:S79)/X99 *100,"") -> 0
Z106: =IFERROR(X102+X104,"") -> 55
D107: Please tick (√) if this course is Industrial Training/ Clinical Placement/ Practicum using 50% of Effective Learning Time (ELT)
D108: Note:
D109: * Indicate the CLO based on the CLO's numbering in Item 8
D110: ** For ODL programme: Courses with mandatory practical requiremnets imposed by the programme standards or any related standards can be exempted from complying to the minimum 80% ODL delivery rule in the SLT.
B112: 11 | C112: Identify special requirement or resources to deliver the course (e.g., software, nursery, computer lab, simulation room etc)
B114: 12 | C114: References (include required and further readings, and should be the most current) | K114: Bessant, J & Tidd, J. (2011). Innvoation and Entrepreneurship. 2nd Edition. John Wiley & Sons, UK. Damian Ryan and Calvin Jones (2012). Understanding Digital Marketing: Marketing Strategies for Engaging the Digital Generation. 2nd edition . Kogan Page Limited. UK Schroeder, Christopher M. (2013). Startup Rising. The Enterpreneurial Revolution Remaking the Middle East. Palgrave Macmillan. Scarborough,N.M. and Cornwall, J.R. (2015). Essentials of Entrepreneurships and smal Business Management: Pearson Education Limited.
B116: 13 | C116: Other additional information (if applicable)
C119: Note: Number of PLO indicated is purely for illustration purposes only and the number is subjected to the curriculum design.

Sheet ARB 2132
B2: Back To FORM @ TEMPLATE
AI3: √
B5: 1 | C5: Course Name: | F5: AL-LUGHAH AL-ARABIAH III | AI5: Semester
C6: Course Code: | F6: ARB 2132 | AI6: 1
C7: Course Classification: | F7: Major (core) | AI7: 2
B8: 2 | C8: Synopsis: | F8: This course introduces the basic concept of introducing the method of using the Arabic language in terms of reading writing up to sentence construction and knowing the use of grammar and sarf. | AI8: 3
B9: =B8+1 -> 3 | C9: Name(s) of Academic Staff: | F9: 1 | G9: NURUL 'IZZAH BINTI M A ZAABA
F10: 2 | AI10: Year Offered
F11: 3 | AI11: 1
B12: =B9+1 -> 4 | C12: Semester and Year offered: | F12: Year Offered | I12: 1 | J12: Semester | L12: 2 | M12: Remarks: | AI12: 2
B13: =B12+1 -> 5 | C13: Credit Value: | F13: =IF(X107 ="√",INT(X99/80),INT(X99/40)) -> 2 | AI13: 3
B14: 6 | C14: Pre-requisite/ co-requisite (if any): | AI14: 4
AI15: 5
B16: 7 | C16: Course Learning Outcomes (CLO) | F16: CLO1 | H16: Explain basic concept using the Arabic language in terms of reading writing up to sentence construction and knowing the use of grammar and sarf. (C1,PLO1) | AI16: 6
F17: CLO2 | H17: Read and pronounce words correctly and construct the meaning of sentence in Arabic through listening skills. (A3, CTPS, PLO2) | AI17: 7
F18: CLO3 | H18: Practicing basic Arabic language skills well in groups. (P3, PLO4) | AI18: 8
AI20: Compulsory
AI21: Major (core)
AI22: Minor
AI23: Elective (core)
AI24: Elective (open/free)
B25: 8 | C25: Mapping of the Course Learning Outcomes to the Programme Learning Outcomes, Teaching Methods and Assessment Methods
D27: Course Learning Outcomes | F27: Programme Learning Outcomes (PLO) | R27: Teaching Methods | W27: Assessment Methods
F28: PLO 1 | G28: PLO 2 | H28: PLO 3 | I28: PLO 4 | J28: PLO 5 | K28: PLO 6 | L28: PLO 7 | M28: PLO 8 | N28: PLO 9 | O28: PLO 10 | P28: PLO 11
D29: =IF(ISBLANK(F16),"",F16) -> CLO1 | F29: √ | R29: Lecture | Discussion | W29: Test | Final Examination
D30: =IF(ISBLANK(F17),"",F17) -> CLO2 | G30: √ | R30: Lecture | Activities | W30: Assignment | Test | Final Examination
D31: CLO3 | I31: √ | R31: Lecture | Discussion| Presentation | W31: Assignment
AI36: Cognitive skills
D37: Mapping with MQF Cluster of Learning Outcomes | F37: C1 | G37: C2 | H37: C3A | I37: C3B | J37: C3C | K37: C3D | L37: C3E | M37: C3F | N37: C4A | O37: C4B | P37: C5 | AI37: Interpersonal skills
AI38: Communication Skills
AI39: Digital Skills
AI40: Numeracy Skills
D41: Indicate the primary causal link between the CLO and PLO by ticking '√' in the appropriate box. | AI41: Leadership, Autonomy and Responsibility
D42: C1 = Knowledge & Understanding, C2 = Cognitive Skills, C3A = Practical Skills, C3B = Interpersonal Skills, C3C = Communication Skills, C3D = Digital Skills, | AI42: Personal Skills
D43: C3E = Numeracy Skills, C3F = Leadership, Autonomy & Responsibility, C4A = Personal Skills, C4B = Entrepreneurial Skills, C5 = Ethics & Professionalism | AI43: Entrepreneurial Skills
AI44: Ethics and Professionalism
B45: 9 | C45: Transferable Skills (if applicable)
C46: (Skills learned in the course of study which can be useful and utilized in other settings) | I46: 1 | J46: Communication Skills | AI46: C1
I47: 2 | J47: Interpersonal skills | AI47: C2
I48: 3 | AI48: C3A
I49: Open-ended response (if any) | AI49: C3B
I50: 4 | AI50: C3C
AI51: C3D
AB52: ` | AI52: C3E
B53: 10 | C53: Distribution of Student Learning Time (SLT) | AI53: C3F
C54: Note: This SLT calculation is designed for home grown programme only. | AI54: C4A
AI55: C4B
D56: Course Content Outline and Subtopics | K56: CLO* | M56: Learning and Teaching Activities** | X56: Total SLT | AI56: C5
M57: Face-to-Face (F2F) | U57: NF2F Independent Learning (Asynchronous)
M58: Physical | Q58: Online/ Technology-mediated (Synchronous)
M59: L | N59: T | O59: P | P59: O | Q59: L | R59: T | S59: P | T59: O
D60: 1 | E60: Text 1 - Qawaid : Al-Fael Wa Naib Fael | K60: CLO1, CLO2 | M60: 1 | N60: 1 | U60: 3
D61: 2 | E61: Text 2 - Qawaid : Al-Maf'ul Bih | K61: CLO1, CLO2 | M61: 1 | N61: 1 | U61: 3
D62: 3 | E62: Text 3 - Qawaid : As-Sifah Wal Mausuf | K62: CLO1, CLO2 | M62: 2 | N62: 1 | U62: 4
D63: 4 | E63: Text 4 - Qawaid : Al-Munada | K63: CLO1, CLO2 | M63: 2 | N63: 2 | U63: 6
D64: 5 | E64: Text 5 - Qawaid : Al-Hal | K64: CLO1, CLO2 | M64: 2 | N64: 2 | U64: 6
D65: 6 | E65: Text 6 - Qawaid : Al'Adad Wal-Ma'dud | K65: CLO3 | M65: 2 | N65: 2 | U65: 6
D66: 7 | E66: Text 7 - Qawaid : At-Taukid Wal-Badal | K66: CLO3 | M66: 2 | N66: 2 | U66: 6
D67: 8
D68: 9
D69: 10
D70: =D69+1 -> 11
D71: =D70+1 -> 12
D72: 13
D73: 14
D74: 15
D75: 16
D76: 17
D77: 18
D78: 19
D79: 20
D80: SUB-TOTAL SLT: | X80: =SUM(M60:P79)+SUM(Q60:T79)+SUM(U60:W79) -> 57
D81: Continous Assessement | K81: % | M81: Face-to-Face (F2F) | U81: NF2F Independent Learning for Assessment (Asynchronous)
M82: Physical | Q82: Online/ Technology-mediated (Synchronous)
D83: 1 | E83: Test 1 | K83: 10 | M83: 1 | U83: 2
D84: 2 | E84: Test 2 | K84: 10 | M84: 1 | U84: 2
D85: 3 | E85: Quiz | K85: 10 | M85: 1 | U85: 2
D86: 4 | E86: Assignment / Presentation | K86: 20 | M86: 2 | U86: 4
D87: 5
D88: SUB-TOTAL SLT: | X88: =SUM(M83:W87) -> 15
D89: Final Assessement | K89: % | M89: Face-to-Face (F2F) | U89: NF2F Independent Learning for Assessment (Asynchronous)
M90: Physical | Q90: Online/ Technology-mediated (Synchronous)
D91: 1 | E91: Examination | K91: 50 | M91: 2 | U91: 6
D92: 2
D93: 3
D94: 4
D95: 5
D96: SUB-TOTAL SLT: | X96: =SUM(M91:W95) -> 8
D98: SLT for Assessment: | X98: =X88+X96 -> 23
D99: GRAND TOTAL SLT: | X99: =X98+X80 -> 80
D100: A | E100: % SLT for F2F Physical Component: [Total F2F Physical /(Total F2F Physical + Total F2F Online + Total Independent Learning) x 100)] | X100: =IFERROR(((SUM(M60:P79)+SUM(M83:P87)+SUM(M91:P95))/X99)* 100,"") -> 37.5
D102: B | E102: % SLT for Online & Independent Learning Component: [(Total F2F Online + Total Independent Learning) /( Total F2F Physical + Total F2F Online + Total Independent Learning) x 100] | X102: =IFERROR((SUM(Q60:W79)+SUM(Q83:W87) + SUM(Q91:W95))/X99 * 100,"") -> 62.5
D103: C | E103: % SLT for All Practical Component: [% F2F Physical Practical + % F2F Online Practical] | X103: =IFERROR(X104+X105,"") -> 0
D104: C1 | E104: % SLT for F2F Physical Practical Component [Total F2F Physical Practical /( Total F2F Physical + Total F2F Online + Total Independent Learning) x 100)] | X104: =IFERROR(SUM(O60:O79)/X99*100,"") -> 0
D105: C2 | E105: % SLT for F2F Online Practical Component [Total F2F Online Practical / (Total F2F Physical + Total F2F Online + Total Independent Learning) x 100] | X105: =IFERROR(SUM(S60:S79)/X99 *100,"") -> 0
Z106: =IFERROR(X102+X104,"") -> 62.5
D107: Please tick (√) if this course is Industrial Training/ Clinical Placement/ Practicum using 50% of Effective Learning Time (ELT)
D108: Note:
D109: * Indicate the CLO based on the CLO's numbering in Item 8
D110: ** For ODL programme: Courses with mandatory practical requiremnets imposed by the programme standards or any related standards can be exempted from complying to the minimum 80% ODL delivery rule in the SLT.
B112: 11 | C112: Identify special requirement or resources to deliver the course (e.g., software, nursery, computer lab, simulation room etc)
B114: 12 | C114: References (include required and further readings, and should be the most current) | K114: Main reference : 1. Dr. Mahmud Ismail Sini, Nasif Mustsfa b. Ab. Aziz , Mokhtar al- Tahir , al-Arabiah li al-Nasyin 1983, Saudi Arabia, Wzara al- Ma’arif . 2. Dr. Imad Hatim, al-Lughah al-Arabiah Qawaid wa Nusus, 1980 Tripoli, Libya. Additional references: 1. Abbas Hassan 1971, Al-Nahw al-Wafi, Bairyut, dar al-Ma’arif. 2. Mahmud Husaini al-Mughalasah 1991, al-Nahw al-Syai, Kaherah. Dar al-Basyir.
B116: 13 | C116: Other additional information (if applicable)
C119: Note: Number of PLO indicated is purely for illustration purposes only and the number is subjected to the curriculum design.

Sheet ASY2213
B2: Back To FORM @ TEMPLATE
AI3: √
B5: 1 | C5: Course Name: | F5: AL-MADKHAL ILA AL-FIQH | AI5: Semester
C6: Course Code: | F6: ASY2213 | AI6: 1
C7: Course Classification: | F7: Major (core) | AI7: 2
B8: 2 | C8: Synopsis: | F8: Kursus ini membincangkan tentang konsep syariat, fiqh dan ijtihad, tahap-tahap dalam sejarah pensyariatan iaitu bermula pada zaman Rasulullah s.a.w. , zaman para sahabat, zaman para tabi’in, zaman ulama’ mujtahidin, zaman taklid dan kebekuan ijtihad serta zaman moden. | AI8: 3
B9: =B8+1 -> 3 | C9: Name(s) of Academic Staff: | F9: 1 | G9: FATIN AWANIS BINTI HAYU
F10: 2 | AI10: Year Offered
F11: 3 | AI11: 1
B12: =B9+1 -> 4 | C12: Semester and Year offered: | F12: Year Offered | I12: 1 | J12: Semester | L12: 2 | M12: Remarks: | AI12: 2
B13: =B12+1 -> 5 | C13: Credit Value: | F13: =IF(X107 ="√",INT(X99/80),INT(X99/40)) -> 3 | AI13: 3
B14: 6 | C14: Pre-requisite/ co-requisite (if any): | AI14: 4
AI15: 5
B16: 7 | C16: Course Learning Outcomes (CLO) | F16: CLO1 | H16: Menjelaskan hubungan antara syariah, fiqh dan ijtihad para mujtahid sepanjang kurun. (C2,PLO1) | AI16: 6
F17: CLO2 | H17: Membezakan prinsip serta sistem perundangan Islam serta perkembangannya dengan perundangan ciptaan manusia(A3, CTPS, PLO2) | AI17: 7
F18: CLO3 | H18: Mengenalpasti sumber-sumber serta usaha-usaha ulama dalam perundangan Islam berdasarkan setiap peringkat perkembangan perundangan Islam. (P1,PLO3) | AI18: 8
AI20: Compulsory
AI21: Major (core)
AI22: Minor
AI23: Elective (core)
AI24: Elective (open/free)
B25: 8 | C25: Mapping of the Course Learning Outcomes to the Programme Learning Outcomes, Teaching Methods and Assessment Methods
D27: Course Learning Outcomes | F27: Programme Learning Outcomes (PLO) | R27: Teaching Methods | W27: Assessment Methods
F28: PLO 1 | G28: PLO 2 | H28: PLO 3 | I28: PLO 4 | J28: PLO 5 | K28: PLO 6 | L28: PLO 7 | M28: PLO 8 | N28: PLO 9 | O28: PLO 10 | P28: PLO 11
D29: =IF(ISBLANK(F16),"",F16) -> CLO1 | F29: √ | R29: Kuliah | Tutorial | W29: Kuiz| ujian |peperiksaan akhir
D30: =IF(ISBLANK(F17),"",F17) -> CLO2 | G30: √ | R30: Kuliah | Tutorial | W30: Ujian| tugasan | perbentangan
D31: CLO3 | H31: √ | R31: Kuliah | Tutorial | W31: Ujian | peperiksaan akhir
AI36: Cognitive skills
D37: Mapping with MQF Cluster of Learning Outcomes | F37: C1 | G37: C2 | H37: C3A | I37: C3B | J37: C3C | K37: C3D | L37: C3E | M37: C3F | N37: C4A | O37: C4B | P37: C5 | AI37: Interpersonal skills
AI38: Communication Skills
AI39: Digital Skills
AI40: Numeracy Skills
D41: Indicate the primary causal link between the CLO and PLO by ticking '√' in the appropriate box. | AI41: Leadership, Autonomy and Responsibility
D42: C1 = Knowledge & Understanding, C2 = Cognitive Skills, C3A = Practical Skills, C3B = Interpersonal Skills, C3C = Communication Skills, C3D = Digital Skills, | AI42: Personal Skills
D43: C3E = Numeracy Skills, C3F = Leadership, Autonomy & Responsibility, C4A = Personal Skills, C4B = Entrepreneurial Skills, C5 = Ethics & Professionalism | AI43: Entrepreneurial Skills
AI44: Ethics and Professionalism
B45: 9 | C45: Transferable Skills (if applicable)
C46: (Skills learned in the course of study which can be useful and utilized in other settings) | I46: 1 | J46: Communication Skills | AI46: C1
I47: 2 | AI47: C2
I48: 3 | AI48: C3A
I49: Open-ended response (if any) | AI49: C3B
I50: 4 | J50: Practical Skills | AI50: C3C
AI51: C3D
AB52: ` | AI52: C3E
B53: 10 | C53: Distribution of Student Learning Time (SLT) | AI53: C3F
C54: Note: This SLT calculation is designed for home grown programme only. | AI54: C4A
AI55: C4B
D56: Course Content Outline and Subtopics | K56: CLO* | M56: Learning and Teaching Activities** | X56: Total SLT | AI56: C5
M57: Face-to-Face (F2F) | U57: NF2F Independent Learning (Asynchronous)
M58: Physical | Q58: Online/ Technology-mediated (Synchronous)
M59: L | N59: T | O59: P | P59: O | Q59: L | R59: T | S59: P | T59: O
D60: 1 | E60: 1.0 Prinsip umum syariah dan tarikh tasyri’ 1.1 Definisi syariah, tasyri’, fiqh dan qanun 1.2 Keperluan kepada perundangan Islam 1.3 Perbezaan perundangan Islam dengan Undang-undang ciptaan manusia. 1.4 Peringkat-peringkat tasyri’ dalam sejarah pemikiran Islam | K60: CLO1 | M60: 4 | N60: 2 | U60: 6
D61: 2 | E61: 2.0 Perundangan pada zaman Rasulullah s.a.w. 2.1 Keadaan bangsa Arab ketika kebangkitan Nabi 2.2 Cara penurunan syariat 2.3 Al-Quran pada zaman Nabi 2.4 Al-Sunnah pada zaman Nabi 2.5 Ijtihad pada zaman Rasulullah | K61: CLO2 | M61: 4 | N61: 2 | U61: 6
D62: 3 | E62: 3.0 Perundangan pada zaman sahabat 3.1 Pensyariatan pada zaman sahabat (khulafa’ ar-rasyidin) 3.2 Keadaan pada zaman itu 3.3 Sumber 1: Al-Quran 3.4 Sumber 2: As-Sunnah 3.5 Ijtihad pada zaman sahabat 3.6 Tokoh-tokoh | K62: CLO2, CLO3 | M62: 4 | N62: 2 | U62: 6
D63: 4 | E63: 4.0 Perundangan pada zaman tabi’in 4.1 Pensyariatan zaman tabi’in (hujung khalifah ar-Rasyidin hingga awal kurun ke 2) 4.2 Fenomena perpecahan di kalangan umat Islam 4.3 Kesan-kesan fenomena pada zaman ini 4.4 Tokoh-tokoh di kalangan tabi’in | K63: CLO2, CLO3 | M63: 6 | N63: 3 | U63: 8
D64: 5 | E64: 5.0 Perundangan pada zaman ulama’ mujtahidin 5.1 Pensyariatan zaman ulama’ mujtahidin(dari awal kurun ke 2 sehingga pertengahan kurun ke 4) 5.2 Kegemilangan tokoh pada zaman imam mujtahid dan sebab-sebabnya. 5.3 Sumber-sumber fiqh pada zaman iman mujtahid. 5.4 Faktor-faktor kemunculan mazhab fiqh pada zaman ini 5.5 Fenomena perselisihan di kalangan fuqaha’, kesan kepada umat Islam dan pendirian kita terhadapnya. | K64: CLO2, CLO3 | M64: 6 | N64: 4 | U64: 8
D65: 6 | E65: 6.0 Perundangan pada zaman taklid dan kebekuan ijtihad 6.1 Pensyariatan pada zaman taklid dan kebekuan ijtihad (pertengahan kurun ke 4 sehingga kejatuhan Baghdad) 6.2 Fenomena taklid 6.3 Tokoh-tokoh pada zaman ini | K65: CLO2, CLO3 | M65: 4 | N65: 2 | U65: 4
D66: 7 | E66: 7.0 Perundangan pada zaman moden 7.1 Pensyariatan pada zaman moden (pertengahan kurun ke 5 sehingga sekarang) 7.2 Usaha-usaha membangunkan pemikiran pada zaman moden 7.3 Ensiklopedia fiqh Islam | K66: CLO2, CLO3 | M66: 6 | N66: 2 | U66: 6
D67: 8
D68: 9
D69: 10
D70: =D69+1 -> 11
D71: =D70+1 -> 12
D72: 13
D73: 14
D74: 15
D75: 16
D76: 17
D77: 18
D78: 19
D79: 20
D80: SUB-TOTAL SLT: | X80: =SUM(M60:P79)+SUM(Q60:T79)+SUM(U60:W79) -> 95
D81: Continous Assessement | K81: % | M81: Face-to-Face (F2F) | U81: NF2F Independent Learning for Assessment (Asynchronous)
M82: Physical | Q82: Online/ Technology-mediated (Synchronous)
D83: 1 | E83: Ujian 1 & 2 | K83: 20 | M83: 2 | U83: 4
D84: 2 | E84: Tugasan | K84: 10 | M84: 1 | U84: 2
D85: 3 | E85: Pembentangan | K85: 10 | M85: 1 | U85: 2
D86: 4 | E86: Kuiz | K86: 10 | M86: 1 | U86: 1
D87: 5
D88: SUB-TOTAL SLT: | X88: =SUM(M83:W87) -> 14
D89: Final Assessement | K89: % | M89: Face-to-Face (F2F) | U89: NF2F Independent Learning for Assessment (Asynchronous)
M90: Physical | Q90: Online/ Technology-mediated (Synchronous)
D91: 1 | E91: Peperiksaan Akhir | K91: 50 | M91: 2.5 | U91: 8.5
D92: 2
D93: 3
D94: 4
D95: 5
D96: SUB-TOTAL SLT: | X96: =SUM(M91:W95) -> 11
D98: SLT for Assessment: | X98: =X88+X96 -> 25
D99: GRAND TOTAL SLT: | X99: =X98+X80 -> 120
D100: A | E100: % SLT for F2F Physical Component: [Total F2F Physical /(Total F2F Physical + Total F2F Online + Total Independent Learning) x 100)] | X100: =IFERROR(((SUM(M60:P79)+SUM(M83:P87)+SUM(M91:P95))/X99)* 100,"") -> 48.75
D102: B | E102: % SLT for Online & Independent Learning Component: [(Total F2F Online + Total Independent Learning) /( Total F2F Physical + Total F2F Online + Total Independent Learning) x 100] | X102: =IFERROR((SUM(Q60:W79)+SUM(Q83:W87) + SUM(Q91:W95))/X99 * 100,"") -> 51.25
D103: C | E103: % SLT for All Practical Component: [% F2F Physical Practical + % F2F Online Practical] | X103: =IFERROR(X104+X105,"") -> 0
D104: C1 | E104: % SLT for F2F Physical Practical Component [Total F2F Physical Practical /( Total F2F Physical + Total F2F Online + Total Independent Learning) x 100)] | X104: =IFERROR(SUM(O60:O79)/X99*100,"") -> 0
D105: C2 | E105: % SLT for F2F Online Practical Component [Total F2F Online Practical / (Total F2F Physical + Total F2F Online + Total Independent Learning) x 100] | X105: =IFERROR(SUM(S60:S79)/X99 *100,"") -> 0
Z106: =IFERROR(X102+X104,"") -> 51.25
D107: Please tick (√) if this course is Industrial Training/ Clinical Placement/ Practicum using 50% of Effective Learning Time (ELT)
D108: Note:
D109: * Indicate the CLO based on the CLO's numbering in Item 8
D110: ** For ODL programme: Courses with mandatory practical requiremnets imposed by the programme standards or any related standards can be exempted from complying to the minimum 80% ODL delivery rule in the SLT.
B112: 11 | C112: Identify special requirement or resources to deliver the course (e.g., software, nursery, computer lab, simulation room etc)
B114: 12 | C114: References (include required and further readings, and should be the most current) | K114: 1. Muhammad Fuad Muhammad Suwari, Dr, (2009), Al-Madkhal Ila Dirasah Al-Fiqh Al-Islami, Kuala Lumpur : IIUM Press. 2. Al-Sayis, Muhammad Ali (2002), Tarikh Al-Fiqh Al-Islami, Dar Al-Furqan : Damsyiq.
B116: 13 | C116: Other additional information (if applicable)
C119: Note: Number of PLO indicated is purely for illustration purposes only and the number is subjected to the curriculum design.

Sheet ASY3153
B2: Back To FORM @ TEMPLATE
AI3: √
B5: 1 | C5: Course Name: | F5: FIQH AL-MUNAKAHAT | AI5: Semester
C6: Course Code: | F6: ASY3153 | AI6: 1
C7: Course Classification: | F7: Major (core) | AI7: 2
B8: 2 | C8: Synopsis: | F8: Perbincangan mengenai nikah, pra-nikah, rukun-rukun dan syarat-syaratnya, implikasi daripada pernikahan serta perkara-perkara yang berkaitan dengan perceraian | AI8: 3
B9: =B8+1 -> 3 | C9: Name(s) of Academic Staff: | F9: 1 | G9: RADIN SERI NABAHAH AHMAD ZABIDI
F10: 2 | AI10: Year Offered
F11: 3 | AI11: 1
B12: =B9+1 -> 4 | C12: Semester and Year offered: | F12: Year Offered | I12: 1 | J12: Semester | L12: 2 | M12: Remarks: | AI12: 2
B13: =B12+1 -> 5 | C13: Credit Value: | F13: =IF(X107 ="√",INT(X99/80),INT(X99/40)) -> 3 | AI13: 3
B14: 6 | C14: Pre-requisite/ co-requisite (if any): | AI14: 4
AI15: 5
B16: 7 | C16: Course Learning Outcomes (CLO) | F16: CLO1 | H16: Menjelaskan hukum, syarat dan hikmah pernikahan, pembubaran perkahwinan dan penceraian. (PLO1, C2) | AI16: 6
F17: CLO2 | H17: Membincang perkaitan di antara perkahwinan, pembubaran perkahwinan serta implikasinya terhadap diri, keluarga dan masyarakat (PLO3,CTPS, P1) | AI17: 7
F18: CLO3 | H18: Menyelesai kaedah-kaedah hukum melalui kes-kes perkahwinan. (PLO5, A3) | AI18: 8
AI20: Compulsory
AI21: Major (core)
AI22: Minor
AI23: Elective (core)
AI24: Elective (open/free)
B25: 8 | C25: Mapping of the Course Learning Outcomes to the Programme Learning Outcomes, Teaching Methods and Assessment Methods
D27: Course Learning Outcomes | F27: Programme Learning Outcomes (PLO) | R27: Teaching Methods | W27: Assessment Methods
F28: PLO 1 | G28: PLO 2 | H28: PLO 3 | I28: PLO 4 | J28: PLO 5 | K28: PLO 6 | L28: PLO 7 | M28: PLO 8 | N28: PLO 9 | O28: PLO 10 | P28: PLO 11
D29: =IF(ISBLANK(F16),"",F16) -> CLO1 | F29: √ | R29: Kuliah | Tutorial | W29: Kuiz| ujian |peperiksaan akhir
D30: =IF(ISBLANK(F17),"",F17) -> CLO2 | H30: √ | R30: Kuliah | Tutorial | W30: Ujian| tugasan | perbentangan
D31: CLO3 | J31: √ | R31: Kuliah | Tutorial | W31: Ujian | peperiksaan akhir
AI36: Cognitive skills
D37: Mapping with MQF Cluster of Learning Outcomes | F37: C1 | G37: C2 | H37: C3A | I37: C3B | J37: C3C | K37: C3D | L37: C3E | M37: C3F | N37: C4A | O37: C4B | P37: C5 | AI37: Interpersonal skills
AI38: Communication Skills
AI39: Digital Skills
AI40: Numeracy Skills
D41: Indicate the primary causal link between the CLO and PLO by ticking '√' in the appropriate box. | AI41: Leadership, Autonomy and Responsibility
D42: C1 = Knowledge & Understanding, C2 = Cognitive Skills, C3A = Practical Skills, C3B = Interpersonal Skills, C3C = Communication Skills, C3D = Digital Skills, | AI42: Personal Skills
D43: C3E = Numeracy Skills, C3F = Leadership, Autonomy & Responsibility, C4A = Personal Skills, C4B = Entrepreneurial Skills, C5 = Ethics & Professionalism | AI43: Entrepreneurial Skills
AI44: Ethics and Professionalism
B45: 9 | C45: Transferable Skills (if applicable)
C46: (Skills learned in the course of study which can be useful and utilized in other settings) | I46: 1 | J46: Cognitive skills | AI46: C1
I47: 2 | J47: Communication Skills | AI47: C2
I48: 3 | AI48: C3A
I49: Open-ended response (if any) | AI49: C3B
I50: 4 | J50: Practical Skills | AI50: C3C
AI51: C3D
AB52: ` | AI52: C3E
B53: 10 | C53: Distribution of Student Learning Time (SLT) | AI53: C3F
C54: Note: This SLT calculation is designed for home grown programme only. | AI54: C4A
AI55: C4B
D56: Course Content Outline and Subtopics | K56: CLO* | M56: Learning and Teaching Activities** | X56: Total SLT | AI56: C5
M57: Face-to-Face (F2F) | U57: NF2F Independent Learning (Asynchronous)
M58: Physical | Q58: Online/ Technology-mediated (Synchronous)
M59: L | N59: T | O59: P | P59: O | Q59: L | R59: T | S59: P | T59: O
D60: 1 | E60: 1.0 Pra-Nikah 1.1 Hukum 1.1.1 Matlamat 1.1.2 Syarat 1.1.3 Hikmah | K60: CLO1 | M60: 4 | N60: 2 | U60: 5
D61: 2 | E61: 2.0 Pinangan 2.1 Pengertian dan hukum 2.2 Adab-adab pertunangan 2.3 Pembatalan Pertunangan | K61: CLO2 | M61: 4 | N61: 2 | U61: 5
D62: 3 | E62: 3.0 Pernikahan 3.1 Rukun dan syaratnya 3.2 Hukum nikah yang fasid dan batil 3.3 Prosedur perkahwinan Jabatan Kemajuan Islam Malaysia | K62: CLO2 | M62: 4 | N62: 4 | U62: 6
D63: 4 | E63: 4.0 Implikasi nikah 4.1 Hak suami-isteri 4.2 Hak suami 4.3 Hak isteri 4.4 Hak bersama | K63: CLO3 | M63: 6 | N63: 4 | U63: 8
D64: 5 | E64: 5.0 Pembubaran perkahwinan 5.1 Talak 5.2 Hukum 5.3 Hikmah 5.4 Bahagian 5.5 Sebab-sebab 5.6 Khulu’ 5.7 Hukum 5.8 Kesan 5.9 Prosedur pembubaran perkahwinan dalam undang-undang Malaysia | K64: CLO3 | M64: 6 | N64: 4 | U64: 8
D65: 6 | E65: 6.0 Implikasi perceraian 6.1 Iddah 6.2 Nafkah 6.3 Nasab 6.4 Penjagaan 6.5 Perundangan dan Pentadbiran Perkahwinan Semasa | K65: CLO3 | M65: 6 | N65: 4 | U65: 8
D66: 7
D67: 8
D68: 9
D69: 10
D70: =D69+1 -> 11
D71: =D70+1 -> 12
D72: 13
D73: 14
D74: 15
D75: 16
D76: 17
D77: 18
D78: 19
D79: 20
D80: SUB-TOTAL SLT: | X80: =SUM(M60:P79)+SUM(Q60:T79)+SUM(U60:W79) -> 90
D81: Continous Assessement | K81: % | M81: Face-to-Face (F2F) | U81: NF2F Independent Learning for Assessment (Asynchronous)
M82: Physical | Q82: Online/ Technology-mediated (Synchronous)
D83: 1 | E83: Ujian 1 | K83: 10 | M83: 1.5 | U83: 3
D84: 2 | E84: Ujian 2 | K84: 10 | M84: 1.5 | U84: 3
D85: 3 | E85: Kuiz | K85: 10 | M85: 1 | U85: 1
D86: 4 | E86: Tugasan & Pembentangan | K86: 10 | M86: 2 | U86: 6
D87: 5
D88: SUB-TOTAL SLT: | X88: =SUM(M83:W87) -> 19
D89: Final Assessement | K89: % | M89: Face-to-Face (F2F) | U89: NF2F Independent Learning for Assessment (Asynchronous)
M90: Physical | Q90: Online/ Technology-mediated (Synchronous)
D91: 1 | E91: Peperiksaan Akhir | K91: 50 | M91: 2.5 | U91: 8.5
D92: 2
D93: 3
D94: 4
D95: 5
D96: SUB-TOTAL SLT: | X96: =SUM(M91:W95) -> 11
D98: SLT for Assessment: | X98: =X88+X96 -> 30
D99: GRAND TOTAL SLT: | X99: =X98+X80 -> 120
D100: A | E100: % SLT for F2F Physical Component: [Total F2F Physical /(Total F2F Physical + Total F2F Online + Total Independent Learning) x 100)] | X100: =IFERROR(((SUM(M60:P79)+SUM(M83:P87)+SUM(M91:P95))/X99)* 100,"") -> 48.75
D102: B | E102: % SLT for Online & Independent Learning Component: [(Total F2F Online + Total Independent Learning) /( Total F2F Physical + Total F2F Online + Total Independent Learning) x 100] | X102: =IFERROR((SUM(Q60:W79)+SUM(Q83:W87) + SUM(Q91:W95))/X99 * 100,"") -> 51.25
D103: C | E103: % SLT for All Practical Component: [% F2F Physical Practical + % F2F Online Practical] | X103: =IFERROR(X104+X105,"") -> 0
D104: C1 | E104: % SLT for F2F Physical Practical Component [Total F2F Physical Practical /( Total F2F Physical + Total F2F Online + Total Independent Learning) x 100)] | X104: =IFERROR(SUM(O60:O79)/X99*100,"") -> 0
D105: C2 | E105: % SLT for F2F Online Practical Component [Total F2F Online Practical / (Total F2F Physical + Total F2F Online + Total Independent Learning) x 100] | X105: =IFERROR(SUM(S60:S79)/X99 *100,"") -> 0
Z106: =IFERROR(X102+X104,"") -> 51.25
D107: Please tick (√) if this course is Industrial Training/ Clinical Placement/ Practicum using 50% of Effective Learning Time (ELT)
D108: Note:
D109: * Indicate the CLO based on the CLO's numbering in Item 8
D110: ** For ODL programme: Courses with mandatory practical requiremnets imposed by the programme standards or any related standards can be exempted from complying to the minimum 80% ODL delivery rule in the SLT.
B112: 11 | C112: Identify special requirement or resources to deliver the course (e.g., software, nursery, computer lab, simulation room etc)
B114: 12 | C114: References (include required and further readings, and should be the most current) | K114: Rujukan Utama : 1. Dr. Wahbah al-Zuhaili, (1991) Al-Tafsir al-Munir Fi al-Aqidah Wa al-Syariah Wa al-Manhaj. Beirut : Dar al – Fikr al-Ma’asir Rujukan Tambahan : 1. Ibn Kathir, Abu al-Fida’, Ismail. (1991). Tafsir al-Quran al-Azim. Beirut : Dar al-Fikr 2. Al-Tabari, Muhammad Ibn Jarir. (1986). Jami` al-Bayan wa Ta`wil li Ayi al-Quran. Beirut : Dar al-Ma`rifah 3. Al-Qurtubi, Abu Abdullah Muhammad bin Ahmad (1963), Al-Jami’ li Ahkam al-Quran. Kaherah : Dar al-Kutub al-Misriyyah. 4. Al-Razi, Muhammad Ibn Umar Fakhr al-Din. (1994). Mafatih al-Ghayb. Beirut : Dar al-Fikr
B116: 13 | C116: Other additional information (if applicable)
C119: Note: Number of PLO indicated is purely for illustration purposes only and the number is subjected to the curriculum design.

Sheet ASY3163
B2: Back To FORM @ TEMPLATE
AI3: √
B5: 1 | C5: Course Name: | F5: FIQH AL-JINAYAT | AI5: Semester
C6: Course Code: | F6: ASY3163 | AI6: 1
C7: Course Classification: | F7: Major (core) | AI7: 2
B8: 2 | C8: Synopsis: | F8: Perbincangan mengenai konsep jenayah, jarimah dan ‘uqubah dalam undang-undang jenayah Islam, pengertian dan jenis-jenis jenayah yang berkaitan dengan hudud dan ta’zir, kesalahan qisas dan diat, membunuh dan jenis-jenisnya, hukuman dan cara mensabitkan kesalahan bagi setiap jenayah . Selain itu, perbincangan juga ditumpukan kepada perbezaan antara undang-undang jenayah Islam dan sivil serta isu-isu semasa dan penyelesaiannya dalam Islam. | AI8: 3
B9: =B8+1 -> 3 | C9: Name(s) of Academic Staff: | F9: 1 | G9: RADIN SERI NABAHAH AHMAD ZABIDI
F10: 2 | AI10: Year Offered
F11: 3 | AI11: 1
B12: =B9+1 -> 4 | C12: Semester and Year offered: | F12: Year Offered | I12: 1 | J12: Semester | L12: 2 | M12: Remarks: | AI12: 2
B13: =B12+1 -> 5 | C13: Credit Value: | F13: =IF(X107 ="√",INT(X99/80),INT(X99/40)) -> 3 | AI13: 3
B14: 6 | C14: Pre-requisite/ co-requisite (if any): | AI14: 4
AI15: 5
B16: 7 | C16: Course Learning Outcomes (CLO) | F16: CLO1 | H16: Menjelaskan konsep asas dan peranan undang-undang jenayah Islam serta perbezaannya dengan jenayah sivil (C2, PLO1) | AI16: 6
F17: CLO2 | H17: Menghurai pandangan dan pendapat fuqaha’ berkaitan kesalahan jenayah Islam dan hukumannya melalui kes/isu yang diberikan (P2, CTPS, PLO3) | AI17: 7
F18: CLO3 | H18: Membincang pandangan Islam terhadap isu-isu terkini berdasarkan kajian kes yang diberikan (A2, PLO5) | AI18: 8
AI20: Compulsory
AI21: Major (core)
AI22: Minor
AI23: Elective (core)
AI24: Elective (open/free)
B25: 8 | C25: Mapping of the Course Learning Outcomes to the Programme Learning Outcomes, Teaching Methods and Assessment Methods
D27: Course Learning Outcomes | F27: Programme Learning Outcomes (PLO) | R27: Teaching Methods | W27: Assessment Methods
F28: PLO 1 | G28: PLO 2 | H28: PLO 3 | I28: PLO 4 | J28: PLO 5 | K28: PLO 6 | L28: PLO 7 | M28: PLO 8 | N28: PLO 9 | O28: PLO 10 | P28: PLO 11
D29: =IF(ISBLANK(F16),"",F16) -> CLO1 | F29: √ | R29: Kuliah | Tutorial | W29: Kuiz| ujian |peperiksaan akhir
D30: =IF(ISBLANK(F17),"",F17) -> CLO2 | H30: √ | R30: Kuliah | Tutorial | W30: Ujian | peperiksaan akhir
D31: CLO3 | J31: √ | R31: Kuliah | Tutorial | W31: Ujian | peperiksaan akhir
AI36: Cognitive skills
D37: Mapping with MQF Cluster of Learning Outcomes | F37: C1 | G37: C2 | H37: C3A | I37: C3B | J37: C3C | K37: C3D | L37: C3E | M37: C3F | N37: C4A | O37: C4B | P37: C5 | AI37: Interpersonal skills
AI38: Communication Skills
AI39: Digital Skills
AI40: Numeracy Skills
D41: Indicate the primary causal link between the CLO and PLO by ticking '√' in the appropriate box. | AI41: Leadership, Autonomy and Responsibility
D42: C1 = Knowledge & Understanding, C2 = Cognitive Skills, C3A = Practical Skills, C3B = Interpersonal Skills, C3C = Communication Skills, C3D = Digital Skills, | AI42: Personal Skills
D43: C3E = Numeracy Skills, C3F = Leadership, Autonomy & Responsibility, C4A = Personal Skills, C4B = Entrepreneurial Skills, C5 = Ethics & Professionalism | AI43: Entrepreneurial Skills
AI44: Ethics and Professionalism
B45: 9 | C45: Transferable Skills (if applicable)
C46: (Skills learned in the course of study which can be useful and utilized in other settings) | I46: 1 | J46: Cognitive skills | AI46: C1
I47: 2 | J47: Communication Skills | AI47: C2
I48: 3 | AI48: C3A
I49: Open-ended response (if any) | AI49: C3B
I50: 4 | J50: Practical Skills | AI50: C3C
AI51: C3D
AB52: ` | AI52: C3E
B53: 10 | C53: Distribution of Student Learning Time (SLT) | AI53: C3F
C54: Note: This SLT calculation is designed for home grown programme only. | AI54: C4A
AI55: C4B
D56: Course Content Outline and Subtopics | K56: CLO* | M56: Learning and Teaching Activities** | X56: Total SLT | AI56: C5
M57: Face-to-Face (F2F) | U57: NF2F Independent Learning (Asynchronous)
M58: Physical | Q58: Online/ Technology-mediated (Synchronous)
M59: L | N59: T | O59: P | P59: O | Q59: L | R59: T | S59: P | T59: O
D60: 1 | E60: 1.0 Pengenalan konsep undang-undang jenayah Islam 1.1 Konsep jinayah, jarimah dan ‘uqubah 1.2 Perbandingan undang-undang jenayah Islam dan sivil 1.3 Peranan undang-undang jenayah Islam dalam menjamin kesejahteraan ummah | K60: CLO1 | M60: 4 | N60: 2 | U60: 6
D61: 2 | E61: 2.0 Kesalahan hudud, ciri-ciri dan pembahagiannya 2.1 Kesalahan zina 2.1.1 Definisi, dalil, syarat, hukuman 2.1.2 Isu-isu berkaitan : Kesalahan homoseksual dan lesbian 2.2 Kesalahan qazaf 2.2.1 Definisi, dalil, syarat, hukuman 2.2.2 Isu-isu berkaitan 2.3 Kesalahan mencuri 2.3.1 Definisi, dalil, syarat, hukuman 2.3.2 Isu-isu berkaitan 2.4 Kesalahan hirabah / rompakan 2.4.1 Definisi, dalil, syarat, hukuman 2.4.2 Isu-isu berkaitan 2.5 Kesalahan minum arak 2.5.1 Definisi, dalil, syarat, hukuman 2.5.2 Isu-isu berkaitan 2.6 Kesalahan memberontak (al-baghyu) 2.6.1 Definisi, dalil, syarat, hukuman 2.6.2 Isu-isu berkaitan 2.7 Kesalahan Riddah (murtad) 2.7.1 Definisi, dalil, syarat, hukuman 2.7.2 Isu-isu berkaitan | K61: CLO1 | M61: 8 | N61: 6 | U61: 12
D62: 3 | E62: 3.0 Konsep Qisas dan diat 3.1 Kesalahan Qisas 3.1.1 Definisi 3.1.2 Hikmah 3.1.3 Syarat 3.1.4 Keadaan-keadaan Hukuman 3.2 Diat 3.2.1 Definisi 3.2.2 Keadaan yang mewajibkan Diat 3.2.3 Jenayah membunuh dan jenis-jenisnya • Kaffarah 3.3 Isu-isu dalam jenayah pembunuhan 3.3.1 Kesalahan terhadap janin 3.3.2 Kesalahan terhadap ahlul zimmah | K62: CLO2 | M62: 6 | N62: 4 | U62: 8
D63: 4 | E63: 4.0 Kesalahan ta’zir dan jenis-jenisnya 4.1 Definisi 4.2 Jenis-jenisnya 4.3 Ciri-ciri 4.4 Sebab-sebab sesuatu kesalahan termasuk dalam kesalahan ta’zir 4.5 Pelaksana hukuman ta’zir 4.6 Gantirugi 4.7 Cara pensabitan ta’zir 4.8 Taubat bagi kesalahan ta’zir | K63: CLO2 | M63: 6 | N63: 4 | U63: 7
D64: 5 | E64: 5.0 Perlaksanaan undang-undang jenayah Islam (kewajipan dan cara perlaksanaannya) 5.1 Cara pensabitan kesalahan jenayah Islam | K64: CLO1 | M64: 6 | N64: 4 | U64: 7
D65: 6
D66: 7
D67: 8
D68: 9
D69: 10
D70: =D69+1 -> 11
D71: =D70+1 -> 12
D72: 13
D73: 14
D74: 15
D75: 16
D76: 17
D77: 18
D78: 19
D79: 20
D80: SUB-TOTAL SLT: | X80: =SUM(M60:P79)+SUM(Q60:T79)+SUM(U60:W79) -> 90
D81: Continous Assessement | K81: % | M81: Face-to-Face (F2F) | U81: NF2F Independent Learning for Assessment (Asynchronous)
M82: Physical | Q82: Online/ Technology-mediated (Synchronous)
D83: 1 | E83: Ujian 1 | K83: 10 | M83: 1.5 | U83: 3
D84: 2 | E84: Ujian 2 | K84: 10 | M84: 1.5 | U84: 3
D85: 3 | E85: Kuiz | K85: 10 | M85: 1 | U85: 1
D86: 4 | E86: Tugasan & Pembentangan | K86: 10 | M86: 2 | U86: 6
D87: 5
D88: SUB-TOTAL SLT: | X88: =SUM(M83:W87) -> 19
D89: Final Assessement | K89: % | M89: Face-to-Face (F2F) | U89: NF2F Independent Learning for Assessment (Asynchronous)
M90: Physical | Q90: Online/ Technology-mediated (Synchronous)
D91: 1 | E91: Peperiksaan Akhir | K91: 50 | M91: 2.5 | U91: 8.5
D92: 2
D93: 3
D94: 4
D95: 5
D96: SUB-TOTAL SLT: | X96: =SUM(M91:W95) -> 11
D98: SLT for Assessment: | X98: =X88+X96 -> 30
D99: GRAND TOTAL SLT: | X99: =X98+X80 -> 120
D100: A | E100: % SLT for F2F Physical Component: [Total F2F Physical /(Total F2F Physical + Total F2F Online + Total Independent Learning) x 100)] | X100: =IFERROR(((SUM(M60:P79)+SUM(M83:P87)+SUM(M91:P95))/X99)* 100,"") -> 48.75
D102: B | E102: % SLT for Online & Independent Learning Component: [(Total F2F Online + Total Independent Learning) /( Total F2F Physical + Total F2F Online + Total Independent Learning) x 100] | X102: =IFERROR((SUM(Q60:W79)+SUM(Q83:W87) + SUM(Q91:W95))/X99 * 100,"") -> 51.25
D103: C | E103: % SLT for All Practical Component: [% F2F Physical Practical + % F2F Online Practical] | X103: =IFERROR(X104+X105,"") -> 0
D104: C1 | E104: % SLT for F2F Physical Practical Component [Total F2F Physical Practical /( Total F2F Physical + Total F2F Online + Total Independent Learning) x 100)] | X104: =IFERROR(SUM(O60:O79)/X99*100,"") -> 0
D105: C2 | E105: % SLT for F2F Online Practical Component [Total F2F Online Practical / (Total F2F Physical + Total F2F Online + Total Independent Learning) x 100] | X105: =IFERROR(SUM(S60:S79)/X99 *100,"") -> 0
Z106: =IFERROR(X102+X104,"") -> 51.25
D107: Please tick (√) if this course is Industrial Training/ Clinical Placement/ Practicum using 50% of Effective Learning Time (ELT)
D108: Note:
D109: * Indicate the CLO based on the CLO's numbering in Item 8
D110: ** For ODL programme: Courses with mandatory practical requiremnets imposed by the programme standards or any related standards can be exempted from complying to the minimum 80% ODL delivery rule in the SLT.
B112: 11 | C112: Identify special requirement or resources to deliver the course (e.g., software, nursery, computer lab, simulation room etc)
B114: 12 | C114: References (include required and further readings, and should be the most current) | K114: Rujukan Utama: 1. Al-Nawawi, Abu Zakaria (2000) Raudhah Al-Talibin, Beirut: Dar al-Kutub al-Ilmiah Al-Mawardi. 2. Abu Zahrah, Muhammad (t.t), Al-Jarimah wa al-`Uqubah fi al-Fiqh al-Islami, Kaherah: Dar al-Fikr al-Arabi. 3. Al-Qaradhawi, Yusuf (2009) Fatawa Al-Muashirah, Kuwait : Dar Al-Fikr 4. Al-Khin, Mustafa (1989), Al-Fiqh al-Manhaji, Damsyik: Dar al-Ilm al-Insaniah.
B116: 13 | C116: Other additional information (if applicable)
C119: Note: Number of PLO indicated is purely for illustration purposes only and the number is subjected to the curriculum design.

Sheet ASY3173
B2: Back To FORM @ TEMPLATE
AI3: √
B5: 1 | C5: Course Name: | F5: SISTEM PERUNDANGAN DI MALAYSIA | AI5: Semester
C6: Course Code: | F6: ASY3173 | AI6: 1
C7: Course Classification: | F7: Major (core) | AI7: 2
B8: 2 | C8: Synopsis: | F8: Perbincangan mengenai konsep, ciri-ciri umum dalam sistem perundangan Malaysia, kedudukan undang-undang Islam dan undang-undang adat, prinsip common law, kaedah-kaedah ekuiti, proses perundangan, pentafsiran statut, sistem mahkamah dan profesyen perundangan di Malaysia. Di samping itu, perbincangan turut mengupas pelaksanaan undang-undang Islam sebelum merdeka, kesan penjajahan terhadap undang-undang Islam, konsep undang-undang Islam dan perbezaannya dengan undang-undang konvensional, kedudukan Islam dalam perlembagaan dan institusi agama serta peranannya dalam menguatkuasakan undang-undang tersebut di negeri-negeri di Malaysia. | AI8: 3
B9: =B8+1 -> 3 | C9: Name(s) of Academic Staff: | F9: 1 | G9: RADIN SERI NABAHAH AHMAD ZABIDI
F10: 2 | AI10: Year Offered
F11: 3 | AI11: 1
B12: =B9+1 -> 4 | C12: Semester and Year offered: | F12: Year Offered | I12: 1 | J12: Semester | L12: 2 | M12: Remarks: | AI12: 2
B13: =B12+1 -> 5 | C13: Credit Value: | F13: =IF(X107 ="√",INT(X99/80),INT(X99/40)) -> 3 | AI13: 3
B14: 6 | C14: Pre-requisite/ co-requisite (if any): | AI14: 4
AI15: 5
B16: 7 | C16: Course Learning Outcomes (CLO) | F16: CLO1 | H16: Menerangkan tentang sistem mahkamah, pentadbiran keadilan dan lain-lain institusi berkaitan serta operasinya. (C2,PLO1) | AI16: 6
F17: CLO2 | H17: Menjelaskan kedudukan sebenar undang-undang Islam di Malaysia menurut peruntukan perlembagaan.( P2,CTPS, PLO3) | AI17: 7
F18: CLO3 | H18: Memilih kaedah pengubahsuaian dan adaptasi hukum-hukum Islam dengan common law yang diguna pakai dalam penghakiman. (A1, PLO4 ) | AI18: 8
AI20: Compulsory
AI21: Major (core)
AI22: Minor
AI23: Elective (core)
AI24: Elective (open/free)
B25: 8 | C25: Mapping of the Course Learning Outcomes to the Programme Learning Outcomes, Teaching Methods and Assessment Methods
D27: Course Learning Outcomes | F27: Programme Learning Outcomes (PLO) | R27: Teaching Methods | W27: Assessment Methods
F28: PLO 1 | G28: PLO 2 | H28: PLO 3 | I28: PLO 4 | J28: PLO 5 | K28: PLO 6 | L28: PLO 7 | M28: PLO 8 | N28: PLO 9 | O28: PLO 10 | P28: PLO 11
D29: =IF(ISBLANK(F16),"",F16) -> CLO1 | F29: √ | R29: Kuliah | Tutorial | W29: Kuiz| ujian |peperiksaan akhir
D30: =IF(ISBLANK(F17),"",F17) -> CLO2 | H30: √ | R30: Kuliah | Tutorial | W30: Ujian | perbincangan | pembentangan
D31: CLO3 | I31: √ | R31: Kuliah | Tutorial | W31: Tugasan | perbincangan
AI36: Cognitive skills
D37: Mapping with MQF Cluster of Learning Outcomes | F37: C1 | G37: C2 | H37: C3A | I37: C3B | J37: C3C | K37: C3D | L37: C3E | M37: C3F | N37: C4A | O37: C4B | P37: C5 | AI37: Interpersonal skills
AI38: Communication Skills
AI39: Digital Skills
AI40: Numeracy Skills
D41: Indicate the primary causal link between the CLO and PLO by ticking '√' in the appropriate box. | AI41: Leadership, Autonomy and Responsibility
D42: C1 = Knowledge & Understanding, C2 = Cognitive Skills, C3A = Practical Skills, C3B = Interpersonal Skills, C3C = Communication Skills, C3D = Digital Skills, | AI42: Personal Skills
D43: C3E = Numeracy Skills, C3F = Leadership, Autonomy & Responsibility, C4A = Personal Skills, C4B = Entrepreneurial Skills, C5 = Ethics & Professionalism | AI43: Entrepreneurial Skills
AI44: Ethics and Professionalism
B45: 9 | C45: Transferable Skills (if applicable)
C46: (Skills learned in the course of study which can be useful and utilized in other settings) | I46: 1 | J46: Cognitive skills | AI46: C1
I47: 2 | J47: Interpersonal skills | AI47: C2
I48: 3 | AI48: C3A
I49: Open-ended response (if any) | AI49: C3B
I50: 4 | J50: Practical Skills | AI50: C3C
AI51: C3D
AB52: ` | AI52: C3E
B53: 10 | C53: Distribution of Student Learning Time (SLT) | AI53: C3F
C54: Note: This SLT calculation is designed for home grown programme only. | AI54: C4A
AI55: C4B
D56: Course Content Outline and Subtopics | K56: CLO* | M56: Learning and Teaching Activities** | X56: Total SLT | AI56: C5
M57: Face-to-Face (F2F) | U57: NF2F Independent Learning (Asynchronous)
M58: Physical | Q58: Online/ Technology-mediated (Synchronous)
M59: L | N59: T | O59: P | P59: O | Q59: L | R59: T | S59: P | T59: O
D60: 1 | E60: 1.0 Konsep Umum Undang-undang | K60: CLO1 | M60: 1 | N60: 1 | U60: 2
D61: 2 | E61: 2.0 Konsep undang-undang 2.1 Fungsi undang-undang 2.2 Teori undang-undang 2.3 Klasifikasi undang-undang 2.4 Perbezaan antara sivil dan jenayah | K61: CLO1 | M61: 1 | N61: 1 | U61: 2
D62: 3 | E62: 3.0 Perkembangan undang-undang sebelum kemasukan undang-undang Inggeris. 3.1 Sebelum kedatangan orang-orang Eropah 3.2 Zaman pemerintahan Protugis dan Belanda | K62: CLO1 | M62: 2 | N62: 1 | U62: 3
D63: 4 | E63: 4.0 Penerimaan undang-undang Inggeris (common law, ekuiti dan statut pemakaian am). 4.1 Negeri-negeri Selat 4.2 Negeri-negeri Melayu 4.3 Negeri-negeri Borneo | K63: CLO2 | M63: 2 | N63: 1 | U63: 3
D64: 5 | E64: 5.0 Keputusan Kehakiman 5.1 Duluan Mahkamah dan teknik undang-undang kes 5.2 Doktrin Stare Decisis di Malaysia | K64: CLO2 | M64: 2 | N64: 2 | U64: 3
D65: 6 | E65: 6.0 Proses Perundangan di Malaysia 6.1 Punca-punca perundangan 6.1.1 Pulau Pinang dan Melaka 6.1.2 Malaysia Barat 6.1.3 Negeri Borneo | K65: CLO2 | M65: 2 | N65: 2 | U65: 3
D66: 7 | E66: 7.0 Tafsiran Perundangan. 7.1 Pendekatan Harafiah 7.2 Kaedah Keemasan 7.3 Kaedah Kemudaratan 7.4 Pendekatan Tujuan 7.5 Bantuan-bantuan Penting dalam Taksiran | K66: CLO2 | M66: 2 | N66: 2 | U66: 3
D67: 8 | E67: 8.0 Perlembagaan Persekutuan. 8.1 Ciri-ciri Umum 8.2 Perhubungan di antara Persekutuan dan negeri-negeri 8.3 Pihak Berkuasa Persekutuan 8.4 Kebebasan Asasi 8.5 Kewarganegaraan 8.6 Bahasa Kebangsaan 8.7 Perkhidmatan Awam | K67: CLO2 | M67: 2 | N67: 2 | U67: 3
D68: 9 | E68: 9.0 Kedudukan agama Islam dalam Perlembagaan Malaysia. | K68: CLO2 | M68: 2 | N68: 2 | U68: 3
D69: 10 | E69: 10.0 Halangan pelaksanaan undang-undang Islam di Malaysia. | K69: CLO2 | M69: 2 | N69: 2 | U69: 3
D70: =D69+1 -> 11 | E70: 11.0 Sistem Kehakiman: Mahkamah Rendah Awam. 11.1 Mahkamah Penghulu 11.2 Mahkamah Majistret 11.3 Mahkamah Sesyen 11.4 Perbicaraan Sivil dan Jenayah Mahkamah Rendah | K70: CLO3 | M70: 2 | N70: 2 | U70: 3
D71: =D70+1 -> 12 | E71: 12.0 Sistem Kehakiman: Mahkamah Tinggi Awam. 12.1 Mahkamah Agong 12.2 Mahkamah Tinggi 12.3 Perbicaraan Sivil dan Jenayah Mahkamah Tinggi | K71: CLO3 | M71: 2 | N71: 2 | U71: 3
D72: 13 | E72: 13.0 Mahkamah Khas 13.1 Mahkamah Khas Raja 13.2 Mahkamah Perusahaan 13.3 Mahkamah Juvana 13.4 Mahkamah Tentera 13.5 Mahkamah Syariah 13.6 Mahkamah Anak Negeri | K72: CLO3 | M72: 2 | N72: 2 | U72: 3
D73: 14 | E73: 14.0 Profesyen perundangan di Malaysia. 14.1 Perkhidmatan Kehakiman 14.2 Perkhidmatan Undang-undang 14.3 Perkhidmatan Guaman | K73: CLO3 | M73: 2 | N73: 2 | U73: 3
D74: 15
D75: 16
D76: 17
D77: 18
D78: 19
D79: 20
D80: SUB-TOTAL SLT: | X80: =SUM(M60:P79)+SUM(Q60:T79)+SUM(U60:W79) -> 90
D81: Continous Assessement | K81: % | M81: Face-to-Face (F2F) | U81: NF2F Independent Learning for Assessment (Asynchronous)
M82: Physical | Q82: Online/ Technology-mediated (Synchronous)
D83: 1 | E83: Ujian 1 | K83: 10 | M83: 1.5 | U83: 3
D84: 2 | E84: Ujian 2 | K84: 10 | M84: 1.5 | U84: 3
D85: 3 | E85: Kuiz | K85: 10 | M85: 1 | U85: 1
D86: 4 | E86: Tugasan & Pembentangan | K86: 10 | M86: 2 | U86: 6
D87: 5
D88: SUB-TOTAL SLT: | X88: =SUM(M83:W87) -> 19
D89: Final Assessement | K89: % | M89: Face-to-Face (F2F) | U89: NF2F Independent Learning for Assessment (Asynchronous)
M90: Physical | Q90: Online/ Technology-mediated (Synchronous)
D91: 1 | E91: Peperiksaan Akhir | K91: 50 | M91: 2.5 | U91: 8.5
D92: 2
D93: 3
D94: 4
D95: 5
D96: SUB-TOTAL SLT: | X96: =SUM(M91:W95) -> 11
D98: SLT for Assessment: | X98: =X88+X96 -> 30
D99: GRAND TOTAL SLT: | X99: =X98+X80 -> 120
D100: A | E100: % SLT for F2F Physical Component: [Total F2F Physical /(Total F2F Physical + Total F2F Online + Total Independent Learning) x 100)] | X100: =IFERROR(((SUM(M60:P79)+SUM(M83:P87)+SUM(M91:P95))/X99)* 100,"") -> 48.75
D102: B | E102: % SLT for Online & Independent Learning Component: [(Total F2F Online + Total Independent Learning) /( Total F2F Physical + Total F2F Online + Total Independent Learning) x 100] | X102: =IFERROR((SUM(Q60:W79)+SUM(Q83:W87) + SUM(Q91:W95))/X99 * 100,"") -> 51.25
D103: C | E103: % SLT for All Practical Component: [% F2F Physical Practical + % F2F Online Practical] | X103: =IFERROR(X104+X105,"") -> 0
D104: C1 | E104: % SLT for F2F Physical Practical Component [Total F2F Physical Practical /( Total F2F Physical + Total F2F Online + Total Independent Learning) x 100)] | X104: =IFERROR(SUM(O60:O79)/X99*100,"") -> 0
D105: C2 | E105: % SLT for F2F Online Practical Component [Total F2F Online Practical / (Total F2F Physical + Total F2F Online + Total Independent Learning) x 100] | X105: =IFERROR(SUM(S60:S79)/X99 *100,"") -> 0
Z106: =IFERROR(X102+X104,"") -> 51.25
D107: Please tick (√) if this course is Industrial Training/ Clinical Placement/ Practicum using 50% of Effective Learning Time (ELT)
D108: Note:
D109: * Indicate the CLO based on the CLO's numbering in Item 8
D110: ** For ODL programme: Courses with mandatory practical requiremnets imposed by the programme standards or any related standards can be exempted from complying to the minimum 80% ODL delivery rule in the SLT.
B112: 11 | C112: Identify special requirement or resources to deliver the course (e.g., software, nursery, computer lab, simulation room etc)
B114: 12 | C114: References (include required and further readings, and should be the most current) | K114: Rujukan Utama: 1. Prof. Madya Noor Aziah Binti Mohd Awal, 2010, Pengenalan Kepada Sistem Perundangan Di Malaysia, Selangor : International Law Book Services. 2. Noor Aziah Mohd Awal, 2007. Pengenalan Kepada Sistem Perundangan di Malaysia. International Law Book Services
B116: 13 | C116: Other additional information (if applicable)
C119: Note: Number of PLO indicated is purely for illustration purposes only and the number is subjected to the curriculum design.

Sheet MGT2222
B2: Back To FORM @ TEMPLATE
AI3: √
B5: 1 | C5: Course Name: | F5: KEUSAHAWANAN ISLAM | AI5: Semester
C6: Course Code: | F6: MGT2222 | AI6: 1
C7: Course Classification: | F7: Major (core) | AI7: 2
B8: 2 | C8: Synopsis: | F8: Kursus ini membincangkan tentang keperluan-keperluan asas yang perlu ada untuk terlibat dalam bidang keusahawanan Islam. Kursus ini memberikan penekanan kepada cara menubuhkan perniagaan dengan mengenal pasti peluang perniagaan dan strategi yang perlu diambil untuk melaksanakan perniagaan selaras dengan kehendak Islam. pelajar juga akan didedahkan dengan ciri-ciri yang perlu ada pada seorang usahawan. Pelajar akan melalui latihan untuk menyediakan dokumen perniagaan lengkap serta membuat persembahan secara berkumpulan perancangan perniagaan tersebut. | AI8: 3
B9: =B8+1 -> 3 | C9: Name(s) of Academic Staff: | F9: 1 | G9: Wan Nur Liyana Wan Mohd Fauzi
F10: 2 | AI10: Year Offered
F11: 3 | AI11: 1
B12: =B9+1 -> 4 | C12: Semester and Year offered: | F12: Year Offered | I12: 1 | J12: Semester | L12: 2 | M12: Remarks: | AI12: 2
B13: =B12+1 -> 5 | C13: Credit Value: | F13: =IF(X107 ="√",INT(X99/80),INT(X99/40)) -> 2 | AI13: 3
B14: 6 | C14: Pre-requisite/ co-requisite (if any): | AI14: 4
AI15: 5
B16: 7 | C16: Course Learning Outcomes (CLO) | F16: CLO1 | H16: Menerangkan definisi keusahawanan Islam, ciri-ciri usahawan dan kaedah untuk mewujudkan perniagaan mengikut Islam. (C2, PLO1) | AI16: 6
F17: CLO2 | H17: Mengenalpasti cabaran-cabaran yang perlu dihadapi oleh usahawan muslim dalam perniagaan. ( A2, CTPS, PLO2) | AI17: 7
F18: CLO3 | H18: Menghasilkan rancangan perniagaan menggunakan standard rancangan perniagaan. (P3, PLO10) | AI18: 8
AI20: Compulsory
AI21: Major (core)
AI22: Minor
AI23: Elective (core)
AI24: Elective (open/free)
B25: 8 | C25: Mapping of the Course Learning Outcomes to the Programme Learning Outcomes, Teaching Methods and Assessment Methods
D27: Course Learning Outcomes | F27: Programme Learning Outcomes (PLO) | R27: Teaching Methods | W27: Assessment Methods
F28: PLO 1 | G28: PLO 2 | H28: PLO 3 | I28: PLO 4 | J28: PLO 5 | K28: PLO 6 | L28: PLO 7 | M28: PLO 8 | N28: PLO 9 | O28: PLO 10 | P28: PLO 11
D29: =IF(ISBLANK(F16),"",F16) -> CLO1 | F29: √ | R29: Kuliah | Tutorial | W29: Kuiz| ujian |peperiksaan akhir
D30: =IF(ISBLANK(F17),"",F17) -> CLO2 | G30: √ | R30: Kuliah | Tutorial | W30: Ujian | perbincangan | pembentangan
D31: CLO3 | O31: √ | R31: Kuliah | Tutorial | W31: Tugasan | perbincangan
AI36: Cognitive skills
D37: Mapping with MQF Cluster of Learning Outcomes | F37: C1 | G37: C2 | H37: C3A | I37: C3B | J37: C3C | K37: C3D | L37: C3E | M37: C3F | N37: C4A | O37: C4B | P37: C5 | AI37: Interpersonal skills
AI38: Communication Skills
AI39: Digital Skills
AI40: Numeracy Skills
D41: Indicate the primary causal link between the CLO and PLO by ticking '√' in the appropriate box. | AI41: Leadership, Autonomy and Responsibility
D42: C1 = Knowledge & Understanding, C2 = Cognitive Skills, C3A = Practical Skills, C3B = Interpersonal Skills, C3C = Communication Skills, C3D = Digital Skills, | AI42: Personal Skills
D43: C3E = Numeracy Skills, C3F = Leadership, Autonomy & Responsibility, C4A = Personal Skills, C4B = Entrepreneurial Skills, C5 = Ethics & Professionalism | AI43: Entrepreneurial Skills
AI44: Ethics and Professionalism
B45: 9 | C45: Transferable Skills (if applicable)
C46: (Skills learned in the course of study which can be useful and utilized in other settings) | I46: 1 | J46: Cognitive skills | AI46: C1
I47: 2 | J47: Entrepreneurial Skills | AI47: C2
I48: 3 | AI48: C3A
I49: Open-ended response (if any) | AI49: C3B
I50: 4 | AI50: C3C
AI51: C3D
AB52: ` | AI52: C3E
B53: 10 | C53: Distribution of Student Learning Time (SLT) | AI53: C3F
C54: Note: This SLT calculation is designed for home grown programme only. | AI54: C4A
AI55: C4B
D56: Course Content Outline and Subtopics | K56: CLO* | M56: Learning and Teaching Activities** | X56: Total SLT | AI56: C5
M57: Face-to-Face (F2F) | U57: NF2F Independent Learning (Asynchronous)
M58: Physical | Q58: Online/ Technology-mediated (Synchronous)
M59: L | N59: T | O59: P | P59: O | Q59: L | R59: T | S59: P | T59: O
D60: 1 | E60: BAHAGIAN 1: SEJARAH DAN POLITIK 1.0 Pengenalan kepada usahawan dan keusahawan Islam 1.1. Definisi usahawan dan keusahawan Islam 1.2. Konsep keusahawanan menurut Islam 1.3. Ciri-ciri asas usahawan muslim | M60: 1 | N60: 1 | U60: 2
D61: 2 | E61: 2.0 Keusahawan:Persepsi, realiti dan kepentingan 2.1 Persepsi terhadap usahawan 2.2 Risiko keusahawan 2.3 Kelebihan menjadi usahawan muslim | M61: 1 | N61: 1 | U61: 2
D62: 3 | E62: 3.0 Pembudayaan keusahawanan Islam 3.1. Aspek pembudayaan keusahawanan 3.2. Nilai murni keusahawanan 3.3. Kepentingan pembudayaan keusahawanan Islam | M62: 2 | N62: 1 | U62: 3
D63: 4 | E63: 4.0 Persiapan sebagai usahawan Muslim 4.1. Strategi memulakan perniagaan 4.2. Persiapan pembangunan kemahiran 4.3. Strategi pembangunan kreativiti 4.4. Proses kreativiti 4.5. Halangan kepada pembangunan kreativiti | M63: 2 | N63: 1 | U63: 3
D64: 5 | E64: 5.0 Keusahawanan melalui E-dagang 5.1. Apa itu E-dagang 5.2. Klasifikasi E-dagang 5.3. Kepentingan E-dagang dalam dunia perniagaan 5.4. Faedah-faedah perniagaan melalui E-dagang 5.5. Saiz E-dagang 5.6. Cabaran-cabaran yang dihadapi oleh usahawan dalam mengaplikasikan E-dagang | M64: 2 | N64: 2 | U64: 3
D65: 6 | E65: 6.0 Usahawan dan Rancangan Perniagaan 6.1. Apakah rancangan perniagaan 6.2. Kepentingan rancangan perniagaankepada usahawan 6.3. Maklumat utama dalam menyediakan rancangan perniagaan | M65: 2 | N65: 2 | U65: 3
D66: 7 | E66: 7.0 Usahawan dan undang-undang pertubuhan 7.1. Jenis perniagaan di Malaysia 7.2. Perbezaan antara Perniagaan Tunggal, Perkongsian dan syarikat | M66: 2 | N66: 2 | U66: 3
D67: 8 | E67: 8.0 Usahawan dan Pengurusan Kewangan Islam 8.1 Kepentingan pengurusan kewangan Islam 8.2 Pembentukan kredit perniagaan 8.3 Pengurusan kewangan syarikat 8.4 Perancangan dan ramalan masa depan syarikat | M67: 2 | N67: 2 | U67: 3
D68: 9 | E68: 9.0 Usahawan dan strategi menyaingi pesaing 9.1 Kepentingan strategi persaingan 9.2 Strategi persaingan 9.3 Strategi menyaingi pesaing 9.4 Strategi pemasaran dalam menyaingi pesaing 9.5 Kepentingan strategi pemasaran | M68: 2 | N68: 2 | U68: 3
D69: 10
D70: =D69+1 -> 11
D71: =D70+1 -> 12
D72: 13
D73: 14
D74: 15
D75: 16
D76: 17
D77: 18
D78: 19
D79: 20
D80: SUB-TOTAL SLT: | X80: =SUM(M60:P79)+SUM(Q60:T79)+SUM(U60:W79) -> 55
D81: Continous Assessement | K81: % | M81: Face-to-Face (F2F) | U81: NF2F Independent Learning for Assessment (Asynchronous)
M82: Physical | Q82: Online/ Technology-mediated (Synchronous)
D83: 1 | E83: Ujian 1 | K83: 10 | M83: 1 | U83: 3
D84: 2 | E84: Ujian 2 | K84: 10 | M84: 1 | U84: 3
D85: 3 | E85: Kuiz | K85: 10 | M85: 1 | U85: 1
D86: 4 | E86: Tugasan & Pembentangan | K86: 10 | M86: 2 | U86: 5
D87: 5
D88: SUB-TOTAL SLT: | X88: =SUM(M83:W87) -> 17
D89: Final Assessement | K89: % | M89: Face-to-Face (F2F) | U89: NF2F Independent Learning for Assessment (Asynchronous)
M90: Physical | Q90: Online/ Technology-mediated (Synchronous)
D91: 1 | E91: Peperiksaan Akhir | K91: 50 | M91: 2 | U91: 6
D92: 2
D93: 3
D94: 4
D95: 5
D96: SUB-TOTAL SLT: | X96: =SUM(M91:W95) -> 8
D98: SLT for Assessment: | X98: =X88+X96 -> 25
D99: GRAND TOTAL SLT: | X99: =X98+X80 -> 80
D100: A | E100: % SLT for F2F Physical Component: [Total F2F Physical /(Total F2F Physical + Total F2F Online + Total Independent Learning) x 100)] | X100: =IFERROR(((SUM(M60:P79)+SUM(M83:P87)+SUM(M91:P95))/X99)* 100,"") -> 46.25
D102: B | E102: % SLT for Online & Independent Learning Component: [(Total F2F Online + Total Independent Learning) /( Total F2F Physical + Total F2F Online + Total Independent Learning) x 100] | X102: =IFERROR((SUM(Q60:W79)+SUM(Q83:W87) + SUM(Q91:W95))/X99 * 100,"") -> 53.75
D103: C | E103: % SLT for All Practical Component: [% F2F Physical Practical + % F2F Online Practical] | X103: =IFERROR(X104+X105,"") -> 0
D104: C1 | E104: % SLT for F2F Physical Practical Component [Total F2F Physical Practical /( Total F2F Physical + Total F2F Online + Total Independent Learning) x 100)] | X104: =IFERROR(SUM(O60:O79)/X99*100,"") -> 0
D105: C2 | E105: % SLT for F2F Online Practical Component [Total F2F Online Practical / (Total F2F Physical + Total F2F Online + Total Independent Learning) x 100] | X105: =IFERROR(SUM(S60:S79)/X99 *100,"") -> 0
Z106: =IFERROR(X102+X104,"") -> 53.75
D107: Please tick (√) if this course is Industrial Training/ Clinical Placement/ Practicum using 50% of Effective Learning Time (ELT)
D108: Note:
D109: * Indicate the CLO based on the CLO's numbering in Item 8
D110: ** For ODL programme: Courses with mandatory practical requiremnets imposed by the programme standards or any related standards can be exempted from complying to the minimum 80% ODL delivery rule in the SLT.
B112: 11 | C112: Identify special requirement or resources to deliver the course (e.g., software, nursery, computer lab, simulation room etc)
B114: 12 | C114: References (include required and further readings, and should be the most current) | K114: 1. Sodri Ariffin et al. (2017). Introduction to Entrepreneurship. Oxford Fajar Sdn. Bhd. Andrew S. Tanebaum, (2010), 2. Shuhairimi Abdullah. 2012. ‘Keusahawanan Islam: perspektif dan alternatif’. Penerbit Universiti Malaysia Perlis. 3. Ab. Aziz Yusof. 2006.Prinsip Keusahawanan. Edisi Kedua, Prentice Hall, 4. Nor'Azzah Kamri, Mohd Abd Wahab Fatoni Mohd Balwi, Ahmad Sufyan Che Abdullah 2009. ‘Keusahawanan Islam: konsep dan isu-isu pelaksanaannya’. Jabatan Syariah dan Pengurusan, Akademi Pengajian Islam Universiti Malaya. 5. Rasem N. Kayed, M. Kabir Hassan. 2011. Islamic Entrepreneurship. Volume 19 of Durham Modern Middle East and Islamic World Series 6. Zimmerer, T.H. & Scarborough, N.M. 2010.Essential of Entrepreneurship and Small Business Management, 6th Edition, Prentice Hall, New Jersey
B116: 13 | C116: Other additional information (if applicable)
C119: Note: Number of PLO indicated is purely for illustration purposes only and the number is subjected to the curriculum design.

Sheet MPU2412
B2: Back To FORM @ TEMPLATE
AI3: √
B5: 1 | C5: Course Name: | F5: Keterlibatan Komuniti | AI5: Semester
C6: Course Code: | F6: MPU2412 | AI6: 1
C7: Course Classification: | F7: Compulsory | AI7: 2
B8: 2 | C8: Synopsis: | F8: Kursus ini membincangkan konsep projek keterlibatan komuniti, penyediaan kertas cadangan dan ciri-ciri projek yang berkesan. Tujuan kursus ini ialah memberikan kefahaman dan penghayatan dalam melaksanakan projek keterlibatan komuniti. Pengajaran dan pembelajaran akan dijalankan dalam bentuk kuliah interaktif, diskusi kumpulan dan semangat sukarelaan. Pada akhir kursus ini, pelajar diharapkan dapat mengamalkan nilai dan etika, kepimpinan dan kerja berpasukan serta tanggungjawab sosial | AI8: 3
B9: =B8+1 -> 3 | C9: Name(s) of Academic Staff: | F9: 1 | G9: NOOR ENAIDA BT TUTAN KHAMIN
F10: 2 | AI10: Year Offered
F11: 3 | AI11: 1
B12: =B9+1 -> 4 | C12: Semester and Year offered: | F12: Year Offered | I12: 2 | J12: Semester | L12: 2 | M12: Remarks: | AI12: 2
B13: =B12+1 -> 5 | C13: Credit Value: | F13: =IF(X107 ="√",INT(X99/80),INT(X99/40)) -> 2 | AI13: 3
B14: 6 | C14: Pre-requisite/ co-requisite (if any): | AI14: 4
AI15: 5
B16: 7 | C16: Course Learning Outcomes (CLO) | F16: CLO1 | H16: Menghasilkan kertas cadangan projek keterlibatan komuniti yang berimpak sosial. (A3, EM3, PLO11) | AI16: 6
F17: CLO2 | H17: Mempamerkan kemahiran kepimpinan dan kerja berpasukan. (A3, LS3, PLO8) | AI17: 7
F18: CLO3 | H18: Mempamerkan tanggungjawab sosial dalam pelaksanaan projek. (A3, LL3, PLO9) | AI18: 8
AI20: Compulsory
AI21: Major (core)
AI22: Minor
AI23: Elective (core)
AI24: Elective (open/free)
B25: 8 | C25: Mapping of the Course Learning Outcomes to the Programme Learning Outcomes, Teaching Methods and Assessment Methods
D27: Course Learning Outcomes | F27: Programme Learning Outcomes (PLO) | R27: Teaching Methods | W27: Assessment Methods
F28: PLO 1 | G28: PLO 2 | H28: PLO 3 | I28: PLO 4 | J28: PLO 5 | K28: PLO 6 | L28: PLO 7 | M28: PLO 8 | N28: PLO 9 | O28: PLO 10 | P28: PLO 11
D29: =IF(ISBLANK(F16),"",F16) -> CLO1 | P29: √ | R29: Kuliah Interaktif| E-pembelajaran |aktiviti berkumpulan | W29: Nota Perbincangan |Minit Mesyuarat | Laporan Video | Pemerhatian
D30: =IF(ISBLANK(F17),"",F17) -> CLO2 | M30: √ | R30: Kuliah Interaktif| E-pembelajaran |aktiviti berkumpulan | W30: Pentaksiran Rakan Sebaya | Maklum Balas Komuniti
D31: CLO3 | N31: √ | R31: Kerja lapangan | W31: Pembentangan | Laporan Projek
AI36: Cognitive skills
D37: Mapping with MQF Cluster of Learning Outcomes | F37: C1 | G37: C2 | H37: C3A | I37: C3B | J37: C3C | K37: C3D | L37: C3E | M37: C3F | N37: C4A | O37: C4B | P37: C5 | AI37: Interpersonal skills
AI38: Communication Skills
AI39: Digital Skills
AI40: Numeracy Skills
D41: Indicate the primary causal link between the CLO and PLO by ticking '√' in the appropriate box. | AI41: Leadership, Autonomy and Responsibility
D42: C1 = Knowledge & Understanding, C2 = Cognitive Skills, C3A = Practical Skills, C3B = Interpersonal Skills, C3C = Communication Skills, C3D = Digital Skills, | AI42: Personal Skills
D43: C3E = Numeracy Skills, C3F = Leadership, Autonomy & Responsibility, C4A = Personal Skills, C4B = Entrepreneurial Skills, C5 = Ethics & Professionalism | AI43: Entrepreneurial Skills
AI44: Ethics and Professionalism
B45: 9 | C45: Transferable Skills (if applicable)
C46: (Skills learned in the course of study which can be useful and utilized in other settings) | I46: 1 | J46: Ethics and Professionalism | AI46: C1
I47: 2 | J47: Leadership, Autonomy and Responsibility | AI47: C2
I48: 3 | J48: Personal Skills | AI48: C3A
I49: Open-ended response (if any) | AI49: C3B
I50: 4 | AI50: C3C
AI51: C3D
AB52: ` | AI52: C3E
B53: 10 | C53: Distribution of Student Learning Time (SLT) | AI53: C3F
C54: Note: This SLT calculation is designed for home grown programme only. | AI54: C4A
AI55: C4B
D56: Course Content Outline and Subtopics | K56: CLO* | M56: Learning and Teaching Activities** | X56: Total SLT | AI56: C5
M57: Face-to-Face (F2F) | U57: NF2F Independent Learning (Asynchronous)
M58: Physical | Q58: Online/ Technology-mediated (Synchronous)
M59: L | N59: T | O59: P | P59: O | Q59: L | R59: T | S59: P | T59: O
D60: 1 | E60: 1.0 Pengenalan Kursus Keterlibatan Komuniti 1.1 Menjelaskan konsep projek keterlibatan komuniti 1.2 Kesediaan kendiri sebagai sukarelawan 1.3 Konsep keterlibatan komuniti 1.4 Kepentingan keterlibatan komuniti 1.5 Fungsi individu dan kumpulan dalam keterlibatan komuniti 1.6 Kumpulan sasaran (Pelaksana dan Penerima manfaat | K60: CLO 1, CLO2 | M60: 2 | N60: 1 | U60: 4
D61: 2 | E61: 2.0 Menghasilkan kertas cadangan projek keterlibatan komuniti yang berimpak sosial 2.1 Kertas cadangan 2.2 Tinjauan awal dan penambaikan 2.3 Menghasilkan laporan dalam bentuk video | K61: CLO 1 | M61: 2 | N61: 1 | U61: 6
D62: 3 | E62: 3.0 Mempamerkan tanggungjawab sosial dalam pelaksanaan projek akhir 3.1 Pemerhatian langsung/rakaman dalam bentuk video 3.2 Penilaian rakan sebaya 3.3 Penilaian komuniti | K62: CLO 1, CLO2, CLO3 | M62: 6 | N62: 3 | U62: 6
D63: 4 | E63: 4.0 Membentangkan hasil akhir projek 4.1 Aktiviti yang dijalankan 4.2 Analisis SWOT (kekuatan, kelemahan, peluang dan cabaran) 4.3 Implikasi kewangan 4.4 Gambar atau video perjalanan aktiviti 4.5 Cadangan penambahbaikan 4.6 Rumusan | K63: CLO 1, CLO3 | M63: 4 | N63: 2 | U63: 6
D64: 5 | E64: 5.0 Menghantar laporan video | K64: CLO 1 | P64: 1
D65: 6
D66: 7
D67: 8
D68: 9
D69: 10
D70: =D69+1 -> 11
D71: =D70+1 -> 12
D72: 13
D73: 14
D74: 15
D75: 16
D76: 17
D77: 18
D78: 19
D79: 20
D80: SUB-TOTAL SLT: | X80: =SUM(M60:P79)+SUM(Q60:T79)+SUM(U60:W79) -> 44
D81: Continous Assessement | K81: % | M81: Face-to-Face (F2F) | U81: NF2F Independent Learning for Assessment (Asynchronous)
M82: Physical | Q82: Online/ Technology-mediated (Synchronous)
D83: 1 | E83: Nota Perbincangan/Minit Mesyuarat/Laporan Video/ Pemerhatian | K83: 60 | M83: 2 | U83: 15
D84: 2 | E84: Pentaksiran Rakan Sebaya | K84: 10 | M84: 1 | U84: 1
D85: 3 | E85: Maklum Balas Komuniti | K85: 20 | M85: 1 | U85: 6
D86: 4 | E86: Pembentangan/ Pameran Projek | K86: 10 | M86: 2 | U86: 8
D87: 5
D88: SUB-TOTAL SLT: | X88: =SUM(M83:W87) -> 36
D89: Final Assessement | K89: % | M89: Face-to-Face (F2F) | U89: NF2F Independent Learning for Assessment (Asynchronous)
M90: Physical | Q90: Online/ Technology-mediated (Synchronous)
D91: 1
D92: 2
D93: 3
D94: 4
D95: 5
D96: SUB-TOTAL SLT: | X96: =SUM(M91:W95) -> 0
D98: SLT for Assessment: | X98: =X88+X96 -> 36
D99: GRAND TOTAL SLT: | X99: =X98+X80 -> 80
D100: A | E100: % SLT for F2F Physical Component: [Total F2F Physical /(Total F2F Physical + Total F2F Online + Total Independent Learning) x 100)] | X100: =IFERROR(((SUM(M60:P79)+SUM(M83:P87)+SUM(M91:P95))/X99)* 100,"") -> 35
D102: B | E102: % SLT for Online & Independent Learning Component: [(Total F2F Online + Total Independent Learning) /( Total F2F Physical + Total F2F Online + Total Independent Learning) x 100] | X102: =IFERROR((SUM(Q60:W79)+SUM(Q83:W87) + SUM(Q91:W95))/X99 * 100,"") -> 65
D103: C | E103: % SLT for All Practical Component: [% F2F Physical Practical + % F2F Online Practical] | X103: =IFERROR(X104+X105,"") -> 0
D104: C1 | E104: % SLT for F2F Physical Practical Component [Total F2F Physical Practical /( Total F2F Physical + Total F2F Online + Total Independent Learning) x 100)] | X104: =IFERROR(SUM(O60:O79)/X99*100,"") -> 0
D105: C2 | E105: % SLT for F2F Online Practical Component [Total F2F Online Practical / (Total F2F Physical + Total F2F Online + Total Independent Learning) x 100] | X105: =IFERROR(SUM(S60:S79)/X99 *100,"") -> 0
Z106: =IFERROR(X102+X104,"") -> 65
D107: Please tick (√) if this course is Industrial Training/ Clinical Placement/ Practicum using 50% of Effective Learning Time (ELT)
D108: Note:
D109: * Indicate the CLO based on the CLO's numbering in Item 8
D110: ** For ODL programme: Courses with mandatory practical requiremnets imposed by the programme standards or any related standards can be exempted from complying to the minimum 80% ODL delivery rule in the SLT.
B112: 11 | C112: Identify special requirement or resources to deliver the course (e.g., software, nursery, computer lab, simulation room etc)
B114: 12 | C114: References (include required and further readings, and should be the most current) | K114: 1. Ali, H. (2002). Volunteerism and the Development of Malaysian Sosial Care System. International Councii on Social Welfare, 101-109 2. BITARA KPT, (Keluaran Khas, September 2012). Yayasan Sukarelawan Siswa (YSS): Medan Mahasiswa Tabur Bakti, 11. 3. Idris Jusoh. (2015, Januari 23). Terima kasih untuk Sukarelawan. Berita Harian.
B116: 13 | C116: Other additional information (if applicable)
C119: Note: Number of PLO indicated is purely for illustration purposes only and the number is subjected to the curriculum design.

Sheet PST 2051
B2: Back To FORM @ TEMPLATE
AI3: √
B5: 1 | C5: Course Name: | F5: Program Pembangunan Syakhsiah Terpuji 5 (Pesat 5) | AI5: Semester
C6: Course Code: | F6: PST 2051 | AI6: 1
C7: Course Classification: | F7: Compulsory | AI7: 2
B8: 2 | C8: Synopsis: | F8: Kursus ini memberi penekanan kepada menghafal beberapa ayat pilihan. Selain itu, tajuk –tajuk berkisar mengenai sifat-sifat jurudakwah dan kaedah dakwah dibincang agar dapat melahirkan pelajar yang mampu memberi menyambung kerja Rasulullah saw. | AI8: 3
B9: =B8+1 -> 3 | C9: Name(s) of Academic Staff: | F9: 1 | G9: Ustaz Mahamad Bin Senik
F10: 2 | G10: Ustaz Mohd Khairol Bin Mokhtar | AI10: Year Offered
F11: 3 | G11: Ustazah Radin Seri Nabahah Binti Ahmad Zabidi | AI11: 1
B12: =B9+1 -> 4 | C12: Semester and Year offered: | F12: Year Offered | I12: 2 | J12: Semester | L12: 2 | M12: Remarks: | AI12: 2
B13: =B12+1 -> 5 | C13: Credit Value: | F13: =IF(X107 ="√",INT(X99/80),INT(X99/40)) -> 1 | AI13: 3
B14: 6 | C14: Pre-requisite/ co-requisite (if any): | AI14: 4
AI15: 5
B16: 7 | C16: Course Learning Outcomes (CLO) | F16: CLO1 | H16: Mengaplikasikan ilmu Al-Quran, kepentingan dan proses tazkiyah al-nafs. (C3, PLO1) | AI16: 6
F17: CLO2 | H17: Menerangkan kepentingan dan proses penyucian jiwa( tazkiyah al-nafs) dan mampu mengamalkannya. (A3, CS3, PLO5) | AI17: 7
F18: CLO3 | H18: Menghafal surah pilihan dengan tajwid yang betul. (A3, LL3, PLO9) | AI18: 8
AI20: Compulsory
AI21: Major (core)
AI22: Minor
AI23: Elective (core)
AI24: Elective (open/free)
B25: 8 | C25: Mapping of the Course Learning Outcomes to the Programme Learning Outcomes, Teaching Methods and Assessment Methods
D27: Course Learning Outcomes | F27: Programme Learning Outcomes (PLO) | R27: Teaching Methods | W27: Assessment Methods
F28: PLO 1 | G28: PLO 2 | H28: PLO 3 | I28: PLO 4 | J28: PLO 5 | K28: PLO 6 | L28: PLO 7 | M28: PLO 8 | N28: PLO 9 | O28: PLO 10 | P28: PLO 11
D29: =IF(ISBLANK(F16),"",F16) -> CLO1 | F29: √ | R29: Kuliah | W29: Kuiz | Ujian |Tugasan
D30: =IF(ISBLANK(F17),"",F17) -> CLO2 | J30: √ | R30: Kuliah | W30: Kuiz | Ujian |Tugasan
D31: CLO3 | N31: √ | R31: Bacaan | Hafazan | W31: Ujian Lisan
AI36: Cognitive skills
D37: Mapping with MQF Cluster of Learning Outcomes | F37: C1 | G37: C2 | H37: C3A | I37: C3B | J37: C3C | K37: C3D | L37: C3E | M37: C3F | N37: C4A | O37: C4B | P37: C5 | AI37: Interpersonal skills
AI38: Communication Skills
AI39: Digital Skills
AI40: Numeracy Skills
D41: Indicate the primary causal link between the CLO and PLO by ticking '√' in the appropriate box. | AI41: Leadership, Autonomy and Responsibility
D42: C1 = Knowledge & Understanding, C2 = Cognitive Skills, C3A = Practical Skills, C3B = Interpersonal Skills, C3C = Communication Skills, C3D = Digital Skills, | AI42: Personal Skills
D43: C3E = Numeracy Skills, C3F = Leadership, Autonomy & Responsibility, C4A = Personal Skills, C4B = Entrepreneurial Skills, C5 = Ethics & Professionalism | AI43: Entrepreneurial Skills
AI44: Ethics and Professionalism
B45: 9 | C45: Transferable Skills (if applicable)
C46: (Skills learned in the course of study which can be useful and utilized in other settings) | I46: 1 | J46: Cognitive skills | AI46: C1
I47: 2 | J47: Communication Skills | AI47: C2
I48: 3 | J48: Personal Skills | AI48: C3A
I49: Open-ended response (if any) | AI49: C3B
I50: 4 | AI50: C3C
AI51: C3D
AB52: ` | AI52: C3E
B53: 10 | C53: Distribution of Student Learning Time (SLT) | AI53: C3F
C54: Note: This SLT calculation is designed for home grown programme only. | AI54: C4A
AI55: C4B
D56: Course Content Outline and Subtopics | K56: CLO* | M56: Learning and Teaching Activities** | X56: Total SLT | AI56: C5
M57: Face-to-Face (F2F) | U57: NF2F Independent Learning (Asynchronous)
M58: Physical | Q58: Online/ Technology-mediated (Synchronous)
M59: L | N59: T | O59: P | P59: O | Q59: L | R59: T | S59: P | T59: O
D60: 1 | E60: 1.0 AL-QURAN –HAFAZAN AYAT-AYAT PILIHAN 1.1 Surah Al-Mukminun, 23 : 115-116 1.2 Surah Adz-Dzaariyat, 51 : 56-58 1.3 Surah Ar-Ra’d, 13 : 28 1.4 Surah At-Taubah, 9 : 24 1.5 Surah Ibrahim, 14 : Ayat 7 1.6 Surah Al-Muzammil, 73 : Ayat 6 1.7 Surah Al-Ankabut, 29 : Ayat 45 1.8 Surah Al-Hujurat, 49 : Ayat 12 | K60: CLO1, CLO3 | M60: 2 | O60: 2 | U60: 6
D61: 2 | E61: 2.0 KEPENTINGAN DAN PROSES TAZKIYAH TUNAFS 2.1 Kepentingan Tazkiyah Tunafs 2.2 Jenis-Jenis Hati 2.3 Racun-Racun Hati 2.4 Cara Menghidupkan Hati | K61: CLO1, CLO2 | M61: 2 | O61: 2 | U61: 6
D62: 3 | E62: 3.0 PROSES TARBIYAH DZATIYAH 3.1 Definisi Dan Kepentingan Tarbiyah Dzatiyah 3.2 Saranan/Cara-Cara Tarbiyah Dzatiyah | K62: CLO1, CLO2 | M62: 2 | U62: 4
D63: 4
D64: 5
D65: 6
D66: 7
D67: 8
D68: 9
D69: 10
D70: =D69+1 -> 11
D71: =D70+1 -> 12
D72: 13
D73: 14
D74: 15
D75: 16
D76: 17
D77: 18
D78: 19
D79: 20
D80: SUB-TOTAL SLT: | X80: =SUM(M60:P79)+SUM(Q60:T79)+SUM(U60:W79) -> 26
D81: Continous Assessement | K81: % | M81: Face-to-Face (F2F) | U81: NF2F Independent Learning for Assessment (Asynchronous)
M82: Physical | Q82: Online/ Technology-mediated (Synchronous)
D83: 1 | E83: Ujian & Kuiz | K83: 30 | M83: 1 | U83: 2
D84: 2 | E84: Ujian Lisan | K84: 20 | M84: 1 | U84: 2
D85: 3 | E85: Pemerhatian Syakhsiah | K85: 10 | M85: 0
D86: 4 | E86: Tugasan | K86: 40 | M86: 2 | U86: 7
D87: 5
D88: SUB-TOTAL SLT: | X88: =SUM(M83:W87) -> 15
D89: Final Assessement | K89: % | M89: Face-to-Face (F2F) | U89: NF2F Independent Learning for Assessment (Asynchronous)
M90: Physical | Q90: Online/ Technology-mediated (Synchronous)
D91: 1
D92: 2
D93: 3
D94: 4
D95: 5
D96: SUB-TOTAL SLT: | X96: =SUM(M91:W95) -> 0
D98: SLT for Assessment: | X98: =X88+X96 -> 15
D99: GRAND TOTAL SLT: | X99: =X98+X80 -> 41
D100: A | E100: % SLT for F2F Physical Component: [Total F2F Physical /(Total F2F Physical + Total F2F Online + Total Independent Learning) x 100)] | X100: =IFERROR(((SUM(M60:P79)+SUM(M83:P87)+SUM(M91:P95))/X99)* 100,"") -> 34.14634146
D102: B | E102: % SLT for Online & Independent Learning Component: [(Total F2F Online + Total Independent Learning) /( Total F2F Physical + Total F2F Online + Total Independent Learning) x 100] | X102: =IFERROR((SUM(Q60:W79)+SUM(Q83:W87) + SUM(Q91:W95))/X99 * 100,"") -> 65.85365854
D103: C | E103: % SLT for All Practical Component: [% F2F Physical Practical + % F2F Online Practical] | X103: =IFERROR(X104+X105,"") -> 9.756097561
D104: C1 | E104: % SLT for F2F Physical Practical Component [Total F2F Physical Practical /( Total F2F Physical + Total F2F Online + Total Independent Learning) x 100)] | X104: =IFERROR(SUM(O60:O79)/X99*100,"") -> 9.756097561
D105: C2 | E105: % SLT for F2F Online Practical Component [Total F2F Online Practical / (Total F2F Physical + Total F2F Online + Total Independent Learning) x 100] | X105: =IFERROR(SUM(S60:S79)/X99 *100,"") -> 0
Z106: =IFERROR(X102+X104,"") -> 75.6097561
D107: Please tick (√) if this course is Industrial Training/ Clinical Placement/ Practicum using 50% of Effective Learning Time (ELT)
D108: Note:
D109: * Indicate the CLO based on the CLO's numbering in Item 8
D110: ** For ODL programme: Courses with mandatory practical requiremnets imposed by the programme standards or any related standards can be exempted from complying to the minimum 80% ODL delivery rule in the SLT.
B112: 11 | C112: Identify special requirement or resources to deliver the course (e.g., software, nursery, computer lab, simulation room etc)
B114: 12 | C114: References (include required and further readings, and should be the most current) | K114: 1. Abdullah bin Abdul Aziz Al-Aidan, Alih Bahasa Fadhli Bahri (2008), Tarbiyah Dzatiyah, Jakarta, Penerbit An-Nadwah. 2. Cahyadi Takariawan, Ghazali Mukri (2002), Kitab Tazkiyah, Solo, Era Intermedia. 3. Jamal al-Din M Zarabozo (2002), Purification of the soul, USA, Al Basheer Publications & Translations.
B116: 13 | C116: Other additional information (if applicable)
C119: Note: Number of PLO indicated is purely for illustration purposes only and the number is subjected to the curriculum design.

Sheet AQS2173
B2: Back To FORM @ TEMPLATE
AI3: √
B5: 1 | C5: Course Name: | F5: MANAHIJ AL-MUFASSIRIN | AI5: Semester
C6: Course Code: | F6: AQS2173 | AI6: 1
C7: Course Classification: | F7: Major (core) | AI7: 2
B8: 2 | C8: Synopsis: | F8: Pelajaran ini mengandungi pengetahuan tentang pengertian tafsir dan ta’wil serta perbezaan di antara kedua-duanya, sejarah perkembangan ilmu tafsir pada zaman Nabi Muhammad (s.a.w) dan sahabatnya, zaman tabi’in dan zaman tadwin di samping menganalisis metodologi pentafsiran beberapa karya tafsir yang terpilih. | AI8: 3
B9: =B8+1 -> 3 | C9: Name(s) of Academic Staff: | F9: 1 | G9: WAN MUHAMMAD SILMI BIN HAMZAH
F10: 2 | AI10: Year Offered
F11: 3 | AI11: 1
B12: =B9+1 -> 4 | C12: Semester and Year offered: | F12: Year Offered | I12: 2 | J12: Semester | L12: 2 | M12: Remarks: | AI12: 2
B13: =B12+1 -> 5 | C13: Credit Value: | F13: =IF(X107 ="√",INT(X99/80),INT(X99/40)) -> 3 | AI13: 3
B14: 6 | C14: Pre-requisite/ co-requisite (if any): | AI14: 4
AI15: 5
B16: 7 | C16: Course Learning Outcomes (CLO) | F16: CLO1 | H16: Mengenalpasti cara memilih dan menentukan keutamaan kitab-kitab tafsir dalam menjadikannya sebagai rujukan. (C2, PLO1) | AI16: 6
F17: CLO2 | H17: Membincangkan cara-cara mentafsir al-Quran dengan menepati syarat–syarat dan manhaj yang sahih serta menjelaskan konsep tafsir al-Quran dan perbezaannya dengan takwil. (A2, CTPS, PLO5) | AI17: 7
F18: CLO3 | H18: Menunjukkan cara membezakan ciri-ciri dan sumber-sumber pentafsiran al-Quran dari zaman sahabat r.a. hingga era tadwin (pembukuan). (P2, PLO3) | AI18: 8
AI20: Compulsory
AI21: Major (core)
AI22: Minor
AI23: Elective (core)
AI24: Elective (open/free)
B25: 8 | C25: Mapping of the Course Learning Outcomes to the Programme Learning Outcomes, Teaching Methods and Assessment Methods
D27: Course Learning Outcomes | F27: Programme Learning Outcomes (PLO) | R27: Teaching Methods | W27: Assessment Methods
F28: PLO 1 | G28: PLO 2 | H28: PLO 3 | I28: PLO 4 | J28: PLO 5 | K28: PLO 6 | L28: PLO 7 | M28: PLO 8 | N28: PLO 9 | O28: PLO 10 | P28: PLO 11
D29: =IF(ISBLANK(F16),"",F16) -> CLO1 | F29: √ | R29: Kuliah | Tutorial | W29: Kuiz| ujian |peperiksaan akhir
D30: =IF(ISBLANK(F17),"",F17) -> CLO2 | J30: √ | R30: Kuliah | Tutorial | W30: Ujian | perbincangan | pembentangan
D31: CLO3 | H31: √ | R31: Kuliah | Tutorial | W31: Tugasan | perbincangan
AI36: Cognitive skills
D37: Mapping with MQF Cluster of Learning Outcomes | F37: C1 | G37: C2 | H37: C3A | I37: C3B | J37: C3C | K37: C3D | L37: C3E | M37: C3F | N37: C4A | O37: C4B | P37: C5 | AI37: Interpersonal skills
AI38: Communication Skills
AI39: Digital Skills
AI40: Numeracy Skills
D41: Indicate the primary causal link between the CLO and PLO by ticking '√' in the appropriate box. | AI41: Leadership, Autonomy and Responsibility
D42: C1 = Knowledge & Understanding, C2 = Cognitive Skills, C3A = Practical Skills, C3B = Interpersonal Skills, C3C = Communication Skills, C3D = Digital Skills, | AI42: Personal Skills
D43: C3E = Numeracy Skills, C3F = Leadership, Autonomy & Responsibility, C4A = Personal Skills, C4B = Entrepreneurial Skills, C5 = Ethics & Professionalism | AI43: Entrepreneurial Skills
AI44: Ethics and Professionalism
B45: 9 | C45: Transferable Skills (if applicable)
C46: (Skills learned in the course of study which can be useful and utilized in other settings) | I46: 1 | J46: Cognitive skills | AI46: C1
I47: 2 | J47: Communication Skills | AI47: C2
I48: 3 | AI48: C3A
I49: Open-ended response (if any) | AI49: C3B
I50: 4 | J50: Practical Skills | AI50: C3C
AI51: C3D
AB52: ` | AI52: C3E
B53: 10 | C53: Distribution of Student Learning Time (SLT) | AI53: C3F
C54: Note: This SLT calculation is designed for home grown programme only. | AI54: C4A
AI55: C4B
D56: Course Content Outline and Subtopics | K56: CLO* | M56: Learning and Teaching Activities** | X56: Total SLT | AI56: C5
M57: Face-to-Face (F2F) | U57: NF2F Independent Learning (Asynchronous)
M58: Physical | Q58: Online/ Technology-mediated (Synchronous)
M59: L | N59: T | O59: P | P59: O | Q59: L | R59: T | S59: P | T59: O
D60: 1 | E60: 1.0 Pengertian Tafsir dan Ta’wil dan perbezaan di antara kedua-duanya. 1.1 Syarat-syarat pentafsiran | K60: CLO2 | M60: 6 | N60: 3 | U60: 6
D61: 2 | E61: 2.0 Perkembangan Tafsir pada zaman Rasulullah s.a.w dan sahabat r.a. 2.1 Sumber-sumber tafsir 2.2 Ahli-ahli Tafsir di kalangan sahabat | K61: CLO1 | M61: 8 | N61: 4 | U61: 10
D62: 3 | E62: 3.0 Perkembangan Tafsir pada zaman Tabi’in 3.1 Sumber –sumber tafsir 3.2 Ciri-ciri 3.3 Tokoh-tokoh pentafsir | K62: CLO3 | M62: 8 | N62: 4 | U62: 10
D63: 4 | E63: 4.0 Perkembangan Tafsir pada zaman tadwin 4.1 Aliran-aliran Tafsir (Tafsir bi al-Ma’thur dan tafsir bi al-Ra’y) 4.2 Tokoh-tokoh dan Karya-karya tafsir --bi al-Ma`thur --bi al-ra`y 4.3 Metodologi pentafsiran | K63: CLO3 | M63: 10 | N63: 7 | U63: 14
D64: 5
D65: 6
D66: 7
D67: 8
D68: 9
D69: 10
D70: =D69+1 -> 11
D71: =D70+1 -> 12
D72: 13
D73: 14
D74: 15
D75: 16
D76: 17
D77: 18
D78: 19
D79: 20
D80: SUB-TOTAL SLT: | X80: =SUM(M60:P79)+SUM(Q60:T79)+SUM(U60:W79) -> 90
D81: Continous Assessement | K81: % | M81: Face-to-Face (F2F) | U81: NF2F Independent Learning for Assessment (Asynchronous)
M82: Physical | Q82: Online/ Technology-mediated (Synchronous)
D83: 1 | E83: Ujian 1 | K83: 10 | M83: 1.5 | U83: 3
D84: 2 | E84: Ujian 2 | K84: 10 | M84: 1.5 | U84: 3
D85: 3 | E85: Pembentangan | K85: 10 | M85: 1 | U85: 1
D86: 4 | E86: Kerja Kerja | K86: 20 | M86: 2 | U86: 6
D87: 5
D88: SUB-TOTAL SLT: | X88: =SUM(M83:W87) -> 19
D89: Final Assessement | K89: % | M89: Face-to-Face (F2F) | U89: NF2F Independent Learning for Assessment (Asynchronous)
M90: Physical | Q90: Online/ Technology-mediated (Synchronous)
D91: 1 | E91: Peperiksaan Akhir | K91: 50 | M91: 2.5 | U91: 8.5
D92: 2
D93: 3
D94: 4
D95: 5
D96: SUB-TOTAL SLT: | X96: =SUM(M91:W95) -> 11
D98: SLT for Assessment: | X98: =X88+X96 -> 30
D99: GRAND TOTAL SLT: | X99: =X98+X80 -> 120
D100: A | E100: % SLT for F2F Physical Component: [Total F2F Physical /(Total F2F Physical + Total F2F Online + Total Independent Learning) x 100)] | X100: =IFERROR(((SUM(M60:P79)+SUM(M83:P87)+SUM(M91:P95))/X99)* 100,"") -> 48.75
D102: B | E102: % SLT for Online & Independent Learning Component: [(Total F2F Online + Total Independent Learning) /( Total F2F Physical + Total F2F Online + Total Independent Learning) x 100] | X102: =IFERROR((SUM(Q60:W79)+SUM(Q83:W87) + SUM(Q91:W95))/X99 * 100,"") -> 51.25
D103: C | E103: % SLT for All Practical Component: [% F2F Physical Practical + % F2F Online Practical] | X103: =IFERROR(X104+X105,"") -> 0
D104: C1 | E104: % SLT for F2F Physical Practical Component [Total F2F Physical Practical /( Total F2F Physical + Total F2F Online + Total Independent Learning) x 100)] | X104: =IFERROR(SUM(O60:O79)/X99*100,"") -> 0
D105: C2 | E105: % SLT for F2F Online Practical Component [Total F2F Online Practical / (Total F2F Physical + Total F2F Online + Total Independent Learning) x 100] | X105: =IFERROR(SUM(S60:S79)/X99 *100,"") -> 0
Z106: =IFERROR(X102+X104,"") -> 51.25
D107: Please tick (√) if this course is Industrial Training/ Clinical Placement/ Practicum using 50% of Effective Learning Time (ELT)
D108: Note:
D109: * Indicate the CLO based on the CLO's numbering in Item 8
D110: ** For ODL programme: Courses with mandatory practical requiremnets imposed by the programme standards or any related standards can be exempted from complying to the minimum 80% ODL delivery rule in the SLT.
B112: 11 | C112: Identify special requirement or resources to deliver the course (e.g., software, nursery, computer lab, simulation room etc)
B114: 12 | C114: References (include required and further readings, and should be the most current) | K114: Rujukan Utama: Al-Dhahabi. Muhammad Husayn. (Dr.) (2000). Al-Tafsir wa al-Mufassirun, Kaherah : Maktabah al-Wahbah. Rujukan Tambahan: Al-Dawudi, Syamsuddin Muhammad bin Ali bin Ahmad (t.t). Tabaqat al-Mufassirin. Beirut : Dar al-Kutub al-Ilmiyyah Ibn Taimiyah. (t.t.). Muqaddimah fi Usul al-Tafsir. Kaherah : Maktabah al-Turath al-Islami Al-‘Ak, Khalid Abd. al-Rahman. (1994). Usul al-Tafsir wa Qawa’iduh. Beirut: Dar al-Nafa’is Abu al-Fida’, Ismail bin Kathir. (2000). Tafsir al-Quran al-‘Azim. Beirut: al-Maktabah al-‘Asriyah Al-Suyuti, Jalal al-Din Abd al-Rahman bin Abi Bakr. (1990). Al-Durr al-Manthur fi al-Tafsir bi al-Ma’thur. Beirut: Dar al-Kutub al-Ilmiyyah Fakhr al-Din al-Razi. (t.t.). Mafatih al-Ghayb. Cet. 2. Tehran: Dar al-Kutub al-Ilmiyyah Maina’ Abd al-Halim Mahmud. (1978). Manahij al-Mufassirin. Beirut: Dar al-Kutub al-Lubnani
B116: 13 | C116: Other additional information (if applicable)
C119: Note: Number of PLO indicated is purely for illustration purposes only and the number is subjected to the curriculum design.

Sheet API 1123
B2: Back To FORM @ TEMPLATE
AI3: √
B5: 1 | C5: Course Name: | F5: AL-SIRAH AL-NABAWIYYAH | AI5: Semester
C6: Course Code: | F6: API 1123 | AI6: 1
C7: Course Classification: | F7: Major (core) | AI7: 2
B8: 2 | C8: Synopsis: | F8: Perbincangan mengenai keadaan masyarakat Arab sebelum kedatangan Islam dari sudut akidah, politik dan ekonomi. Perbincangan juga meliputi sejarah Rasulullah (s.a.w) dari pelbagai sudut seperti kemasyarakatan, politik, ekonomi dan sebagainya. | AI8: 3
B9: =B8+1 -> 3 | C9: Name(s) of Academic Staff: | F9: 1 | G9: WAN MUHAMMAD SILMI BIN HAMZAH
F10: 2 | AI10: Year Offered
F11: 3 | AI11: 1
B12: =B9+1 -> 4 | C12: Semester and Year offered: | F12: Year Offered | I12: 2 | J12: Semester | L12: 2 | M12: Remarks: | AI12: 2
B13: =B12+1 -> 5 | C13: Credit Value: | F13: =IF(X107 ="√",INT(X99/80),INT(X99/40)) -> 3 | AI13: 3
B14: 6 | C14: Pre-requisite/ co-requisite (if any): | AI14: 4
AI15: 5
B16: 7 | C16: Course Learning Outcomes (CLO) | F16: CLO1 | H16: Mengenal pasti susur galur perjalanan hidup dan dakwah Rasulullah s.a.w. (C2, PLO1) | AI16: 6
F17: CLO2 | H17: Menyatakan akhlak dan teladan Rasulullah s.a.w dari segi pentadbiran, politik, masyarakat, ekonomi dan peperangan.(CTPS, P1,PLO3) | AI17: 7
F18: CLO3 | H18: Mencontohi akhlak dan gaya hidup Rasulullah s.a.w dalam kehidupan seharian. (A2, PLO 9) | AI18: 8
AI20: Compulsory
AI21: Major (core)
AI22: Minor
AI23: Elective (core)
AI24: Elective (open/free)
B25: 8 | C25: Mapping of the Course Learning Outcomes to the Programme Learning Outcomes, Teaching Methods and Assessment Methods
D27: Course Learning Outcomes | F27: Programme Learning Outcomes (PLO) | R27: Teaching Methods | W27: Assessment Methods
F28: PLO 1 | G28: PLO 2 | H28: PLO 3 | I28: PLO 4 | J28: PLO 5 | K28: PLO 6 | L28: PLO 7 | M28: PLO 8 | N28: PLO 9 | O28: PLO 10 | P28: PLO 11
D29: =IF(ISBLANK(F16),"",F16) -> CLO1 | F29: √ | R29: Kuliah | Tutorial | W29: Kuiz| ujian |peperiksaan akhir
D30: =IF(ISBLANK(F17),"",F17) -> CLO2 | H30: √ | R30: Kuliah | Tutorial | W30: Ujian | perbincangan | pembentangan
D31: CLO3 | N31: √ | R31: Kuliah | Tutorial | W31: Tugasan | perbincangan
AI36: Cognitive skills
D37: Mapping with MQF Cluster of Learning Outcomes | F37: C1 | G37: C2 | H37: C3A | I37: C3B | J37: C3C | K37: C3D | L37: C3E | M37: C3F | N37: C4A | O37: C4B | P37: C5 | AI37: Interpersonal skills
AI38: Communication Skills
AI39: Digital Skills
AI40: Numeracy Skills
D41: Indicate the primary causal link between the CLO and PLO by ticking '√' in the appropriate box. | AI41: Leadership, Autonomy and Responsibility
D42: C1 = Knowledge & Understanding, C2 = Cognitive Skills, C3A = Practical Skills, C3B = Interpersonal Skills, C3C = Communication Skills, C3D = Digital Skills, | AI42: Personal Skills
D43: C3E = Numeracy Skills, C3F = Leadership, Autonomy & Responsibility, C4A = Personal Skills, C4B = Entrepreneurial Skills, C5 = Ethics & Professionalism | AI43: Entrepreneurial Skills
AI44: Ethics and Professionalism
B45: 9 | C45: Transferable Skills (if applicable)
C46: (Skills learned in the course of study which can be useful and utilized in other settings) | I46: 1 | J46: Cognitive skills | AI46: C1
I47: 2 | J47: Personal Skills | AI47: C2
I48: 3 | AI48: C3A
I49: Open-ended response (if any) | AI49: C3B
I50: 4 | J50: Practical Skills | AI50: C3C
AI51: C3D
AB52: ` | AI52: C3E
B53: 10 | C53: Distribution of Student Learning Time (SLT) | AI53: C3F
C54: Note: This SLT calculation is designed for home grown programme only. | AI54: C4A
AI55: C4B
D56: Course Content Outline and Subtopics | K56: CLO* | M56: Learning and Teaching Activities** | X56: Total SLT | AI56: C5
M57: Face-to-Face (F2F) | U57: NF2F Independent Learning (Asynchronous)
M58: Physical | Q58: Online/ Technology-mediated (Synchronous)
M59: L | N59: T | O59: P | P59: O | Q59: L | R59: T | S59: P | T59: O
D60: 1 | E60: 1.0 Pendahuluan 1.1 Keistimewaan Sirah Nabi s.a.w 1.2 Sumber rujukan Sirah Nabi s.a.w | K60: CLO1, CLO3 | M60: 4 | N60: 2 | U60: 5
D61: 2 | E61: 2.0 BAHAGIAN 1 : Kehidupan Baginda Nabi s.a.w sebelum diutuskan menjadi Rasul 2.1 Peristiwa-peristiwa sejarah 2.2 Pengajaran dan pedoman | K61: CLO1, CLO2, CLO3 | M61: 4 | N61: 2 | U61: 5
D62: 3 | E62: 3.0 BAHAGIAN 2 : Permulaan wahyu sehingga hijarah ke Habsyah 3.1 Peristiwa-peristiwa sejarah 3.2 Pengajaran dan pedoman | K62: CLO1, CLO2, CLO3 | M62: 4 | N62: 2 | U62: 5
D63: 4 | E63: 4.0 BAHAGIAN 3 : Selepas hijrah ke Habsyah hingga hijrah ke Habsyah 4.1 Peristiwa-peristiwa sejarah 4.2 Pengajaran dan pedoman | K63: CLO1, CLO2, CLO3 | M63: 4 | N63: 2 | U63: 5
D64: 5 | E64: 5.0 BAHAGIAN 4 : Hijrah sehingga Nabi s.a.w stabil di Madinah 5.1 Peristiwa peristiwa sejarah 5.2 Pengajaran dan pedoman | K64: CLO1, CLO2, CLO3 | M64: 4 | N64: 2 | U64: 6
D65: 6 | E65: 6.0 BAHAGIAN 5 : Peperangan Rasulullah s.a.w 6.1(A) Peristiwa-peristiwa sejarah 6.1.1 Ghazwah Badar Al-Kubra 6.1.2 Ghazwah Uhud 6.1.3 Ghazwah Bani Quraizoh 6.1.4 Ghazwah Al-Hudaibiyyah 6.1.5 Ghazwah Khaibar 6.1.6 Ghazwah Mu'tah 6.1.7 Ghazwah Al-Fath 6.1.8 Ghazwah Hunain 6.1.9 Ghazwah Tabuk 6.2 (B) Pengajaran dan pedoman | K65: CLO1, CLO2, CLO3 | M65: 6 | N65: 4 | U65: 7
D66: 7 | E66: 7.0 BAHAGIAN 6 : Peristiwa penting selepas pembukaan Mekkah sehingga kewafatan Rasulullah s.a.w 7.1 Meruntuhkan patung berhala 7.2 Hajjatul Wada' ( Haji selamat tinggal) 7.3 Pengutusan tentera Usamah 7.4 Kewafatan Baginda Rasulullah s.a.w 7.5 Pengajaran dan pedoman | K66: CLO1, CLO2, CLO3 | M66: 6 | N66: 4 | U66: 7
D67: 8
D68: 9
D69: 10
D70: =D69+1 -> 11
D71: =D70+1 -> 12
D72: 13
D73: 14
D74: 15
D75: 16
D76: 17
D77: 18
D78: 19
D79: 20
D80: SUB-TOTAL SLT: | X80: =SUM(M60:P79)+SUM(Q60:T79)+SUM(U60:W79) -> 90
D81: Continous Assessement | K81: % | M81: Face-to-Face (F2F) | U81: NF2F Independent Learning for Assessment (Asynchronous)
M82: Physical | Q82: Online/ Technology-mediated (Synchronous)
D83: 1 | E83: Ujian 1 | K83: 10 | M83: 1.5 | U83: 3
D84: 2 | E84: Ujian 2 | K84: 10 | M84: 1.5 | U84: 3
D85: 3 | E85: Tugasan & Pembentangan | K85: 20 | M85: 2 | U85: 6
D86: 4 | E86: Kuiz | K86: 10 | M86: 1 | U86: 1
D87: 5
D88: SUB-TOTAL SLT: | X88: =SUM(M83:W87) -> 19
D89: Final Assessement | K89: % | M89: Face-to-Face (F2F) | U89: NF2F Independent Learning for Assessment (Asynchronous)
M90: Physical | Q90: Online/ Technology-mediated (Synchronous)
D91: 1 | E91: Peperiksaan Akhir | K91: 50 | M91: 2.5 | U91: 8.5
D92: 2
D93: 3
D94: 4
D95: 5
D96: SUB-TOTAL SLT: | X96: =SUM(M91:W95) -> 11
D98: SLT for Assessment: | X98: =X88+X96 -> 30
D99: GRAND TOTAL SLT: | X99: =X98+X80 -> 120
D100: A | E100: % SLT for F2F Physical Component: [Total F2F Physical /(Total F2F Physical + Total F2F Online + Total Independent Learning) x 100)] | X100: =IFERROR(((SUM(M60:P79)+SUM(M83:P87)+SUM(M91:P95))/X99)* 100,"") -> 48.75
D102: B | E102: % SLT for Online & Independent Learning Component: [(Total F2F Online + Total Independent Learning) /( Total F2F Physical + Total F2F Online + Total Independent Learning) x 100] | X102: =IFERROR((SUM(Q60:W79)+SUM(Q83:W87) + SUM(Q91:W95))/X99 * 100,"") -> 51.25
D103: C | E103: % SLT for All Practical Component: [% F2F Physical Practical + % F2F Online Practical] | X103: =IFERROR(X104+X105,"") -> 0
D104: C1 | E104: % SLT for F2F Physical Practical Component [Total F2F Physical Practical /( Total F2F Physical + Total F2F Online + Total Independent Learning) x 100)] | X104: =IFERROR(SUM(O60:O79)/X99*100,"") -> 0
D105: C2 | E105: % SLT for F2F Online Practical Component [Total F2F Online Practical / (Total F2F Physical + Total F2F Online + Total Independent Learning) x 100] | X105: =IFERROR(SUM(S60:S79)/X99 *100,"") -> 0
Z106: =IFERROR(X102+X104,"") -> 51.25
D107: Please tick (√) if this course is Industrial Training/ Clinical Placement/ Practicum using 50% of Effective Learning Time (ELT)
D108: Note:
D109: * Indicate the CLO based on the CLO's numbering in Item 8
D110: ** For ODL programme: Courses with mandatory practical requiremnets imposed by the programme standards or any related standards can be exempted from complying to the minimum 80% ODL delivery rule in the SLT.
B112: 11 | C112: Identify special requirement or resources to deliver the course (e.g., software, nursery, computer lab, simulation room etc)
B114: 12 | C114: References (include required and further readings, and should be the most current) | K114: Rujukan Utama: 1. As-Siba’ei, Mustafa (2007) As-Sirah An-Nabawiyah Durusun wa ‘Ibar, Kaherah : Dar As-Salam. 2. Mubarakfuuri, Shaafiyurrahman (2009), Raheeq Al-Makhtuum. Kaherah : Dar Al-Wafaa. 3. Al-Buhti, Muhammad Sa’id Ramadhan (2007) Fiqh As-Sirah An-Nabawiyah Ma’a Mujiz Li Tarikh Al-Khulafah Ar-Rashidah, Kaherah : Dar As-Salam Rujukan tambahan : 4. Mahmud 4.Syakir (2000). Al-Tarikh al-Islami. Beirut : Al-Maktab al-Islami. 5. Ash-Sholabiy, Ali Muhammad (2008), As-Sirah An-Nabawiyyah ‘Ardhun Waqa’i wa Tahliil Al-Ahdath Dirasat Syaamilah. Iskandariyah: Daar Ad-Dakwah. 6. Al-Ghali, Muhammad (2004), The History of Muhammad, The Prophet and Messenger. Egypt: Al-Falah Foundation for Translation and Distribution. 7. Imaarah, Muhammad (2009), Muhammad saw Al-Mustofa Al-Ma’shum Basyarun ... Yuhaa Ilaihi. Kaherah : Dar As-Salam. 8. Al-Mansyawi, Abdullah (2008) Ar-Raudhatul Al-Unf Li Imam Abi Qasim Abdurrahman Al-Khath’amiy As-Suhaily wa Ma’ahu As-Sirah Li Ibn Hisyam. Kaherah : Darul Hadith 9. Imam Muhammad bin Abdul Wahab, Mukhthasar Siratur Rasul Shalallahu ‘Alaihi wa Sallam, 10. Muhammad Husain Haikal, Hayat Muhammad, . Kaherah
B116: 13 | C116: Other additional information (if applicable)
C119: Note: Number of PLO indicated is purely for illustration purposes only and the number is subjected to the curriculum design.

Sheet API2143
B2: Back To FORM @ TEMPLATE
AI3: √
B5: 1 | C5: Course Name: | F5: FIQH DAKWAH | AI5: Semester
C6: Course Code: | F6: API2143 | AI6: 1
C7: Course Classification: | F7: Major (core) | AI7: 2
B8: 2 | C8: Synopsis: | F8: Kursus ini membincangkan tentang definisi dakwah, hukum dan sejarah dakwah. Ia turut menfokuskan kepada asas-asas, metodologi dan pendekatan dakwah masa kini. | AI8: 3
B9: =B8+1 -> 3 | C9: Name(s) of Academic Staff: | F9: 1 | G9: MOHD KHAIROL BIN MOKHTAR
F10: 2 | AI10: Year Offered
F11: 3 | AI11: 1
B12: =B9+1 -> 4 | C12: Semester and Year offered: | F12: Year Offered | I12: 2 | J12: Semester | L12: 2 | M12: Remarks: | AI12: 2
B13: =B12+1 -> 5 | C13: Credit Value: | F13: =IF(X107 ="√",INT(X99/80),INT(X99/40)) -> 3 | AI13: 3
B14: 6 | C14: Pre-requisite/ co-requisite (if any): | AI14: 4
AI15: 5
B16: 7 | C16: Course Learning Outcomes (CLO) | F16: CLO1 | H16: Menerangkan definisi dan sejarah perkembangan dakwah, hukum, rukun dan syarat dakwah serta kepentingan ilmu dakwah. (C2, PLO1) | AI16: 6
F17: CLO2 | H17: Mengenalpasti dan memberi contoh manhaj dan uslub dakwah yang sesuai. (A3, CTPS, PLO2) | AI17: 7
F18: CLO3 | H18: Menjelaskan masalah dakwah dan cara penyelesainnya. (P3,PLO4) | AI18: 8
AI20: Compulsory
AI21: Major (core)
AI22: Minor
AI23: Elective (core)
AI24: Elective (open/free)
B25: 8 | C25: Mapping of the Course Learning Outcomes to the Programme Learning Outcomes, Teaching Methods and Assessment Methods
D27: Course Learning Outcomes | F27: Programme Learning Outcomes (PLO) | R27: Teaching Methods | W27: Assessment Methods
F28: PLO 1 | G28: PLO 2 | H28: PLO 3 | I28: PLO 4 | J28: PLO 5 | K28: PLO 6 | L28: PLO 7 | M28: PLO 8 | N28: PLO 9 | O28: PLO 10 | P28: PLO 11
D29: =IF(ISBLANK(F16),"",F16) -> CLO1 | F29: √ | R29: Kuliah | Tutorial | W29: Kuiz| ujian |peperiksaan akhir
D30: =IF(ISBLANK(F17),"",F17) -> CLO2 | G30: √ | R30: Kuliah | Tutorial | W30: Ujian | perbincangan | pembentangan
D31: CLO3 | I31: √ | R31: Kuliah | Tutorial | W31: Tugasan | perbincangan
AI36: Cognitive skills
D37: Mapping with MQF Cluster of Learning Outcomes | F37: C1 | G37: C2 | H37: C3A | I37: C3B | J37: C3C | K37: C3D | L37: C3E | M37: C3F | N37: C4A | O37: C4B | P37: C5 | AI37: Interpersonal skills
AI38: Communication Skills
AI39: Digital Skills
AI40: Numeracy Skills
D41: Indicate the primary causal link between the CLO and PLO by ticking '√' in the appropriate box. | AI41: Leadership, Autonomy and Responsibility
D42: C1 = Knowledge & Understanding, C2 = Cognitive Skills, C3A = Practical Skills, C3B = Interpersonal Skills, C3C = Communication Skills, C3D = Digital Skills, | AI42: Personal Skills
D43: C3E = Numeracy Skills, C3F = Leadership, Autonomy & Responsibility, C4A = Personal Skills, C4B = Entrepreneurial Skills, C5 = Ethics & Professionalism | AI43: Entrepreneurial Skills
AI44: Ethics and Professionalism
B45: 9 | C45: Transferable Skills (if applicable)
C46: (Skills learned in the course of study which can be useful and utilized in other settings) | I46: 1 | J46: Cognitive skills | AI46: C1
I47: 2 | J47: Interpersonal skills | AI47: C2
I48: 3 | AI48: C3A
I49: Open-ended response (if any) | AI49: C3B
I50: 4 | AI50: C3C
AI51: C3D
AB52: ` | AI52: C3E
B53: 10 | C53: Distribution of Student Learning Time (SLT) | AI53: C3F
C54: Note: This SLT calculation is designed for home grown programme only. | AI54: C4A
AI55: C4B
D56: Course Content Outline and Subtopics | K56: CLO* | M56: Learning and Teaching Activities** | X56: Total SLT | AI56: C5
M57: Face-to-Face (F2F) | U57: NF2F Independent Learning (Asynchronous)
M58: Physical | Q58: Online/ Technology-mediated (Synchronous)
M59: L | N59: T | O59: P | P59: O | Q59: L | R59: T | S59: P | T59: O
D60: 1 | E60: 1.0 Pengenalan dan Definisi Dakwah 1.1 Dakwah dan Ilmu Dakwah 1.2 Hubung kait Ilmu Dakwah dengan ilmu-ilmu lain | K60: CLO1 | M60: 2 | N60: 1 | U60: 2
D61: 2 | E61: 2.0 Hukum Berdakwah 2.1 Fardhu 'Ain dan pendalilannya 2.2 Fardhu Kifayah dan pendalilannya | K61: CLO1 | M61: 2 | N61: 1 | U61: 2
D62: 3 | E62: 3.0 Sejarah dan Perkembangan Dakwah Para Anbiya' 3.1 Peranan Para Anbiya' 3.2 Kisah dan Cabaran Dakwah Para Anbiya' | K62: CLO2 | M62: 2 | N62: 1 | U62: 3
D63: 4 | E63: 4.0 Sejarah dan Perkembangan Dakwah Zaman Rasulullah SAW 4.1 Dakwah di Makkah 4.2 Dakwah di Madina | K63: CLO2 | M63: 2 | N63: 1 | U63: 3
D64: 5 | E64: 5.0 Sejarah dan Perkembangan Dakwah Selepas Zaman Rasulullah SAW 5.1 Zaman Tabi'in 5.2 Zaman Tabi' tabi'in | K64: CLO2 | M64: 2 | N64: 1 | U64: 3
D65: 6 | E65: 6.0 Rukun dan Dakwah 6.1 Da’ie dan ciri-cirinya 6.2 Mad’u dan Pembahagian Mad'u | K65: CLO2 | M65: 2 | N65: 1 | U65: 3
D66: 7 | E66: 7.0 Maudhu' dan Uslub Dakwah 7.1 Definisi Maudhu' Dakwah dan ciri-cirinya 7.2 Definisi Uslub Dakwah dan contoh | K66: CLO2 | M66: 2 | N66: 2 | U66: 3
D67: 8 | E67: 8.0 Manhaj Dakwah 8.1 Definisi 8.2 Sumber-sumber Manhaj Dakwah | K67: CLO2 | M67: 2 | N67: 2 | U67: 3
D68: 9 | E68: 9.0 Matlamat Manhaj Dakwah 9.1 Sumber-sumber Manhaj Dakwah 9.2 Prinsip-prinsip Manhaj Dakwah | K68: CLO2 | M68: 2 | N68: 2 | U68: 3
D69: 10 | E69: 10.0 Uslub Hikmah Dalam Dakwah 10.1 Ciri-ciri Uslub Hikmah 10.2 Contoh di dalam al-Quran dan hadith | K69: CLO2 | M69: 2 | N69: 2 | U69: 3
D70: =D69+1 -> 11 | E70: 11.0 Uslub Mau'izah Hasanah Dalam Dakwah 11.1 Ciri-ciri Uslub Mau'izah Hasanah 11.2 Contoh di dalam al-Quran dan hadith | K70: CLO2 | M70: 2 | N70: 2 | U70: 3
